Workbook

Sheet Introduction
B4: INTRODUCTION
B6: Version: 1.2
B8: This tool was developed for ABPI by the Carbon Trust with contributions from ABPI members. The aim of the tool is to provide a quick approximation of the carbon impacts of pharmaceutical tablets in blister packs. This information can be used for internal evaluations, assessing the carbon hot spots for individual products and screening product portfolios to prioritise more detailed footprinting studies and carbon reduction initiatives. In addition, it can be used to engage stakeholders in broader discussions around the impacts of the products. The tool is specific to the UK market. The tool is not intended for direct product comparisons.
B18: USER GUIDE
B20: 1. Navigating the Tool The blue tabs at the top of each sheet allow the user to navigate between the various sections of the tool. User inputs are limited to the Data Input and User Defined Excipient emission factors tabs. Only light blue cells can be modified by the user. Most input fields have associated help boxes that can be displayed by clicking on the relevant i button. For some fields, inputs are limited to values within a drop-down menu. This can be accessed by clicking on the arrow that appears next to the cell when it is selected. In some cases, selection of a specific input option will drive subsequent data entry options. In this case, all entry fields that are not applicable will be greyed out.
B31: 2. Uncertainty and Data Quality As this tool is designed to provide a quick view of a product's carbon impact, it is important to also recognise and interpret the uncertainty associated with the result. The modelling uncertainty will be automatically estimated through statistical evaluation and a data quality matrix based on Greenhouse Gas Protocol guidance. In most cases, the uncertainty data is calculated in the background of the tool. The user is encouraged to use their own calculated emission factors for the API or excipients,where available, as this is likely to reduce the measurement uncertainty and allow greater confidence in the results. Additional information is required for the tool to evaluate the data quality when a company uses their own emission factors. The assessment criteria are shown in the table below, adapted from the GHG Protocol Product Standard. A sixth uncertainty criterion is a basic uplift applied to different activities. For excipients this will typically be industrial products, but may also be agricultural products.
C42: Representativeness of the data in terms of:
C43: Precision | D43: Completeness | E43: Geography | F43: Technology | G43: Time
B44: Very Good | C44: Verified data based on measurements | D44: Data from all relevant sites over an adequate time period | E44: Data from the same area | F44: Data based on same technology | G44: Data with less than 3 years of difference
B45: Good | C45: Verified data partly based on assumptions or non-verified data based on measurements | D45: Data from more than 50 per cent of sites for an adequate time period | E45: Data from a similar area | F45: Data based on similar technology | G45: Data with less than 6 yearsof difference
B46: Fair | C46: Non-verified data partly based on assumptions or a qualified estimate | D46: Data from less than 50 per cent of sites for an adequate time period or for more than 50 per cent of sites but for a shorter time period | E46: Data from a different area | F46: Data based on a different technology | G46: Data with less than 10 years of difference
B47: Poor | C47: Non-qualified estimate | D47: Data from less than 50 percent of sites for a limited time periods or representativenss is unknown | E47: Area unknown | F47: Data where technology is unknown | G47: Data with more than 10 years of difference or age of data unknown
B50: The User Defined Excipient EFs table provides the uncertainty value associated with the default factor provided in the tool. This way, the user can decide whether to use an alternative emission factor, which may have a lower uncertainty. Once the user has defined a bespoke emission factor, they are able to switch between this and the default value in the Data Input sheet.
B55: MODEL ASSUMPTIONS
B57: This section sets out some of the key assumptions used in the development of the tool.
B59: 1. API The default emission factors and calculation model for APIs are based on the statistical assessment of 29 APIs that had been previously footprinted. Two regression models are used to provide the user with the option to include or exclude the number of chemical process steps involved in the manufacture of the API. Both regression models have an r2 value of 73%.
B65: 2. Transport and Distribution With the exception of air freight, transport does not usually contribute a significant amount to the overall footprint of pharmaceuticals. As a result, transport data is requested in three distance bands (short, medium and long haul). The distances vary by mode of transport and are listed in the information box next to the input table for transport to formulation site. The default transport route for APIs to formulation site is long-haul shipping and domestic road freight, whereas for excipients it is only domestic road freight. Defaults for transport from formulation site to packaging and packaging site to the UK are based on the country locations of the sites. Where formulation and packaging are co-located the user can set all transport modes to "none". UK transport and distribution is based on typical distances for transport from UK port to main distribution centre, regional distribution centres and on to pharmacies and hospitals. All journeys are done by road. The impact of storage at the distribution centres has also been included.
B78: 3. Formulation and Packaging The energy figures for formulation and packaging are based on average data from multiple facilities of one pharmaceutical company. Probably the largest variable affecting energy use per product output is the utilisation rate of the facility, due to the large overhead energy requirements for HVAC. This variable is not currently accounted for within the tool. The carbon impact of the energy use is calculated based on the specific emission factors for the country location specified by the user.
B86: 4. Retail and Use Phase The model distinguishes between pharmacies and hospitals in terms of the retail and use phase of the products. For pharmacies, it is assumed that each pack is sold in a paper bag with two adhesive labels. This is conservative, as it does not account for multiple prescriptions in one bag or non-prescription tablets which may not have the bag and labels. For hospitals, the use phase includes the use of a disposable 30ml polypropylene cup in which tablets are presented to the patient. An average of two tablets per cup has been assumed. In practice, cups of other materials and sizes are used and the average number of tablets may not be representative, but no statistical data on these points was available from the NHS. Wastage from unused tablets has not been taken into account. The functional units for this model are effectively per tablet or pack sold, rather than per tablet taken.
B99: 5. End of Life The end of life of the packaging is fully modelled within this tool, including the wastage during the packaging process and waste transport. For the cardboard and paper elements of the packaging, average commercial and domestic recycling rates have been applied, but the blister strip materials are assumed to be non-recyclable. The emissions from disposal of the chemical waste arising at the various life cycle stages has not been modelled beyond a transport component.

Sheet Data Input
C8: 1. Product Details
C10: Product Name
C12: Tablets per pack
C14: Weight per tablet (mg) | H14: =IF(G14<>(SUM(OFFSET(G25,0,0,1,APINumber))+SUM(OFFSET(I56,0,0,ExcipientNumber,1))),"ERROR: The API and Excipient input weights do not add up to this number","") -> 
C18: 2. API Characteristics
C20: Number of APIs | E20: i | G20: 1
G22: API 1 | H22: API 2 | I22: API 3
C23: API Name
C25: API content per tablet (mg)
C27: Type of API Emission Factor: | E27: i | G27: Specific | I27: Specific
C29: SPECIFIC
C30: Emission Factor (kg CO2e/kg API)
C32: Data Quality:
C33: Precision
C34: Completeness
C35: Temporal representativeness
C36: Geographical representativeness
C37: Technological representativeness
C39: CALCULATED
C40: Chiral? | E40: i
C42: Production scale (tpa) | E42: i
C44: Number of chemical steps (optional) | E44: i
C46: HIGH/MEDIUM/LOW
C47: Average API emission factor | E47: i
C51: 3. Formulation
C53: Number of excipients | E53: i | G53: 1
G55: Excipient | I55: Content per tablet (mg) | J55: Default/User Defined Emission Factor
K56: =IF(J56="","PLEASE SPECIFY THE TYPE OF EMISSION FACTOR FOR THIS EXCIPIENT (DEFAULT/USER DEFINED)",IF(J56="User Defined",IF(VLOOKUP(G56,'User Defined Excipient EFs'!A:C,2,FALSE)="","PLEASE SPECIFY THE USER DEFINED EMISSION FACTOR FOR THIS EXCIPIENT IN THE 'User Defined Excipient EFs' TAB",""),"")) -> PLEASE SPECIFY THE TYPE OF EMISSION FACTOR FOR THIS EXCIPIENT (DEFAULT/USER DEFINED)
C59: Number of formulation sites | E59: i | G59: 1
G61: Site 1 | H61: =IF($G$59>=2,"Site 2","") -> 
C62: Site name
C64: Country
C66: Process wastage rate | E66: i | G66: 0.02 | H66: 0.02
G67: Default | H67: Default
C69: Production share | E69: i | G69: 1 | H69: =1-G69 -> 0
C71: Transport of inputs to formulation | E71: i | G71: Site 1 | O71: HIDE THIS COLUMN
G72: Ingredient | I72: Air | J72: Sea | K72: Road | O72: Weight (mg)
E73: i | G73: =IF(G23="","",G23) ->  | L73: User Defined | M73: =IF(OR(I73="None",I73=""),IF(OR(J73="None",J73=""),IF(OR(K73="None",K73=""),"Please enter at least one transport mode",""),""),"") -> Please enter at least one transport mode | O73: =IF(FormulationNumber=1,$G$25,FormulationSite1ProductionShare*$G$25) -> 0
G74: =IF(H23="","",H23) ->  | L74: User Defined | M74: =IF(OR(I74="None",I74=""),IF(OR(J74="None",J74=""),IF(OR(K74="None",K74=""),"Please enter at least one transport mode",""),""),"") -> Please enter at least one transport mode | O74: =IF(FormulationNumber=1,$H$25,FormulationSite1ProductionShare*$H$25) -> 0
G75: =IF(I23="","",I23) ->  | L75: User Defined | M75: =IF(OR(I75="None",I75=""),IF(OR(J75="None",J75=""),IF(OR(K75="None",K75=""),"Please enter at least one transport mode",""),""),"") -> Please enter at least one transport mode | O75: =IF(FormulationNumber=1,$I$25,FormulationSite1ProductionShare*$I$25) -> 0
G76: =IF(G56="","",G56) ->  | L76: User Defined | M76: =IF(OR(I76="None",I76=""),IF(OR(J76="None",J76=""),IF(OR(K76="None",K76=""),"Please enter at least one transport mode",""),""),"") -> Please enter at least one transport mode | O76: =IF(FormulationNumber=1,I56,FormulationSite1ProductionShare*I56) -> 0
G78: Site 2
G79: Ingredient | I79: Air | J79: Sea | K79: Road
G80: =IF(G23="","",G23) ->  | L80: User Defined | M80: =IF(OR(I80="None",I80=""),IF(OR(J80="None",J80=""),IF(OR(K80="None",K80=""),"Please enter at least one transport mode",""),""),"") -> Please enter at least one transport mode | O80: =IF(FormulationNumber=1,$G$25,FormulationSite2ProductionShare*$G$25) -> 0
G81: =IF(H23="","",H23) ->  | L81: User Defined | M81: =IF(OR(I81="None",I81=""),IF(OR(J81="None",J81=""),IF(OR(K81="None",K81=""),"Please enter at least one transport mode",""),""),"") -> Please enter at least one transport mode | O81: =IF(FormulationNumber=1,$H$25,FormulationSite2ProductionShare*$H$25) -> 0
G82: =IF(I23="","",I23) ->  | L82: User Defined | M82: =IF(OR(I82="None",I82=""),IF(OR(J82="None",J82=""),IF(OR(K82="None",K82=""),"Please enter at least one transport mode",""),""),"") -> Please enter at least one transport mode | O82: =IF(FormulationNumber=1,$I$25,FormulationSite2ProductionShare*$I$25) -> 0
G83: =IF(G56="","",G56) ->  | L83: User Defined | M83: =IF(OR(I83="None",I83=""),IF(OR(J83="None",J83=""),IF(OR(K83="None",K83=""),"Please enter at least one transport mode",""),""),"") -> Please enter at least one transport mode | O83: =IF(FormulationNumber=1,0,FormulationSite2ProductionShare*I56) -> 0
C88: 4. Packaging
C90: Packaging country
C92: Packaging split dropdown: | E92: i | G92: User Defined
C94: No. of blister strips per retail pack | E94: i
C96: No. of retail packs per outer box | E96: i
C98: No. of outer boxes per pallet | E98: i
C100: % of product lost during packaging | E100: i | G100: 0.005 | H100: Default
C102: % of packaging lost during packaging | E102: i | G102: 0.025 | H102: Default
C104: Select packaging calculation method | E104: i
C106: Select default blister pack size | E106: i | G106: Medium
G108: Material | H108: Weight (g)
C109: Bill of Materials per blister pack
C114: Bill of Materials per retail pack | E114: i
C118: Bill of Materials per outer box
C121: Packaging Transport
G122: Air | H122: Sea | I122: Road
C123: Formulation site 1 to packaging | E123: i | J123: User Defined
C124: Formulation site 2 to packaging | E124: i | J124: User Defined
C125: From Packaging to UK | E125: i | J125: User Defined
C129: 5. Distribution and Retail
C131: Sales split | G131: Default Split
C132: NHS hospital | G132: 0.3
C133: Other hospital | G133: 0.1
C134: Pharmacy (NHS prescription) | G134: 0.5
C135: Pharmacy (non-NHS)/retail | G135: 0.1
G136: =IF(SUM(G132:G135)<>1,"Error: Total does not sum to 100%","") -> 
C138: Distribution and retail wastage rate | E138: i | G138: 0.02 | H138: Default

Sheet Results
B5: Results
B7: Product Name | C7: =ProductName -> 0
B8: Tablet size (mg) | C8: =IF('Data Input'!G14="","",'Data Input'!G14) -> 
B9: Tablets per pack | C9: =IF('Data Input'!G12="","",'Data Input'!G12) -> 
B11: Summary Overview
D12: Emissions per pack (gCO2e) | E12: Emissions per tablet (gCO2e) | F12: Percentage | G12: Uncertainty factor | H12: High (gCO2e) | I12: Low (gCO2e) | J12: Wastage emissions per tablet | K12: Waste %ge of total | M12: High Error Bar | N12: Low Error Bar
B13: Total Footprint | D13: =IFERROR(E13*$C$9,"") ->  | E13: =IFERROR(E17+E21+E25+E29+E32+E33,"") ->  | F13: =IFERROR(E13/$E$13,"") ->  | G13: =IFERROR('Calculation sheet'!F47,"") ->  | H13: =IFERROR('Calculation sheet'!G47/1000,"") ->  | I13: =IFERROR('Calculation sheet'!H47/1000,"") ->  | J13: =IFERROR(J17+J21+J25+J29+J32+J33,"") -> 0 | K13: =J13/E13 ->  | M13: =H13-E13 ->  | N13: =E13-I13 ->  | O13: i
B14: Material inputs | C14: API | D14: =IFERROR(E14*$C$9,"") ->  | E14: =IFERROR('Calculation sheet'!D48/1000,"") -> 0 | F14: =IFERROR(E14/$E$13,"") ->  | G14: =IFERROR('Calculation sheet'!F48,"") ->  | H14: =IFERROR('Calculation sheet'!G48/1000,"") ->  | I14: =IFERROR('Calculation sheet'!H48/1000,"") ->  | J14: =IFERROR('Calculation sheet'!I48/1000,"") -> 0 | K14: =J14/E14 ->  | M14: =H14-E14 ->  | N14: =E14-I14 -> 
B15: Material inputs | C15: Excipients | E15: =IFERROR('Calculation sheet'!D49/1000,"") -> 0 | G15: =IFERROR('Calculation sheet'!F49,"") ->  | H15: =IFERROR('Calculation sheet'!G49/1000,"") ->  | I15: =IFERROR('Calculation sheet'!H49/1000,"") ->  | J15: =IFERROR('Calculation sheet'!I49/1000,"") -> 0 | K15: =J15/E15 -> 
B16: Material inputs | C16: Packaging Materials | E16: =IFERROR('Calculation sheet'!D50/1000,"") ->  | G16: =IFERROR('Calculation sheet'!F50,"") ->  | H16: =IFERROR('Calculation sheet'!G50/1000,"") ->  | I16: =IFERROR('Calculation sheet'!H50/1000,"") ->  | J16: =IFERROR('Calculation sheet'!I50/1000,"") -> 
B17: Material inputs | E17: =IFERROR('Calculation sheet'!D51/1000,"") -> 0 | G17: =IFERROR('Calculation sheet'!F51,"") ->  | H17: =IFERROR('Calculation sheet'!G51/1000,"") ->  | I17: =IFERROR('Calculation sheet'!H51/1000,"") ->  | J17: =IFERROR('Calculation sheet'!I51/1000,"") -> 0
B18: Formulation | C18: Energy | E18: =IFERROR('Calculation sheet'!D52/1000,"") ->  | G18: =IFERROR('Calculation sheet'!F52,"") ->  | H18: =IFERROR('Calculation sheet'!G52/1000,"") ->  | I18: =IFERROR('Calculation sheet'!H52/1000,"") ->  | J18: =IFERROR('Calculation sheet'!I52/1000,"") ->  | K18: =IFERROR(J18/E18,0) -> 0
B19: Formulation | C19: In-bound Transport | E19: =IFERROR('Calculation sheet'!D53/1000,"") -> 0 | G19: =IFERROR('Calculation sheet'!F53,"") ->  | H19: =IFERROR('Calculation sheet'!G53/1000,"") ->  | I19: =IFERROR('Calculation sheet'!H53/1000,"") ->  | J19: =IFERROR('Calculation sheet'!I53/1000,"") -> 0 | K19: =IFERROR(J19/E19,0) -> 0
B20: Formulation | C20: Waste | E20: =IFERROR('Calculation sheet'!D54/1000,"") -> 0 | G20: =IFERROR('Calculation sheet'!F54,"") -> 1 | H20: =IFERROR('Calculation sheet'!G54/1000,"") -> 0 | I20: =IFERROR('Calculation sheet'!H54/1000,"") -> 0 | J20: =IFERROR('Calculation sheet'!I54/1000,"") -> 0 | K20: =IFERROR(J20/E20,0) -> 0 | M20: 0 | N20: 0
B21: Formulation | E21: =IFERROR('Calculation sheet'!D55/1000,"") ->  | G21: =IFERROR('Calculation sheet'!F55,"") ->  | H21: =IFERROR('Calculation sheet'!G55/1000,"") ->  | I21: =IFERROR('Calculation sheet'!H55/1000,"") ->  | J21: =IFERROR('Calculation sheet'!I55/1000,"") -> 0
B22: Packaging | C22: Energy | E22: =IFERROR('Calculation sheet'!D56/1000,"") ->  | G22: =IFERROR('Calculation sheet'!F56,"") ->  | H22: =IFERROR('Calculation sheet'!G56/1000,"") ->  | I22: =IFERROR('Calculation sheet'!H56/1000,"") ->  | J22: =IFERROR('Calculation sheet'!I56/1000,"") -> 
B23: Packaging | C23: In-bound Transport | E23: =IFERROR('Calculation sheet'!D57/1000,"") -> 0 | G23: =IFERROR('Calculation sheet'!F57,"") ->  | H23: =IFERROR('Calculation sheet'!G57/1000,"") ->  | I23: =IFERROR('Calculation sheet'!H57/1000,"") ->  | J23: =IFERROR('Calculation sheet'!I57/1000,"") -> 0
B24: Packaging | C24: Waste | E24: =IFERROR('Calculation sheet'!D58/1000,"") ->  | G24: =IFERROR('Calculation sheet'!F58,"") ->  | H24: =IFERROR('Calculation sheet'!G58/1000,"") ->  | I24: =IFERROR('Calculation sheet'!H58/1000,"") ->  | J24: =IFERROR('Calculation sheet'!I58/1000,"") -> 
B25: Packaging Process | E25: =IFERROR('Calculation sheet'!D59/1000,"") ->  | G25: =IFERROR('Calculation sheet'!F59,"") ->  | H25: =IFERROR('Calculation sheet'!G59/1000,"") ->  | I25: =IFERROR('Calculation sheet'!H59/1000,"") ->  | J25: =IFERROR('Calculation sheet'!I59/1000,"") -> 0
B26: Distibution | C26: RDC | E26: =IFERROR('Calculation sheet'!D60/1000,"") ->  | G26: =IFERROR('Calculation sheet'!F60,"") -> 4.113250379 | H26: =IFERROR('Calculation sheet'!G60/1000,"") ->  | I26: =IFERROR('Calculation sheet'!H60/1000,"") ->  | J26: =IFERROR('Calculation sheet'!I60/1000,"") -> 
B27: Distibution | C27: Transport | E27: =IFERROR('Calculation sheet'!D61/1000,"") ->  | G27: =IFERROR('Calculation sheet'!F61,"") -> 1.32205793 | H27: =IFERROR('Calculation sheet'!G61/1000,"") ->  | I27: =IFERROR('Calculation sheet'!H61/1000,"") ->  | J27: =IFERROR('Calculation sheet'!I61/1000,"") -> 
C28: Waste | E28: =IFERROR('Calculation sheet'!D62/1000,"") ->  | G28: =IFERROR('Calculation sheet'!F62,"") ->  | H28: =IFERROR('Calculation sheet'!G62/1000,"") ->  | I28: =IFERROR('Calculation sheet'!H62/1000,"") ->  | J28: =IFERROR('Calculation sheet'!I62/1000,"") -> 
B29: Distribution | E29: =IFERROR('Calculation sheet'!D63/1000,"") ->  | G29: =IFERROR('Calculation sheet'!F63,"") ->  | H29: =IFERROR('Calculation sheet'!G63/1000,"") ->  | I29: =IFERROR('Calculation sheet'!H63/1000,"") ->  | J29: =IFERROR('Calculation sheet'!I63/1000,"") -> 0
B30: Retail & Use | C30: NHS | E30: =IFERROR('Calculation sheet'!D64/1000,"") -> 3.524729188 | G30: =IFERROR('Calculation sheet'!F64,"") ->  | H30: =IFERROR('Calculation sheet'!G64/1000,"") ->  | I30: =IFERROR('Calculation sheet'!H64/1000,"") ->  | J30: =IFERROR('Calculation sheet'!I64/1000,"") -> 0 | K30: =IFERROR(J30/E30,0) -> 0
B31: Retail & Use | C31: Retail Pharmacies | E31: =IFERROR('Calculation sheet'!D65/1000,"") ->  | G31: =IFERROR('Calculation sheet'!F65,"") ->  | H31: =IFERROR('Calculation sheet'!G65/1000,"") ->  | I31: =IFERROR('Calculation sheet'!H65/1000,"") ->  | J31: =IFERROR('Calculation sheet'!I65/1000,"") -> 0 | K31: =IFERROR(J31/E31,0) -> 0
B32: Retail & Use | E32: =IFERROR('Calculation sheet'!D66/1000,"") ->  | G32: =IFERROR('Calculation sheet'!F66,"") -> 0 | H32: =IFERROR('Calculation sheet'!G66/1000,"") ->  | I32: =IFERROR('Calculation sheet'!H66/1000,"") -> 0 | J32: =IFERROR('Calculation sheet'!I66/1000,"") -> 0 | K32: =IFERROR(J32/E32,0) -> 0
B33: End of Life | E33: =IFERROR('Calculation sheet'!D67/1000,"") ->  | G33: =IFERROR('Calculation sheet'!F67,"") ->  | H33: =IFERROR('Calculation sheet'!G67/1000,"") ->  | I33: =IFERROR('Calculation sheet'!H67/1000,"") ->  | J33: =IFERROR('Calculation sheet'!I67/1000,"") -> 0
B56: Key Model Parameters and Assumptions
B58: API
B60: ='Data Input'!G23&" is based on "&API1_Type&" data" -> is based on Specific data | D60: Emission factor: | E60: ='Calculation sheet'!B99 -> 0 | F60: kgCO2e/kg
B61: ='Data Input'!H23&" is based on "&API2_Type&" data" -> is based on data | D61: Emission factor: | E61: ='Calculation sheet'!B100 ->  | F61: kgCO2e/kg
B62: ='Data Input'!I23&" is based on "&API3_Type&" data" -> is based on Specific data | D62: Emission factor: | E62: ='Calculation sheet'!B101 -> 0 | F62: kgCO2e/kg
B64: Excipients
B66: =COUNTIFS(OFFSET('Data Input'!$J$56,0,0,ExcipientNumber),"User Defined")&" excipient(s) have a user defined emission factors" -> 0 excipient(s) have a user defined emission factors
B67: =COUNTIFS(OFFSET('Data Input'!$J$56,0,0,ExcipientNumber),"Default")&" excipient(s) use default emission factors" -> 0 excipient(s) use default emission factors
B69: Packaging
B71: =IF(PackagingCalculationMethod="Specified Materials","Packaging is user defined","Packaging is based on default data for "&WasteDefault&" pack size") -> Packaging is based on default data for Medium pack size

Sheet Calculation sheet (hidden)
A4: WEIGHTS:
A6: CHEMICALS:
A8: Formulation Site 1
A9: Total Chemical Weight Per Tablet (mg) | B9: =IF(FormulationNumber=1,(SUM(OFFSET('Data Input'!G25,0,0,1,APINumber))+SUM(OFFSET(ExcipientStart,0,2,ExcipientNumber,1))),(FormulationSite1ProductionShare*(SUM(OFFSET('Data Input'!G25,0,0,1,APINumber))+SUM(OFFSET(ExcipientStart,0,2,ExcipientNumber,1))))) -> 0
A11: Formulation Site 2
A12: Total Chemical Weight Per Tablet (mg) | B12: =IF(FormulationNumber=1,0,(FormulationSite2ProductionShare*(SUM(OFFSET('Data Input'!G25,0,0,1,APINumber))+SUM(OFFSET(ExcipientStart,0,2,ExcipientNumber,1))))) -> 0
A14: Total Chemical Weight Per Tablet (mg) | B14: =SUM(OFFSET(API1Mass,0,0,1,APINumber))+SUM(OFFSET(ExcipientStart,0,2,ExcipientNumber,1)) -> 0
A16: PACKAGING:
A18: NOTE: DOES NOT INCLUDE PALLET WEIGHT
A19: Weight per tablet (mg): | B19: =IF(PackagingCalculationMethod="Specified Materials",SUM(B211:B214,B219:B221,B226:B227),IF(PackagingCalculationMethod="Use defaults",'Reference Data'!$B$35,"")) -> 
A20: Weight per pack (mg): | B20: =B19*TabletsPerPack -> 
A22: CONVERSION FACTORS:
A24: WASTAGE UPLIFTS:
A26: (ln(U))2 | B26: Uplift | C26: U (uncertainty factor) | D26: (ln U)2
A27: Formulation Site 1 | B27: =1/(1-'Data Input'!G66) -> 1.020408163 | C27: =IF(Site1ProcessWastageRateDropdown="User Defined",'Data Quality Matrix'!$N$51,IF(Site1ProcessWastageRateDropdown="Default",'Data Quality Matrix'!$N$52,"")) -> 1.640008077 | D27: =LN(C27)^2 -> 0.2447292447
A28: Formulation Site 2 | B28: =1/(1-'Data Input'!H66) -> 1.020408163 | C28: =IF(Site2ProcessWastageRateDropdown="User Defined",'Data Quality Matrix'!$N$51,IF(Site2ProcessWastageRateDropdown="Default",'Data Quality Matrix'!$N$52,"")) -> 1.640008077 | D28: =LN(C28)^2 -> 0.2447292447
A29: Product Wastage during Packaging | B29: =1/(1-'Data Input'!G100) -> 1.005025126 | C29: =IF(PercentProductLostInPackagingDropdown="User Defined",'Data Quality Matrix'!$N$51,IF(PercentProductLostInPackagingDropdown="Default",'Data Quality Matrix'!$N$52,"")) -> 1.640008077 | D29: =LN(C29)^2 -> 0.2447292447
A30: Packaging Wastage during Packaging | B30: =1/(1-'Data Input'!G102) -> 1.025641026 | C30: =IF(PercentPackagingLostInPackagingDropdown="User Defined",'Data Quality Matrix'!$N$51,IF(PercentPackagingLostInPackagingDropdown="Default",'Data Quality Matrix'!$N$52,"")) -> 1.640008077 | D30: =LN(C30)^2 -> 0.2447292447
A31: RDC | B31: =1/(1-'Data Input'!G138) -> 1.020408163 | C31: =IF(RDCWastageDropdown="User Defined",'Data Quality Matrix'!$N$51,IF(RDCWastageDropdown="Default",'Data Quality Matrix'!$N$52,"")) -> 1.640008077 | D31: =LN(C31)^2 -> 0.2447292447
A34: EFFECT OF WASTAGE FACTORS:
A36: Before RDC: | B36: =(1/(1-'Data Input'!G138))-1 -> 0.02040816327
A37: Before packaging - chemical: | B37: =(1/((1-'Data Input'!G138)*(1-'Data Input'!G100)))-1 -> 0.02553584248
A38: Before packaging - packaging: | B38: =(1/((1-'Data Input'!G138)*(1-'Data Input'!G102)))-1 -> 0.04657247514
A39: Before Formulation Site 1: | B39: =(1/((1-'Data Input'!G138)*(1-'Data Input'!G100)*(1-'Data Input'!G66)))-1 -> 0.04646514539
A40: Before Formulation Site 2: | B40: =(1/((1-'Data Input'!G138)*(1-'Data Input'!G100)*(1-'Data Input'!H66)))-1 -> 0.04646514539
A42: SUMMARY FIGURES
A44: Total emissions (mg CO2e per tablet): | B44: =D47 -> 
C46: Emissions per pack | D46: Emissions per tablet | E46: Percentage | F46: Uncertainty factor | G46: High | H46: Low | I46: Waste emissions per tablet | J46: %ge of total | L46: =EXP(SQRT(SUM(K48:K50,K52:K54,K56:K58,K60:K62))) ->  | M46: =EXP(SQRT(SUM(K51,K55,K59,K63))) -> 
A47: Total Footprint | D47: =D51+D55+D59+D63+D66+D67 ->  | E47: =D47/$D$47 ->  | F47: =EXP(SQRT(SUM(K51,K55,K59,K63,K66,K67))) ->  | G47: =F47*D47 ->  | H47: =D47/F47 -> 
A48: Material inputs | B48: API | D48: =B85 -> 0 | E48: =D48/$D$47 ->  | F48: =EXP(SQRT(B86)) ->  | G48: =F48*D48 ->  | H48: =D48/F48 ->  | I48: =B87+B88 -> 0 | K48: =(D48/$D$51)^2*LN(F48)^2 -> 
A49: Material inputs | B49: Excipients | D49: =B116 -> 0 | F49: =EXP(SQRT(B164)) ->  | I49: =B118+B119 -> 0 | K49: =(D49/$D$51)^2*LN(F49)^2 -> 
A50: Material inputs | B50: Packaging | D50: =B163 ->  | F50: =EXP(SQRT(B164)) ->  | I50: =B165 ->  | K50: =(D50/$D$51)^2*LN(F50)^2 -> 
A51: Material inputs | D51: =SUM(D48:D50) -> 0 | F51: =EXP(SQRT(SUM(K48:K50))) ->  | K51: =E51^2*LN(F51)^2 -> 
A52: Formulation | B52: Energy | D52: =B236 ->  | F52: =EXP(SQRT(B237)) ->  | I52: =B238 ->  | K52: =(D52/$D$55)^2*LN(F52)^2 -> 
A53: Formulation | B53: In-bound Transport | D53: =B305+B323+B344+B363 -> 0 | F53: =EXP(SQRT(B306+B345+IF(FormulationNumber=2,B324+B364))) ->  | I53: =B307+B325+B346+B365 -> 0 | K53: =(D53/$D$55)^2*LN(F53)^2 -> 
A54: Formulation | B54: Waste | D54: 0 | F54: 1 | G54: 0 | H54: 0 | K54: =(D54/$D$55)^2*LN(F54)^2 -> 
A55: Formulation | D55: =SUM(D52:D54) ->  | F55: =EXP(SQRT(SUM(K52:K54))) ->  | K55: =E55^2*LN(F55)^2 -> 
A56: Packaging | B56: Energy | D56: =B271 ->  | F56: =EXP(SQRT(B272)) ->  | I56: =B273 ->  | K56: =(D56/$D$59)^2*LN(F56)^2 -> 
A57: Packaging | B57: In-bound Transport | D57: =SUM(B377:D378) -> 0 | F57: =EXP(SQRT(SUM(H377:H378))) ->  | I57: =B382 -> 0 | K57: =(D57/$D$59)^2*LN(F57)^2 -> 
A58: Packaging | B58: Waste | D58: =D458+D534 ->  | F58: =EXP(SQRT(D459)) ->  | I58: =D58 ->  | K58: =(D58/$D$59)^2*LN(F58)^2 -> 
A59: Packaging | D59: =SUM(D56:D58) ->  | F59: =EXP(SQRT(SUM(K56:K58))) ->  | K59: =E59^2*LN(F59)^2 -> 
A60: Distibution | B60: RDC | D60: =B404 ->  | F60: =EXP(SQRT(B406*B407)) -> 4.113250379 | G60: =F60*D60 ->  | H60: =D60/F60 ->  | I60: =B409 ->  | K60: =(D60/$D$63)^2*LN(F60)^2 -> 
A61: Distibution | B61: Transport | D61: =B414 ->  | F61: =EXP(SQRT(B416*B417)) -> 1.32205793 | G61: =F61*D61 ->  | H61: =D61/F61 ->  | I61: =B419 ->  | K61: =(D61/$D$63)^2*LN(F61)^2 -> 
B62: Waste | D62: =C458+D533 ->  | F62: =EXP(SQRT(C459)) ->  | G62: =F62*D62 ->  | H62: =D62/F62 ->  | I62: =D62 ->  | K62: =(D62/$D$63)^2*LN(F62)^2 -> 
A63: Distribution | D63: =SUM(D60:D62) ->  | F63: =EXP(SQRT(SUM(K60:K62))) ->  | K63: =E63^2*LN(F63)^2 -> 
A64: Retail & Use | B64: NHS | D64: =B436 -> 3524.729188 | F64: =EXP(SQRT(F436)) ->  | K64: =(D64/$D$66)^2*LN(F64)^2 -> 
A65: Retail & Use | B65: Retail Pharmacies | D65: =B450 ->  | F65: =EXP(SQRT(F450)) ->  | K65: =(D65/$D$66)^2*LN(F65)^2 -> 
A66: Retail & Use | D66: =SUM(D64:D65) ->  | F66: =IFERROR(EXP(SQRT(SUM(K64:K65))),0) -> 0 | H66: =IFERROR(D66/F66,0) -> 0 | K66: =IFERROR(E66^2*LN(F66)^2,) -> 0
A67: End of Life | D67: =B458+D532 ->  | F67: =EXP(SQRT(B459)) ->  | I67: 0 | K67: =E67^2*LN(F67)^2 -> 
A76: MATERIAL EMISSIONS
A81: APIs
A83: API Summary:
A85: API Material Emissions per tablet (mg CO2e): | B85: =SUM(OFFSET(C99,0,0,APINumber,FormulationNumber)) -> 0
A86: Σ Si2 x (ln Ui)2 | B86: =SUM(OFFSET(K99,0,0,APINumber,FormulationNumber)) -> 
A87: Effect of waste - Site 1 (mg CO2e per tablet): | B87: =SUM(OFFSET(C99,0,0,APINumber,1))*$B$39 -> 0
A88: Effect of waste - Site 2 (mg CO2e per tablet): | B88: =SUM(OFFSET(D99,0,0,APINumber,1))*$B$40 -> 0
A90: Coefficients for calculated EF:
B92: Intercept | C92: log10scale - coefficient | D92: (log10scale)2 - coefficient | E92: Chirality - coefficient | F92: No. of chemical steps | G92: Standard Error (log domain) | H92: API 1 | I92: API 2 | J92: API 3
A93: Excluding no. of steps | B93: 3.331632039 | C93: -0.134196418 | D93: -0.1086988491 | E93: 0.4065426394 | G93: 0.3264166969 | H93: =10^($B$93+($C$93*LOG10('Data Input'!G42))+($D$93*(LOG10('Data Input'!G42)^2))+IF('Data Input'!G40="YES",$E$93,0)) ->  | I93: =10^($B$93+($C$93*LOG10('Data Input'!H42))+($D$93*(LOG10('Data Input'!H42)^2))+IF('Data Input'!H40="YES",$E$93,0)) ->  | J93: =10^($B$93+($C$93*LOG10('Data Input'!I42))+($D$93*(LOG10('Data Input'!I42)^2))+IF('Data Input'!I40="YES",$E$93,0)) -> 
A94: Including no.of steps | B94: 3.057182457 | D94: -0.1313327242 | E94: 0.3254191281 | F94: 0.03269438284 | G94: 0.3263225455 | H94: =10^($B$94+($D$94*(LOG10('Data Input'!G42)^2))+'Data Input'!G44*$F$94+IF('Data Input'!G40="YES",$E$94,0)) ->  | I94: =10^($B$94+($D$94*(LOG10('Data Input'!H42)^2))+'Data Input'!H44*$F$94+IF('Data Input'!H40="YES",$E$94,0)) ->  | J94: =10^($B$94+($D$94*(LOG10('Data Input'!I42)^2))+'Data Input'!I44*$F$94+IF('Data Input'!I40="YES",$E$94,0)) -> 
A96: Calculations:
B98: Emission Factor | C98: Material Emissions Site 1 (mg CO2e per tablet) | D98: Material Emissions Site 2 (mg CO2e per tablet) | E98: UA | F98: UEF | G98: S Site 12 | H98: S Site 22 | I98: (ln UE Site 1)2 | J98: (ln UE Site 2)2 | K98: S Site 12 x (ln UE Site 1)2 | L98: S Site 22 x (ln UE Site 2)2
A99: API 1 | B99: =IF(API1_Type='Reference Data'!$A$5,API1_Specific,IF(API1_Type='Reference Data'!$A$6,IF('Data Input'!G44="",H93,H94),IF(API1_Type='Reference Data'!$A$7,VLOOKUP(API1_HighMediumLow,APIGenericEFs,2,FALSE),IF(API1_Type='Reference Data'!$A$8,'Reference Data'!$B$18,"")))) -> 0 | C99: =IF(FormulationNumber=1,1,FormulationSite1ProductionShare)*B99*API1Mass*$B$27*$B$29*$B$31 -> 0 | D99: =IF(FormulationNumber=1,0,FormulationSite2ProductionShare)*B99*API1Mass*$B$28*$B$29*$B$31 -> 0 | E99: ='Data Quality Matrix'!$N$45 -> 1 | F99: =IF(API1_Type='Reference Data'!$A$5,G105,IF(API1_Type='Reference Data'!$A$6,10^(2*$G$93),IF(API1_Type='Reference Data'!$A$7,'Data Quality Matrix'!N28,IF(API1_Type='Reference Data'!$A$8,'Data Quality Matrix'!N27,"")))) ->  | G99: =(C99/$B$85)^2 ->  | I99: =LN($E99)^2+LN($F99)^2+$D$27+$D$29+$D$31 ->  | J99: =LN($E99)^2+LN($F99)^2+$D$28+$D$29+$D$31 ->  | K99: =G99*I99 -> 
A100: API 2 | B100: =IF(API2_Type='Reference Data'!$A$5,API2_Specific,IF(API2_Type='Reference Data'!$A$6,IF('Data Input'!H44="",I93,I94),IF(API2_Type='Reference Data'!$A$7,VLOOKUP(API2_HighMediumLow,APIGenericEFs,2,FALSE),IF(API2_Type='Reference Data'!$A$8,'Reference Data'!$B$18,"")))) ->  | C100: =IF(FormulationNumber=1,1,FormulationSite1ProductionShare)*B100*API2Mass*$B$27*$B$29*$B$31 ->  | D100: =IF(FormulationNumber=1,0,FormulationSite2ProductionShare)*B100*API2Mass*$B$28*$B$29*$B$31 ->  | E100: ='Data Quality Matrix'!$N$45 -> 1 | F100: =IF(API2_Type='Reference Data'!$A$5,G106,IF(API2_Type='Reference Data'!$A$6,10^(2*$G$93),IF(API2_Type='Reference Data'!$A$7,'Data Quality Matrix'!N28,IF(API2_Type='Reference Data'!$A$8,'Data Quality Matrix'!N27,"")))) ->  | I100: =LN($E100)^2+LN($F100)^2+$D$27+$D$29+$D$31 ->  | J100: =LN($E100)^2+LN($F100)^2+$D$28+$D$29+$D$31 -> 
A101: API 3 | B101: =IF(API3_Type='Reference Data'!$A$5,API3_Specific,IF(API3_Type='Reference Data'!$A$6,IF('Data Input'!I44="",J93,J94),IF(API3_Type='Reference Data'!$A$7,VLOOKUP(API3_HighMediumLow,APIGenericEFs,2,FALSE),IF(API3_Type='Reference Data'!$A$8,'Reference Data'!$B$18,"")))) -> 0 | C101: =IF(FormulationNumber=1,1,FormulationSite1ProductionShare)*B101*API3Mass*$B$27*$B$29*$B$31 -> 0 | D101: =IF(FormulationNumber=1,0,FormulationSite2ProductionShare)*B101*API3Mass*$B$28*$B$29*$B$31 -> 0 | E101: ='Data Quality Matrix'!$N$45 -> 1 | F101: =IF(API3_Type='Reference Data'!$A$5,G107,IF(API3_Type='Reference Data'!$A$6,10^(2*$G$93),IF(API3_Type='Reference Data'!$A$7,'Data Quality Matrix'!N28,IF(API3_Type='Reference Data'!$A$8,'Data Quality Matrix'!N27,"")))) ->  | I101: =LN($E101)^2+LN($F101)^2+$D$27+$D$29+$D$31 ->  | J101: =LN($E101)^2+LN($F101)^2+$D$28+$D$29+$D$31 -> 
A104: U for Specific Efs | B104: U Precision | C104: U Completeness | D104: U Temporal representativeness | E104: U Geographical representativeness | F104: U Technological representativeness | G104: U E
A105: API 1 | B105: =HLOOKUP('Data Input'!$G$33,'Data Quality Matrix'!$B$3:$E$8,2,FALSE) ->  | C105: =HLOOKUP('Data Input'!$G$34,'Data Quality Matrix'!$B$3:$E$8,3,FALSE) ->  | D105: =HLOOKUP('Data Input'!$G$35,'Data Quality Matrix'!$B$3:$E$8,4,FALSE) ->  | E105: =HLOOKUP('Data Input'!$G$36,'Data Quality Matrix'!$B$3:$E$8,5,FALSE) ->  | F105: =HLOOKUP('Data Input'!$G$37,'Data Quality Matrix'!$B$3:$E$8,6,FALSE) ->  | G105: =EXP(SQRT((LN(B105)^2+LN(C105)^2+LN(D105)^2+LN(E105)^2+LN(F105)^2))) -> 
A106: API 2 | B106: =HLOOKUP('Data Input'!$H$33,'Data Quality Matrix'!$B$3:$E$8,2,FALSE) ->  | C106: =HLOOKUP('Data Input'!$H$34,'Data Quality Matrix'!$B$3:$E$8,3,FALSE) ->  | D106: =HLOOKUP('Data Input'!$H$35,'Data Quality Matrix'!$B$3:$E$8,4,FALSE) ->  | E106: =HLOOKUP('Data Input'!$H$36,'Data Quality Matrix'!$B$3:$E$8,5,FALSE) ->  | F106: =HLOOKUP('Data Input'!$H$37,'Data Quality Matrix'!$B$3:$E$8,6,FALSE) ->  | G106: =EXP(SQRT((LN(B106)^2+LN(C106)^2+LN(D106)^2+LN(E106)^2+LN(F106)^2))) -> 
A107: API 3 | B107: =HLOOKUP('Data Input'!$I$33,'Data Quality Matrix'!$B$3:$E$8,2,FALSE) ->  | C107: =HLOOKUP('Data Input'!$I$34,'Data Quality Matrix'!$B$3:$E$8,3,FALSE) ->  | D107: =HLOOKUP('Data Input'!$I$35,'Data Quality Matrix'!$B$3:$E$8,4,FALSE) ->  | E107: =HLOOKUP('Data Input'!$I$36,'Data Quality Matrix'!$B$3:$E$8,5,FALSE) ->  | F107: =HLOOKUP('Data Input'!$I$37,'Data Quality Matrix'!$B$3:$E$8,6,FALSE) ->  | G107: =EXP(SQRT((LN(B107)^2+LN(C107)^2+LN(D107)^2+LN(E107)^2+LN(F107)^2))) -> 
A112: EXCIPIENTS
A114: Summary:
A116: Material Emissions per tablet (mg CO2e): | B116: =SUM(OFFSET(F122,0,0,ExcipientNumber,FormulationNumber)) -> 0
A117: Σ Si2 x (ln Ui)2 | B117: =SUM(OFFSET(N122,0,0,ExcipientNumber,FormulationNumber)) -> 
A118: Effect of waste - Site 1 (mg CO2e per tablet): | B118: =SUM(OFFSET(F122,0,0,ExcipientNumber,1))*$B$39 -> 0
A119: Effect of waste - Site 2 (mg CO2e per tablet): | B119: =SUM(OFFSET(G122,0,0,ExcipientNumber,1))*$B$40 -> 0
A121: Offset Number (to drive formulae) | B121: Excipient name | C121: Weight | D121: Default/User Defined? | E121: Emission Factor | F121: Material Emissions Site 1 (mg CO2e per tablet) | G121: Material Emissions Site 2 (mg CO2e per tablet) | H121: (ln UA)2 | I121: (ln UEF)2 | J121: S Site 12 | K121: S Site 22 | L121: (ln UE Site 1)2 | M121: (ln UE Site 2)2 | N121: S Site 12 x (ln UE Site 1)2 | O121: S Site 22 x (ln UE Site 2)2
A122: 0 | B122: =OFFSET(ExcipientStart,'Calculation sheet'!$A122,0,1,1) -> 0 | C122: =OFFSET(ExcipientStart,'Calculation sheet'!$A122,2,1,1) -> 0 | D122: =OFFSET(ExcipientStart,'Calculation sheet'!$A122,3,1,1) -> 0 | E122: =IF(D122="Default",VLOOKUP(B122,'Original Excipient EFs'!A:C,2,FALSE),VLOOKUP(B122,'Original Excipient EFs'!A:C,3,FALSE)) -> FALSE | F122: =IF(FormulationNumber=1,1,FormulationSite1ProductionShare)*$C122*$E122*$B$27*$B$29*$B$31 -> 0 | G122: =IF(FormulationNumber=1,0,FormulationSite2ProductionShare)*$C122*$E122*$B$28*$B$29*$B$31 -> 0 | H122: =LN('Data Quality Matrix'!$N$45)^2 -> 0 | I122: =IF(D122="Default",LN(VLOOKUP(B122,'Original Excipient EFs'!A2:R47,18,FALSE))^2,IF(D122="User Defined",VLOOKUP(B122,'User Defined Excipient EFs'!A:J,9,FALSE),"")) ->  | J122: =(F122/$B$116)^2 ->  | K122: =(G122/$B$116)^2 ->  | L122: =H122+I122+$D$27+$D$29+$D$31 ->  | M122: =H122+I122+$D$28+$D$29+$D$31 ->  | N122: =J122*L122 ->  | O122: =K122*M122 -> 
A123: =A122+1 -> 1 | B123: =OFFSET(ExcipientStart,'Calculation sheet'!$A123,0,1,1) -> 0 | C123: =OFFSET(ExcipientStart,'Calculation sheet'!$A123,2,1,1) -> 0 | D123: =OFFSET(ExcipientStart,'Calculation sheet'!$A123,3,1,1) -> 0 | E123: =IF(D123="Default",VLOOKUP(B123,'Original Excipient EFs'!A:C,2,FALSE),VLOOKUP(B123,'Original Excipient EFs'!A:C,3,FALSE)) -> FALSE | F123: 0 | G123: 0 | H123: =LN('Data Quality Matrix'!$N$45)^2 -> 0 | I123: =IF(D123="Default",LN(VLOOKUP(B123,'Original Excipient EFs'!A3:R48,18,FALSE))^2,IF(D123="User Defined",VLOOKUP(B123,'User Defined Excipient EFs'!A:J,9,FALSE),"")) ->  | J123: =(F123/$B$116)^2 ->  | L123: =H123+I123+$D$27+$D$29+$D$31 ->  | M123: =H123+I123+$D$28+$D$29+$D$31 ->  | N123: =J123*L123 ->  | O123: =K123*M123 -> 
A124: =A123+1 -> 2 | B124: =OFFSET(ExcipientStart,'Calculation sheet'!$A124,0,1,1) -> 0 | C124: =OFFSET(ExcipientStart,'Calculation sheet'!$A124,2,1,1) -> 0 | D124: =OFFSET(ExcipientStart,'Calculation sheet'!$A124,3,1,1) -> 0 | E124: =IF(D124="Default",VLOOKUP(B124,'Original Excipient EFs'!A:C,2,FALSE),VLOOKUP(B124,'Original Excipient EFs'!A:C,3,FALSE)) -> FALSE | F124: 0 | G124: 0 | H124: =LN('Data Quality Matrix'!$N$45)^2 -> 0 | I124: =IF(D124="Default",LN(VLOOKUP(B124,'Original Excipient EFs'!A4:R49,18,FALSE))^2,IF(D124="User Defined",VLOOKUP(B124,'User Defined Excipient EFs'!A:J,9,FALSE),"")) -> 
A125: 3 | B125: =OFFSET(ExcipientStart,'Calculation sheet'!$A125,0,1,1) -> 1 | C125: =OFFSET(ExcipientStart,'Calculation sheet'!$A125,2,1,1) -> 0 | D125: =OFFSET(ExcipientStart,'Calculation sheet'!$A125,3,1,1) -> 0 | E125: =IF(D125="Default",VLOOKUP(B125,'Original Excipient EFs'!A:C,2,FALSE),VLOOKUP(B125,'Original Excipient EFs'!A:C,3,FALSE)) ->  | H125: =LN('Data Quality Matrix'!$N$45)^2 -> 0 | I125: =IF(D125="Default",LN(VLOOKUP(B125,'Original Excipient EFs'!A5:R50,18,FALSE))^2,IF(D125="User Defined",VLOOKUP(B125,'User Defined Excipient EFs'!A:J,9,FALSE),"")) -> 
A126: 4 | B126: =OFFSET(ExcipientStart,'Calculation sheet'!$A126,0,1,1) -> 0 | C126: =OFFSET(ExcipientStart,'Calculation sheet'!$A126,2,1,1) -> 0 | D126: =OFFSET(ExcipientStart,'Calculation sheet'!$A126,3,1,1) -> 0 | E126: =IF(D126="Default",VLOOKUP(B126,'Original Excipient EFs'!A:C,2,FALSE),VLOOKUP(B126,'Original Excipient EFs'!A:C,3,FALSE)) -> FALSE | F126: 0 | G126: 0 | H126: =LN('Data Quality Matrix'!$N$45)^2 -> 0 | I126: =IF(D126="Default",LN(VLOOKUP(B126,'Original Excipient EFs'!A6:R51,18,FALSE))^2,IF(D126="User Defined",VLOOKUP(B126,'User Defined Excipient EFs'!A:J,9,FALSE),"")) -> 
A127: =A126+1 -> 5 | B127: =OFFSET(ExcipientStart,'Calculation sheet'!$A127,0,1,1) -> Site 1 | C127: =OFFSET(ExcipientStart,'Calculation sheet'!$A127,2,1,1) -> 0 | D127: =OFFSET(ExcipientStart,'Calculation sheet'!$A127,3,1,1) -> 0 | E127: =IF(D127="Default",VLOOKUP(B127,'Original Excipient EFs'!A:C,2,FALSE),VLOOKUP(B127,'Original Excipient EFs'!A:C,3,FALSE)) ->  | H127: =LN('Data Quality Matrix'!$N$45)^2 -> 0 | I127: =IF(D127="Default",LN(VLOOKUP(B127,'Original Excipient EFs'!A7:R52,18,FALSE))^2,IF(D127="User Defined",VLOOKUP(B127,'User Defined Excipient EFs'!A:J,9,FALSE),"")) -> 
A128: =A127+1 -> 6 | B128: =OFFSET(ExcipientStart,'Calculation sheet'!$A128,0,1,1) -> 0 | C128: =OFFSET(ExcipientStart,'Calculation sheet'!$A128,2,1,1) -> 0 | D128: =OFFSET(ExcipientStart,'Calculation sheet'!$A128,3,1,1) -> 0 | E128: =IF(D128="Default",VLOOKUP(B128,'Original Excipient EFs'!A:C,2,FALSE),VLOOKUP(B128,'Original Excipient EFs'!A:C,3,FALSE)) -> FALSE | F128: 0 | G128: 0 | H128: =LN('Data Quality Matrix'!$N$45)^2 -> 0 | I128: =IF(D128="Default",LN(VLOOKUP(B128,'Original Excipient EFs'!A8:R53,18,FALSE))^2,IF(D128="User Defined",VLOOKUP(B128,'User Defined Excipient EFs'!A:J,9,FALSE),"")) -> 
A129: =A128+1 -> 7 | B129: =OFFSET(ExcipientStart,'Calculation sheet'!$A129,0,1,1) -> 0 | C129: =OFFSET(ExcipientStart,'Calculation sheet'!$A129,2,1,1) -> 0 | D129: =OFFSET(ExcipientStart,'Calculation sheet'!$A129,3,1,1) -> 0 | E129: =IF(D129="Default",VLOOKUP(B129,'Original Excipient EFs'!A:C,2,FALSE),VLOOKUP(B129,'Original Excipient EFs'!A:C,3,FALSE)) -> FALSE | F129: 0 | G129: 0 | H129: =LN('Data Quality Matrix'!$N$45)^2 -> 0 | I129: =IF(D129="Default",LN(VLOOKUP(B129,'Original Excipient EFs'!A9:R54,18,FALSE))^2,IF(D129="User Defined",VLOOKUP(B129,'User Defined Excipient EFs'!A:J,9,FALSE),"")) -> 
A130: 8 | B130: =OFFSET(ExcipientStart,'Calculation sheet'!$A130,0,1,1) -> 0 | C130: =OFFSET(ExcipientStart,'Calculation sheet'!$A130,2,1,1) -> 0 | D130: =OFFSET(ExcipientStart,'Calculation sheet'!$A130,3,1,1) -> 0 | E130: =IF(D130="Default",VLOOKUP(B130,'Original Excipient EFs'!A:C,2,FALSE),VLOOKUP(B130,'Original Excipient EFs'!A:C,3,FALSE)) -> FALSE | F130: 0 | G130: 0 | H130: =LN('Data Quality Matrix'!$N$45)^2 -> 0 | I130: =IF(D130="Default",LN(VLOOKUP(B130,'Original Excipient EFs'!A10:R55,18,FALSE))^2,IF(D130="User Defined",VLOOKUP(B130,'User Defined Excipient EFs'!A:J,9,FALSE),"")) -> 
A131: =A130+1 -> 9 | B131: =OFFSET(ExcipientStart,'Calculation sheet'!$A131,0,1,1) -> 0 | C131: =OFFSET(ExcipientStart,'Calculation sheet'!$A131,2,1,1) -> 0 | D131: =OFFSET(ExcipientStart,'Calculation sheet'!$A131,3,1,1) -> 0 | E131: =IF(D131="Default",VLOOKUP(B131,'Original Excipient EFs'!A:C,2,FALSE),VLOOKUP(B131,'Original Excipient EFs'!A:C,3,FALSE)) -> FALSE | F131: 0 | G131: 0 | H131: =LN('Data Quality Matrix'!$N$45)^2 -> 0 | I131: =IF(D131="Default",LN(VLOOKUP(B131,'Original Excipient EFs'!A11:R56,18,FALSE))^2,IF(D131="User Defined",VLOOKUP(B131,'User Defined Excipient EFs'!A:J,9,FALSE),"")) -> 
A132: 10 | B132: =OFFSET(ExcipientStart,'Calculation sheet'!$A132,0,1,1) -> 0.02 | C132: =OFFSET(ExcipientStart,'Calculation sheet'!$A132,2,1,1) -> 0 | D132: =OFFSET(ExcipientStart,'Calculation sheet'!$A132,3,1,1) -> 0 | E132: =IF(D132="Default",VLOOKUP(B132,'Original Excipient EFs'!A:C,2,FALSE),VLOOKUP(B132,'Original Excipient EFs'!A:C,3,FALSE)) ->  | H132: =LN('Data Quality Matrix'!$N$45)^2 -> 0 | I132: =IF(D132="Default",LN(VLOOKUP(B132,'Original Excipient EFs'!A12:R57,18,FALSE))^2,IF(D132="User Defined",VLOOKUP(B132,'User Defined Excipient EFs'!A:J,9,FALSE),"")) -> 
A133: 11 | B133: =OFFSET(ExcipientStart,'Calculation sheet'!$A133,0,1,1) -> Default | C133: =OFFSET(ExcipientStart,'Calculation sheet'!$A133,2,1,1) -> 0 | D133: =OFFSET(ExcipientStart,'Calculation sheet'!$A133,3,1,1) -> 0 | E133: =IF(D133="Default",VLOOKUP(B133,'Original Excipient EFs'!A:C,2,FALSE),VLOOKUP(B133,'Original Excipient EFs'!A:C,3,FALSE)) ->  | H133: =LN('Data Quality Matrix'!$N$45)^2 -> 0 | I133: =IF(D133="Default",LN(VLOOKUP(B133,'Original Excipient EFs'!A13:R58,18,FALSE))^2,IF(D133="User Defined",VLOOKUP(B133,'User Defined Excipient EFs'!A:J,9,FALSE),"")) -> 
A134: 12 | B134: =OFFSET(ExcipientStart,'Calculation sheet'!$A134,0,1,1) -> 0 | C134: =OFFSET(ExcipientStart,'Calculation sheet'!$A134,2,1,1) -> 0 | D134: =OFFSET(ExcipientStart,'Calculation sheet'!$A134,3,1,1) -> 0 | E134: =IF(D134="Default",VLOOKUP(B134,'Original Excipient EFs'!A:C,2,FALSE),VLOOKUP(B134,'Original Excipient EFs'!A:C,3,FALSE)) -> FALSE | F134: 0 | G134: 0 | H134: =LN('Data Quality Matrix'!$N$45)^2 -> 0 | I134: =IF(D134="Default",LN(VLOOKUP(B134,'Original Excipient EFs'!A14:R59,18,FALSE))^2,IF(D134="User Defined",VLOOKUP(B134,'User Defined Excipient EFs'!A:J,9,FALSE),"")) -> 
A135: 13 | B135: =OFFSET(ExcipientStart,'Calculation sheet'!$A135,0,1,1) -> 1 | C135: =OFFSET(ExcipientStart,'Calculation sheet'!$A135,2,1,1) -> 0 | D135: =OFFSET(ExcipientStart,'Calculation sheet'!$A135,3,1,1) -> 0 | E135: =IF(D135="Default",VLOOKUP(B135,'Original Excipient EFs'!A:C,2,FALSE),VLOOKUP(B135,'Original Excipient EFs'!A:C,3,FALSE)) ->  | H135: =LN('Data Quality Matrix'!$N$45)^2 -> 0 | I135: =IF(D135="Default",LN(VLOOKUP(B135,'Original Excipient EFs'!A15:R60,18,FALSE))^2,IF(D135="User Defined",VLOOKUP(B135,'User Defined Excipient EFs'!A:J,9,FALSE),"")) -> 
A136: 14 | B136: =OFFSET(ExcipientStart,'Calculation sheet'!$A136,0,1,1) -> 0 | C136: =OFFSET(ExcipientStart,'Calculation sheet'!$A136,2,1,1) -> 0 | D136: =OFFSET(ExcipientStart,'Calculation sheet'!$A136,3,1,1) -> 0 | E136: =IF(D136="Default",VLOOKUP(B136,'Original Excipient EFs'!A:C,2,FALSE),VLOOKUP(B136,'Original Excipient EFs'!A:C,3,FALSE)) -> FALSE | F136: 0 | G136: 0 | H136: =LN('Data Quality Matrix'!$N$45)^2 -> 0 | I136: =IF(D136="Default",LN(VLOOKUP(B136,'Original Excipient EFs'!A16:R61,18,FALSE))^2,IF(D136="User Defined",VLOOKUP(B136,'User Defined Excipient EFs'!A:J,9,FALSE),"")) -> 
A137: 15 | B137: =OFFSET(ExcipientStart,'Calculation sheet'!$A137,0,1,1) -> Site 1 | C137: =OFFSET(ExcipientStart,'Calculation sheet'!$A137,2,1,1) -> 0 | D137: =OFFSET(ExcipientStart,'Calculation sheet'!$A137,3,1,1) -> 0 | E137: =IF(D137="Default",VLOOKUP(B137,'Original Excipient EFs'!A:C,2,FALSE),VLOOKUP(B137,'Original Excipient EFs'!A:C,3,FALSE)) ->  | H137: =LN('Data Quality Matrix'!$N$45)^2 -> 0 | I137: =IF(D137="Default",LN(VLOOKUP(B137,'Original Excipient EFs'!A17:R62,18,FALSE))^2,IF(D137="User Defined",VLOOKUP(B137,'User Defined Excipient EFs'!A:J,9,FALSE),"")) -> 
A138: 16 | B138: =OFFSET(ExcipientStart,'Calculation sheet'!$A138,0,1,1) -> Ingredient | C138: =OFFSET(ExcipientStart,'Calculation sheet'!$A138,2,1,1) -> Air | D138: =OFFSET(ExcipientStart,'Calculation sheet'!$A138,3,1,1) -> Sea | E138: =IF(D138="Default",VLOOKUP(B138,'Original Excipient EFs'!A:C,2,FALSE),VLOOKUP(B138,'Original Excipient EFs'!A:C,3,FALSE)) ->  | H138: =LN('Data Quality Matrix'!$N$45)^2 -> 0 | I138: =IF(D138="Default",LN(VLOOKUP(B138,'Original Excipient EFs'!A18:R63,18,FALSE))^2,IF(D138="User Defined",VLOOKUP(B138,'User Defined Excipient EFs'!A:J,9,FALSE),"")) -> 
A139: 17 | B139: =OFFSET(ExcipientStart,'Calculation sheet'!$A139,0,1,1) ->  | C139: =OFFSET(ExcipientStart,'Calculation sheet'!$A139,2,1,1) -> 0 | D139: =OFFSET(ExcipientStart,'Calculation sheet'!$A139,3,1,1) -> 0 | E139: =IF(D139="Default",VLOOKUP(B139,'Original Excipient EFs'!A:C,2,FALSE),VLOOKUP(B139,'Original Excipient EFs'!A:C,3,FALSE)) ->  | H139: =LN('Data Quality Matrix'!$N$45)^2 -> 0 | I139: =IF(D139="Default",LN(VLOOKUP(B139,'Original Excipient EFs'!A19:R64,18,FALSE))^2,IF(D139="User Defined",VLOOKUP(B139,'User Defined Excipient EFs'!A:J,9,FALSE),"")) -> 
A140: 18 | B140: =OFFSET(ExcipientStart,'Calculation sheet'!$A140,0,1,1) ->  | C140: =OFFSET(ExcipientStart,'Calculation sheet'!$A140,2,1,1) -> 0 | D140: =OFFSET(ExcipientStart,'Calculation sheet'!$A140,3,1,1) -> 0 | E140: =IF(D140="Default",VLOOKUP(B140,'Original Excipient EFs'!A:C,2,FALSE),VLOOKUP(B140,'Original Excipient EFs'!A:C,3,FALSE)) ->  | H140: =LN('Data Quality Matrix'!$N$45)^2 -> 0 | I140: =IF(D140="Default",LN(VLOOKUP(B140,'Original Excipient EFs'!A20:R65,18,FALSE))^2,IF(D140="User Defined",VLOOKUP(B140,'User Defined Excipient EFs'!A:J,9,FALSE),"")) -> 
A141: 19 | B141: =OFFSET(ExcipientStart,'Calculation sheet'!$A141,0,1,1) ->  | C141: =OFFSET(ExcipientStart,'Calculation sheet'!$A141,2,1,1) -> 0 | D141: =OFFSET(ExcipientStart,'Calculation sheet'!$A141,3,1,1) -> 0 | E141: =IF(D141="Default",VLOOKUP(B141,'Original Excipient EFs'!A:C,2,FALSE),VLOOKUP(B141,'Original Excipient EFs'!A:C,3,FALSE)) ->  | H141: =LN('Data Quality Matrix'!$N$45)^2 -> 0 | I141: =IF(D141="Default",LN(VLOOKUP(B141,'Original Excipient EFs'!A21:R66,18,FALSE))^2,IF(D141="User Defined",VLOOKUP(B141,'User Defined Excipient EFs'!A:J,9,FALSE),"")) -> 
A142: 20 | B142: =OFFSET(ExcipientStart,'Calculation sheet'!$A142,0,1,1) ->  | C142: =OFFSET(ExcipientStart,'Calculation sheet'!$A142,2,1,1) -> 0 | D142: =OFFSET(ExcipientStart,'Calculation sheet'!$A142,3,1,1) -> 0 | E142: =IF(D142="Default",VLOOKUP(B142,'Original Excipient EFs'!A:C,2,FALSE),VLOOKUP(B142,'Original Excipient EFs'!A:C,3,FALSE)) ->  | H142: =LN('Data Quality Matrix'!$N$45)^2 -> 0 | I142: =IF(D142="Default",LN(VLOOKUP(B142,'Original Excipient EFs'!A22:R67,18,FALSE))^2,IF(D142="User Defined",VLOOKUP(B142,'User Defined Excipient EFs'!A:J,9,FALSE),"")) -> 
A143: 21 | B143: =OFFSET(ExcipientStart,'Calculation sheet'!$A143,0,1,1) -> 0 | C143: =OFFSET(ExcipientStart,'Calculation sheet'!$A143,2,1,1) -> 0 | D143: =OFFSET(ExcipientStart,'Calculation sheet'!$A143,3,1,1) -> 0 | E143: =IF(D143="Default",VLOOKUP(B143,'Original Excipient EFs'!A:C,2,FALSE),VLOOKUP(B143,'Original Excipient EFs'!A:C,3,FALSE)) -> FALSE | F143: 0 | G143: 0 | H143: =LN('Data Quality Matrix'!$N$45)^2 -> 0 | I143: =IF(D143="Default",LN(VLOOKUP(B143,'Original Excipient EFs'!A23:R68,18,FALSE))^2,IF(D143="User Defined",VLOOKUP(B143,'User Defined Excipient EFs'!A:J,9,FALSE),"")) -> 
A144: 22 | B144: =OFFSET(ExcipientStart,'Calculation sheet'!$A144,0,1,1) -> Site 2 | C144: =OFFSET(ExcipientStart,'Calculation sheet'!$A144,2,1,1) -> 0 | D144: =OFFSET(ExcipientStart,'Calculation sheet'!$A144,3,1,1) -> 0 | E144: =IF(D144="Default",VLOOKUP(B144,'Original Excipient EFs'!A:C,2,FALSE),VLOOKUP(B144,'Original Excipient EFs'!A:C,3,FALSE)) ->  | H144: =LN('Data Quality Matrix'!$N$45)^2 -> 0 | I144: =IF(D144="Default",LN(VLOOKUP(B144,'Original Excipient EFs'!A24:R69,18,FALSE))^2,IF(D144="User Defined",VLOOKUP(B144,'User Defined Excipient EFs'!A:J,9,FALSE),"")) -> 
A145: =A144+1 -> 23 | B145: =OFFSET(ExcipientStart,'Calculation sheet'!$A145,0,1,1) -> Ingredient | C145: =OFFSET(ExcipientStart,'Calculation sheet'!$A145,2,1,1) -> Air | D145: =OFFSET(ExcipientStart,'Calculation sheet'!$A145,3,1,1) -> Sea | E145: =IF(D145="Default",VLOOKUP(B145,'Original Excipient EFs'!A:C,2,FALSE),VLOOKUP(B145,'Original Excipient EFs'!A:C,3,FALSE)) ->  | H145: =LN('Data Quality Matrix'!$N$45)^2 -> 0 | I145: =IF(D145="Default",LN(VLOOKUP(B145,'Original Excipient EFs'!A25:R70,18,FALSE))^2,IF(D145="User Defined",VLOOKUP(B145,'User Defined Excipient EFs'!A:J,9,FALSE),"")) -> 
A146: 24 | B146: =OFFSET(ExcipientStart,'Calculation sheet'!$A146,0,1,1) ->  | C146: =OFFSET(ExcipientStart,'Calculation sheet'!$A146,2,1,1) -> 0 | D146: =OFFSET(ExcipientStart,'Calculation sheet'!$A146,3,1,1) -> 0 | E146: =IF(D146="Default",VLOOKUP(B146,'Original Excipient EFs'!A:C,2,FALSE),VLOOKUP(B146,'Original Excipient EFs'!A:C,3,FALSE)) ->  | H146: =LN('Data Quality Matrix'!$N$45)^2 -> 0 | I146: =IF(D146="Default",LN(VLOOKUP(B146,'Original Excipient EFs'!A26:R71,18,FALSE))^2,IF(D146="User Defined",VLOOKUP(B146,'User Defined Excipient EFs'!A:J,9,FALSE),"")) -> 
A147: 25 | B147: =OFFSET(ExcipientStart,'Calculation sheet'!$A147,0,1,1) ->  | C147: =OFFSET(ExcipientStart,'Calculation sheet'!$A147,2,1,1) -> 0 | D147: =OFFSET(ExcipientStart,'Calculation sheet'!$A147,3,1,1) -> 0 | E147: =IF(D147="Default",VLOOKUP(B147,'Original Excipient EFs'!A:C,2,FALSE),VLOOKUP(B147,'Original Excipient EFs'!A:C,3,FALSE)) ->  | H147: =LN('Data Quality Matrix'!$N$45)^2 -> 0 | I147: =IF(D147="Default",LN(VLOOKUP(B147,'Original Excipient EFs'!A27:R72,18,FALSE))^2,IF(D147="User Defined",VLOOKUP(B147,'User Defined Excipient EFs'!A:J,9,FALSE),"")) -> 
A148: 26 | B148: =OFFSET(ExcipientStart,'Calculation sheet'!$A148,0,1,1) ->  | C148: =OFFSET(ExcipientStart,'Calculation sheet'!$A148,2,1,1) -> 0 | D148: =OFFSET(ExcipientStart,'Calculation sheet'!$A148,3,1,1) -> 0 | E148: =IF(D148="Default",VLOOKUP(B148,'Original Excipient EFs'!A:C,2,FALSE),VLOOKUP(B148,'Original Excipient EFs'!A:C,3,FALSE)) ->  | H148: =LN('Data Quality Matrix'!$N$45)^2 -> 0 | I148: =IF(D148="Default",LN(VLOOKUP(B148,'Original Excipient EFs'!A28:R73,18,FALSE))^2,IF(D148="User Defined",VLOOKUP(B148,'User Defined Excipient EFs'!A:J,9,FALSE),"")) -> 
A149: =A148+1 -> 27 | B149: =OFFSET(ExcipientStart,'Calculation sheet'!$A149,0,1,1) ->  | C149: =OFFSET(ExcipientStart,'Calculation sheet'!$A149,2,1,1) -> 0 | D149: =OFFSET(ExcipientStart,'Calculation sheet'!$A149,3,1,1) -> 0 | E149: =IF(D149="Default",VLOOKUP(B149,'Original Excipient EFs'!A:C,2,FALSE),VLOOKUP(B149,'Original Excipient EFs'!A:C,3,FALSE)) ->  | H149: =LN('Data Quality Matrix'!$N$45)^2 -> 0 | I149: =IF(D149="Default",LN(VLOOKUP(B149,'Original Excipient EFs'!A29:R74,18,FALSE))^2,IF(D149="User Defined",VLOOKUP(B149,'User Defined Excipient EFs'!A:J,9,FALSE),"")) -> 
A150: 28 | B150: =OFFSET(ExcipientStart,'Calculation sheet'!$A150,0,1,1) -> 0 | C150: =OFFSET(ExcipientStart,'Calculation sheet'!$A150,2,1,1) -> 0 | D150: =OFFSET(ExcipientStart,'Calculation sheet'!$A150,3,1,1) -> 0 | E150: =IF(D150="Default",VLOOKUP(B150,'Original Excipient EFs'!A:C,2,FALSE),VLOOKUP(B150,'Original Excipient EFs'!A:C,3,FALSE)) -> FALSE | F150: 0 | G150: 0 | H150: =LN('Data Quality Matrix'!$N$45)^2 -> 0 | I150: =IF(D150="Default",LN(VLOOKUP(B150,'Original Excipient EFs'!A30:R75,18,FALSE))^2,IF(D150="User Defined",VLOOKUP(B150,'User Defined Excipient EFs'!A:J,9,FALSE),"")) -> 
A151: =A150+1 -> 29 | B151: =OFFSET(ExcipientStart,'Calculation sheet'!$A151,0,1,1) -> 0 | C151: =OFFSET(ExcipientStart,'Calculation sheet'!$A151,2,1,1) -> 0 | D151: =OFFSET(ExcipientStart,'Calculation sheet'!$A151,3,1,1) -> 0 | E151: =IF(D151="Default",VLOOKUP(B151,'Original Excipient EFs'!A:C,2,FALSE),VLOOKUP(B151,'Original Excipient EFs'!A:C,3,FALSE)) -> FALSE | F151: 0 | G151: 0 | H151: =LN('Data Quality Matrix'!$N$45)^2 -> 0 | I151: =IF(D151="Default",LN(VLOOKUP(B151,'Original Excipient EFs'!A31:R76,18,FALSE))^2,IF(D151="User Defined",VLOOKUP(B151,'User Defined Excipient EFs'!A:J,9,FALSE),"")) -> 
A152: =A151+1 -> 30 | B152: =OFFSET(ExcipientStart,'Calculation sheet'!$A152,0,1,1) -> 0 | C152: =OFFSET(ExcipientStart,'Calculation sheet'!$A152,2,1,1) -> 0 | D152: =OFFSET(ExcipientStart,'Calculation sheet'!$A152,3,1,1) -> 0 | E152: =IF(D152="Default",VLOOKUP(B152,'Original Excipient EFs'!A:C,2,FALSE),VLOOKUP(B152,'Original Excipient EFs'!A:C,3,FALSE)) -> FALSE | F152: 0 | G152: 0 | H152: =LN('Data Quality Matrix'!$N$45)^2 -> 0 | I152: =IF(D152="Default",LN(VLOOKUP(B152,'Original Excipient EFs'!A32:R77,18,FALSE))^2,IF(D152="User Defined",VLOOKUP(B152,'User Defined Excipient EFs'!A:J,9,FALSE),"")) -> 
A157: PACKAGING
A159: PACKAGING SUMMARY:
A161: NEED FORMULAE THAT VARIES DEPENDING ON WHETHER IT IS SPECIFIED OR DEFAULT
A163: Total Packaging (including uplift) (mg CO2e per tablet): | B163: =IF(PackagingCalculationMethod="Specified Materials",$B$205,IF(PackagingCalculationMethod="Use Defaults",$B$171,"")) -> 
A164: Σ Si2 x (ln Ui)2 | B164: =IF(PackagingCalculationMethod="Specified Materials",$B$206,IF(PackagingCalculationMethod="Use Defaults",$B$172,"")) -> 
A165: Effect of waste (mg CO2e per tablet): | B165: =B163*$B$38 -> 
A167: Default Packaging:
A169: Default Summary:
A171: Emissions (mg CO2e per tablet): | B171: =IF(WasteDefault="Small",SUM($D$177:$D$181),IF(WasteDefault="Medium",SUM($D$186:$D$190),IF(WasteDefault="Large",SUM($D$195:$D$199),""))) -> 11019.91627
A172: Σ Si2 x (ln Ui)2 | B172: =IF(WasteDefault="Small",SUM($I$177:$I$181),IF(WasteDefault="Medium",SUM($I$186:$I$190),IF(WasteDefault="Large",SUM($I$195:$I$199),""))) -> 1.445105348
A174: ='Reference Data'!A38 -> Small:
A176: ='Reference Data'!A40 -> Material | B176: ='Reference Data'!E40 -> Total weight per tablet (mg) | C176: Emission Factor (kg CO2e/kg material) | D176: Emissions including wastage (mg CO2e per tablet) | E176: (ln UA)2 | F176: (ln UEF)2 | G176: S2 | H176: (ln UE)2 | I176: S2 x (ln UE)2
A177: ='Reference Data'!A42 -> PVC - blister | B177: ='Reference Data'!E42 -> 1486 | C177: =VLOOKUP(A177,'Packaging EFs'!A:C,3,FALSE) -> 1.9 | D177: =IFERROR(B177*C177*$B$30*$B$31,"") -> 2954.892726 | E177: =LN('Data Quality Matrix'!$N$43)^2 -> 0.2181916448 | F177: =LN('Data Quality Matrix'!$N$30)^2 -> 0.08270777088 | G177: =(D177/$B$171)^2 -> 0.0718996619 | H177: =E177+F177+$C$30+$C$31 -> 3.58091557 | I177: =IFERROR(G177*H177,"") -> 0.2574666188
A178: ='Reference Data'!A43 -> PVdC - blister | B178: ='Reference Data'!E43 -> 178 | C178: =VLOOKUP(A178,'Packaging EFs'!A:C,3,FALSE) -> 4.4 | D178: =IFERROR(B178*C178*$B$30*$B$31,"") -> 819.6755625 | E178: =LN('Data Quality Matrix'!$N$43)^2 -> 0.2181916448 | F178: =LN('Data Quality Matrix'!$N$30)^2 -> 0.08270777088 | G178: =(D178/$B$171)^2 -> 0.005532575956 | H178: =E178+F178+$C$30+$C$31 -> 3.58091557 | I178: =IFERROR(G178*H178,"") -> 0.01981168739
A179: ='Reference Data'!A44 -> Aluminium | B179: ='Reference Data'!E44 -> 239 | C179: =VLOOKUP(A179,'Packaging EFs'!A:C,3,FALSE) -> 12.79 | D179: =IFERROR(B179*C179*$B$30*$B$31,"") -> 3199.173208 | E179: =LN('Data Quality Matrix'!$N$43)^2 -> 0.2181916448 | F179: =LN('Data Quality Matrix'!$N$30)^2 -> 0.08270777088 | G179: =(D179/$B$171)^2 -> 0.08427891158 | H179: =E179+F179+$C$30+$C$31 -> 3.58091557 | I179: =IFERROR(G179*H179,"") -> 0.3017956667
A180: ='Reference Data'!A45 -> Paper | B180: ='Reference Data'!E45 ->  | C180: =VLOOKUP(A180,'Packaging EFs'!A:C,3,FALSE) -> 0.69 | D180: =IFERROR(B180*C180*$B$30*$B$31,"") ->  | E180: =LN('Data Quality Matrix'!$N$43)^2 -> 0.2181916448 | F180: =LN('Data Quality Matrix'!$N$30)^2 -> 0.08270777088 | G180: =(D180/$B$171)^2 ->  | H180: =E180+F180+$C$30+$C$31 -> 3.58091557 | I180: =IFERROR(G180*H180,"") -> 
A181: ='Reference Data'!A46 -> Cardboard | B181: ='Reference Data'!E46 ->  | C181: =VLOOKUP(A181,'Packaging EFs'!A:C,3,FALSE) -> 0.58225 | D181: =IFERROR(B181*C181*$B$30*$B$31,"") ->  | E181: =LN('Data Quality Matrix'!$N$43)^2 -> 0.2181916448 | F181: =LN('Data Quality Matrix'!$N$30)^2 -> 0.08270777088 | G181: =(D181/$B$171)^2 ->  | H181: =E181+F181+$C$30+$C$31 -> 3.58091557 | I181: =IFERROR(G181*H181,"") -> 
A183: ='Reference Data'!A48 -> Medium:
A185: ='Reference Data'!A50 -> Material | B185: ='Reference Data'!E50 -> Total weight per tablet (mg) | C185: Emission Factor (kg CO2e/kg material) | D185: Emissions including wastage (mg CO2e per tablet) | E185: (ln UA)2 | F185: (ln UEF)2 | G185: S2 | H185: (ln UE)2 | I185: S2 x (ln UE)2
A186: ='Reference Data'!A52 -> PVC - blister | B186: ='Reference Data'!E52 -> 2351 | C186: =VLOOKUP(A186,'Packaging EFs'!A:C,3,FALSE) -> 1.9 | D186: =IFERROR(B186*C186*$B$30*$B$31,"") -> 4674.934589 | E186: =LN('Data Quality Matrix'!$N$43)^2 -> 0.2181916448 | F186: =LN('Data Quality Matrix'!$N$30)^2 -> 0.08270777088 | G186: =(D186/$B$171)^2 -> 0.1799676673 | H186: =E186+F186+$C$30+$C$31 -> 3.58091557 | I186: =IFERROR(G186*H186,"") -> 0.6444490222
A187: ='Reference Data'!A53 -> PVdC - blister | B187: ='Reference Data'!E53 -> 282 | C187: =VLOOKUP(A187,'Packaging EFs'!A:C,3,FALSE) -> 4.4 | D187: =IFERROR(B187*C187*$B$30*$B$31,"") -> 1298.587127 | E187: =LN('Data Quality Matrix'!$N$43)^2 -> 0.2181916448 | F187: =LN('Data Quality Matrix'!$N$30)^2 -> 0.08270777088 | G187: =(D187/$B$171)^2 -> 0.01388626974 | H187: =E187+F187+$C$30+$C$31 -> 3.58091557 | I187: =IFERROR(G187*H187,"") -> 0.04972555951
A188: ='Reference Data'!A54 -> Aluminium | B188: ='Reference Data'!E54 -> 377 | C188: =VLOOKUP(A188,'Packaging EFs'!A:C,3,FALSE) -> 12.79 | D188: =IFERROR(B188*C188*$B$30*$B$31,"") -> 5046.394558 | E188: =LN('Data Quality Matrix'!$N$43)^2 -> 0.2181916448 | F188: =LN('Data Quality Matrix'!$N$30)^2 -> 0.08270777088 | G188: =(D188/$B$171)^2 -> 0.2097035665 | H188: =E188+F188+$C$30+$C$31 -> 3.58091557 | I188: =IFERROR(G188*H188,"") -> 0.7509307666
A189: ='Reference Data'!A55 -> Paper | B189: ='Reference Data'!E55 ->  | C189: =VLOOKUP(A189,'Packaging EFs'!A:C,3,FALSE) -> 0.69 | D189: =IFERROR(B189*C189*$B$30*$B$31,"") ->  | E189: =LN('Data Quality Matrix'!$N$43)^2 -> 0.2181916448 | F189: =LN('Data Quality Matrix'!$N$30)^2 -> 0.08270777088 | G189: =(D189/$B$171)^2 ->  | H189: =E189+F189+$C$30+$C$31 -> 3.58091557 | I189: =IFERROR(G189*H189,"") -> 
A190: ='Reference Data'!A56 -> Cardboard | B190: ='Reference Data'!E56 ->  | C190: =VLOOKUP(A190,'Packaging EFs'!A:C,3,FALSE) -> 0.58225 | D190: =IFERROR(B190*C190*$B$30*$B$31,"") ->  | E190: =LN('Data Quality Matrix'!$N$43)^2 -> 0.2181916448 | F190: =LN('Data Quality Matrix'!$N$30)^2 -> 0.08270777088 | G190: =(D190/$B$171)^2 ->  | H190: =E190+F190+$C$30+$C$31 -> 3.58091557 | I190: =IFERROR(G190*H190,"") -> 
A192: ='Reference Data'!A58 -> Large:
A194: ='Reference Data'!A60 -> Material | B194: ='Reference Data'!E60 -> Total weight per tablet (mg) | C194: Emission Factor (kg CO2e/kg material) | D194: Emissions including wastage (mg CO2e per tablet) | E194: (ln UA)2 | F194: (ln UEF)2 | G194: S2 | H194: (ln UE)2 | I194: S2 x (ln UE)2
A195: ='Reference Data'!A62 -> PVC - blister | B195: ='Reference Data'!E62 -> 3634 | C195: =VLOOKUP(A195,'Packaging EFs'!A:C,3,FALSE) -> 1.9 | D195: =IFERROR(B195*C195*$B$30*$B$31,"") -> 7226.164312 | E195: =LN('Data Quality Matrix'!$N$43)^2 -> 0.2181916448 | F195: =LN('Data Quality Matrix'!$N$30)^2 -> 0.08270777088 | G195: =(D195/$B$171)^2 -> 0.4299907125 | H195: =E195+F195+$C$30+$C$31 -> 3.58091557 | I195: =IFERROR(G195*H195,"") -> 1.539760438
A196: ='Reference Data'!A63 -> PVdC - blister | B196: ='Reference Data'!E63 -> 436 | C196: =VLOOKUP(A196,'Packaging EFs'!A:C,3,FALSE) -> 4.4 | D196: =IFERROR(B196*C196*$B$30*$B$31,"") -> 2007.744636 | E196: =LN('Data Quality Matrix'!$N$43)^2 -> 0.2181916448 | F196: =LN('Data Quality Matrix'!$N$30)^2 -> 0.08270777088 | G196: =(D196/$B$171)^2 -> 0.0331940588 | H196: =E196+F196+$C$30+$C$31 -> 3.58091557 | I196: =IFERROR(G196*H196,"") -> 0.118865122
A197: ='Reference Data'!A64 -> Aluminium | B197: ='Reference Data'!E64 -> 583 | C197: =VLOOKUP(A197,'Packaging EFs'!A:C,3,FALSE) -> 12.79 | D197: =IFERROR(B197*C197*$B$30*$B$31,"") -> 7803.840921 | E197: =LN('Data Quality Matrix'!$N$43)^2 -> 0.2181916448 | F197: =LN('Data Quality Matrix'!$N$30)^2 -> 0.08270777088 | G197: =(D197/$B$171)^2 -> 0.5014876311 | H197: =E197+F197+$C$30+$C$31 -> 3.58091557 | I197: =IFERROR(G197*H197,"") -> 1.795784867
A198: ='Reference Data'!A65 -> Paper | B198: ='Reference Data'!E65 ->  | C198: =VLOOKUP(A198,'Packaging EFs'!A:C,3,FALSE) -> 0.69 | D198: =IFERROR(B198*C198*$B$30*$B$31,"") ->  | E198: =LN('Data Quality Matrix'!$N$43)^2 -> 0.2181916448 | F198: =LN('Data Quality Matrix'!$N$30)^2 -> 0.08270777088 | G198: =(D198/$B$171)^2 ->  | H198: =E198+F198+$C$30+$C$31 -> 3.58091557 | I198: =IFERROR(G198*H198,"") -> 
A199: ='Reference Data'!A66 -> Cardboard | B199: ='Reference Data'!E66 ->  | C199: =VLOOKUP(A199,'Packaging EFs'!A:C,3,FALSE) -> 0.58225 | D199: =IFERROR(B199*C199*$B$30*$B$31,"") ->  | E199: =LN('Data Quality Matrix'!$N$43)^2 -> 0.2181916448 | F199: =LN('Data Quality Matrix'!$N$30)^2 -> 0.08270777088 | G199: =(D199/$B$171)^2 ->  | H199: =E199+F199+$C$30+$C$31 -> 3.58091557 | I199: =IFERROR(G199*H199,"") -> 
A201: Specified Packaging:
A203: Specified Summary:
A205: Emissions (mg CO2e per tablet): | B205: =SUM(D211:D214,D219:D221,D226:D227) -> 0
A206: Σ Si2 x (ln Ui)2 | B206: =SUM(I211:I214,I219:I221,I226:I227) -> 0
A208: Blister Pack Emissions per tablet
A210: Material | B210: Weight (mg per tablet) | C210: Emission Factor (kg CO2e/kg material) | D210: Emissions including wastage (mg CO2e per tablet) | E210: (ln UA)2 | F210: (ln UEF)2 | G210: S2 | H210: (ln UE)2 | I210: S2 x (ln UE)2
A211: ='Data Input'!G109 -> 0 | B211: =('Data Input'!H109*1000)/TabletsPerPack ->  | C211: =VLOOKUP(A211,'Packaging EFs'!A:C,3,FALSE) ->  | D211: =IFERROR(B211*C211*$B$30*$B$31,"") ->  | E211: =LN('Data Quality Matrix'!$N$44)^2 -> 0 | F211: =LN('Data Quality Matrix'!$N$30)^2 -> 0.08270777088 | G211: =(D211/$B$205)^2 ->  | H211: =E211+F211+$C$30+$C$31 -> 3.362723926 | I211: =IFERROR(G211*H211,"") -> 
A212: ='Data Input'!G110 -> 0 | B212: =('Data Input'!H110*1000)/TabletsPerPack ->  | C212: =VLOOKUP(A212,'Packaging EFs'!A:C,3,FALSE) ->  | D212: =IFERROR(B212*C212*$B$30*$B$31,"") ->  | E212: =LN('Data Quality Matrix'!$N$44)^2 -> 0 | F212: =LN('Data Quality Matrix'!$N$30)^2 -> 0.08270777088 | G212: =(D212/$B$205)^2 ->  | H212: =E212+F212+$C$30+$C$31 -> 3.362723926 | I212: =IFERROR(G212*H212,"") -> 
A213: ='Data Input'!G111 -> 0 | B213: =('Data Input'!H111*1000)/TabletsPerPack ->  | C213: =VLOOKUP(A213,'Packaging EFs'!A:C,3,FALSE) ->  | D213: =IFERROR(B213*C213*$B$30*$B$31,"") ->  | E213: =LN('Data Quality Matrix'!$N$44)^2 -> 0 | F213: =LN('Data Quality Matrix'!$N$30)^2 -> 0.08270777088 | G213: =(D213/$B$205)^2 ->  | H213: =E213+F213+$C$30+$C$31 -> 3.362723926 | I213: =IFERROR(G213*H213,"") -> 
A214: ='Data Input'!G112 -> 0 | B214: =('Data Input'!H112*1000)/TabletsPerPack ->  | C214: =VLOOKUP(A214,'Packaging EFs'!A:C,3,FALSE) ->  | D214: =IFERROR(B214*C214*$B$30*$B$31,"") ->  | E214: =LN('Data Quality Matrix'!$N$44)^2 -> 0 | F214: =LN('Data Quality Matrix'!$N$30)^2 -> 0.08270777088 | G214: =(D214/$B$205)^2 ->  | H214: =E214+F214+$C$30+$C$31 -> 3.362723926 | I214: =IFERROR(G214*H214,"") -> 
A216: Retail Pack emissions per tablet
A218: Material | B218: Weight (mg per tablet) | C218: Emission Factor (kg CO2e/kg material) | D218: Emissions including wastage (mg CO2e per tablet) | E218: (ln UA)2 | F218: (ln UEF)2 | G218: S2 | H218: (ln UE)2 | I218: S2 x (ln UE)2
A219: ='Data Input'!G114 -> 0 | B219: ='Data Input'!H114*1000/(BlistersPerRetail*TabletsPerPack) ->  | C219: =VLOOKUP(A219,'Packaging EFs'!A:C,3,FALSE) ->  | D219: =IFERROR(B219*C219*$B$30*$B$31,"") ->  | E219: =LN('Data Quality Matrix'!$N$44)^2 -> 0 | F219: =LN('Data Quality Matrix'!$N$30)^2 -> 0.08270777088 | G219: =(D219/$B$205)^2 ->  | H219: =E219+F219+$C$30+$C$31 -> 3.362723926 | I219: =IFERROR(G219*H219,"") -> 
A220: ='Data Input'!G115 -> 0 | B220: ='Data Input'!H115*1000/(BlistersPerRetail*TabletsPerPack) ->  | C220: =VLOOKUP(A220,'Packaging EFs'!A:C,3,FALSE) ->  | D220: =IFERROR(B220*C220*$B$30*$B$31,"") ->  | E220: =LN('Data Quality Matrix'!$N$44)^2 -> 0 | F220: =LN('Data Quality Matrix'!$N$30)^2 -> 0.08270777088 | G220: =(D220/$B$205)^2 ->  | H220: =E220+F220+$C$30+$C$31 -> 3.362723926 | I220: =IFERROR(G220*H220,"") -> 
A221: ='Data Input'!G116 -> 0 | B221: ='Data Input'!H116*1000/(BlistersPerRetail*TabletsPerPack) ->  | C221: =VLOOKUP(A221,'Packaging EFs'!A:C,3,FALSE) ->  | D221: =IFERROR(B221*C221*$B$30*$B$31,"") ->  | E221: =LN('Data Quality Matrix'!$N$44)^2 -> 0 | F221: =LN('Data Quality Matrix'!$N$30)^2 -> 0.08270777088 | G221: =(D221/$B$205)^2 ->  | H221: =E221+F221+$C$30+$C$31 -> 3.362723926 | I221: =IFERROR(G221*H221,"") -> 
A223: Outer Box emissions per tablet
A225: Material | B225: Weight (mg per tablet) | C225: Emission Factor (kg CO2e/kg material) | D225: Emissions including wastage (mg CO2e per tablet) | E225: (ln UA)2 | F225: (ln UEF)2 | G225: S2 | H225: (ln UE)2 | I225: S2 x (ln UE)2
A226: ='Data Input'!G118 -> 0 | B226: =('Data Input'!H118*1000)/(RetailsPerOuter*BlistersPerRetail*TabletsPerPack) ->  | C226: =VLOOKUP(A226,'Packaging EFs'!A:C,3,FALSE) ->  | D226: =IFERROR(B226*C226*$B$30*$B$31,"") ->  | E226: =LN('Data Quality Matrix'!$N$44)^2 -> 0 | F226: =LN('Data Quality Matrix'!$N$30)^2 -> 0.08270777088 | G226: =(D226/$B$205)^2 ->  | H226: =E226+F226+$C$30+$C$31 -> 3.362723926 | I226: =IFERROR(G226*H226,"") -> 
A227: ='Data Input'!G119 -> 0 | B227: =('Data Input'!H119*1000)/(RetailsPerOuter*BlistersPerRetail*TabletsPerPack) ->  | C227: =VLOOKUP(A227,'Packaging EFs'!A:C,3,FALSE) ->  | D227: =IFERROR(B227*C227*$B$30*$B$31,"") ->  | E227: =LN('Data Quality Matrix'!$N$44)^2 -> 0 | F227: =LN('Data Quality Matrix'!$N$30)^2 -> 0.08270777088 | G227: =(D227/$B$205)^2 ->  | H227: =E227+F227+$C$30+$C$31 -> 3.362723926 | I227: =IFERROR(G227*H227,"") -> 
A232: FORMULATION EMISSIONS
A233: NEED TO CHECK WHETHER ELECTRICIY EMISSION FACTORS ALREADY INCLUDE EFFECT OF WASTAGE?
A234: Formulation Summary:
A236: Total emissions (mg CO2e per tablet): | B236: =C245+C250+IF(FormulationNumber=1,0,C259+C264) -> 
A237: Σ Si2 x (ln Ui)2 | B237: =H245+H250+IF(FormulationNumber=1,0,H259+H264) -> 
A238: Effect of waste (mg CO2e per tablet): | B238: =B252+IF(FormulationNumber=1,0,B266) -> 
A240: Formulation Site 1
A242: Electricity
A244: Electricity Use (kWh per tablet) | B244: Electricity emission factor (kg CO2(e)/kWh) | C244: Emissions (mg CO2e per tablet) | D244: (ln UA)2 | E244: (ln UEF)2 | F244: S2 | G244: (ln UE)2 | H244: S2 x (ln UE)2
A245: =('Reference Data'!$B$22*'Calculation sheet'!$B$9)/1000000 -> 0 | B245: =VLOOKUP(FormSite1Country,ElectricityFactors,2,FALSE) ->  | C245: =B245*A245*$B$27*$B$29*$B$31*1000000 ->  | D245: =LN('Data Quality Matrix'!$N$40)^2 -> 0.08032729076 | E245: =LN('Data Quality Matrix'!$N$31)^2 -> 0.01146451049 | F245: =(C245/$B$236)^2 ->  | G245: =D245+E245+$D$27+$D$29+$D$31 -> 0.8259795352 | H245: =F245*G245 -> 
A247: Gas
A249: Gas Use (kWh per tablet) | B249: Gas emission factor (kg CO2(e)/kWh) | C249: Emissions (mg CO2e per tablet) | D249: (ln UA)2 | E249: (ln UEF)2 | F249: S2 | G249: (ln UE)2 | H249: S2 x (ln UE)2
A250: =('Reference Data'!$B$23*'Calculation sheet'!$B$9)/1000000 -> 0 | B250: =VLOOKUP(VLOOKUP(FormSite1Country,'Typical heat sources'!A:D,4,FALSE),FuelReferenceDatabase,3,FALSE) ->  | C250: =B250*A250*$B$27*$B$29*$B$31*1000000 ->  | D250: =LN('Data Quality Matrix'!$N$41)^2 -> 0.08032729076 | E250: =LN('Data Quality Matrix'!$N$32)^2 -> 0.02094068492 | F250: =(C250/$B$236)^2 ->  | G250: =D250+E250+$D$27+$D$29+$D$31 -> 0.8354557096 | H250: =F250*G250 -> 
A252: Effect of waste (mg CO2e per tablet): | B252: =(C245+C250)*$B$39 -> 
A254: Formulation Site 2
A256: Electricity
A258: Electricity Use (kWh per tablet) | B258: Electricity emission factor (kg CO2(e)/kWh) | C258: Emissions (mg CO2e per tablet) | D258: (ln UA)2 | E258: (ln(UEF))2 | F258: S2 | G258: (ln UE)2 | H258: S2 x (ln UE)2
A259: =('Reference Data'!$B$22*$B$12)/1000000 -> 0 | B259: =VLOOKUP(FormSite2Country,ElectricityFactors,2,FALSE) ->  | C259: =B259*A259*$B$27*$B$29*$B$31*1000000 ->  | D259: =LN('Data Quality Matrix'!$N$40)^2 -> 0.08032729076 | E259: =LN('Data Quality Matrix'!$N$31)^2 -> 0.01146451049 | F259: =(C259/$B$236)^2 ->  | G259: =D259+E259+$D$27+$D$29+$D$31 -> 0.8259795352 | H259: =F259*G259 -> 
A261: Gas
A263: Gas Use (kWh per tablet) | B263: Gas emission factor (kg CO2(e)/kWh) | C263: Emissions (mg CO2e per tablet) | D263: (ln UA)2 | E263: (ln(UEF))2 | F263: S2 | G263: (ln UE)2 | H263: S2 x (ln UE)2
A264: =('Reference Data'!$B$23*$B$12)/1000000 -> 0 | B264: =VLOOKUP(VLOOKUP(FormSite2Country,'Typical heat sources'!A:D,4,FALSE),FuelReferenceDatabase,3,FALSE) ->  | C264: =B264*A264*$B$27*$B$29*$B$31*1000000 ->  | D264: =LN('Data Quality Matrix'!$N$41)^2 -> 0.08032729076 | E264: =LN('Data Quality Matrix'!$N$32)^2 -> 0.02094068492 | F264: =(C264/$B$236)^2 ->  | G264: =D264+E264+$D$27+$D$29+$D$31 -> 0.8354557096 | H264: =F264*G264 -> 
A266: Effect of waste (mg CO2e per tablet): | B266: =(C259+C264)*$B$40 -> 
A268: PACKAGING PROCESS EMISSIONS
A269: Packaging Process Summary:
A271: Total emissions (mg CO2e per tablet): | B271: =C278+C283 -> 
A272: Σ Si2 x (ln Ui)2 | B272: =H278+H283 -> 
A273: Effect of waste (mg CO2e per tablet): | B273: =B285 -> 
A275: Electricity
A277: Electricity Use (kWh per tablet) | B277: Electricity emission factor (kg CO2(e)/kWh) | C277: Emissions (mg CO2e per tablet) | D277: (ln UA)2 | E277: (ln UEF)2 | F277: S2 | G277: (ln UE)2 | H277: S2 x (ln UE)2
A278: =('Reference Data'!$B$27*'Calculation sheet'!$B$9)/1000000 -> 0 | B278: =VLOOKUP(PackagingCountry,ElectricityFactors,2,FALSE) ->  | C278: =B278*A278*$B$27*$B$29*$B$31*1000000 ->  | D278: =LN('Data Quality Matrix'!$N$40)^2 -> 0.08032729076 | E278: =LN('Data Quality Matrix'!$N$31)^2 -> 0.01146451049 | F278: =(C278/$B$271)^2 ->  | G278: =D278+E278+$D$27+$D$29+$D$31 -> 0.8259795352 | H278: =F278*G278 -> 
A280: Gas
A282: Gas Use (kWh per tablet) | B282: Gas emission factor (kg CO2(e)/kWh) | C282: Emissions (mg CO2e per tablet) | D282: (ln UA)2 | E282: (ln UEF)2 | F282: S2 | G282: (ln UE)2 | H282: S2 x (ln UE)2
A283: =('Reference Data'!$B$28*'Calculation sheet'!$B$9)/1000000 -> 0 | B283: =VLOOKUP(VLOOKUP(PackagingCountry,'Typical heat sources'!A:D,4,FALSE),FuelReferenceDatabase,3,FALSE) ->  | C283: =B283*A283*$B$27*$B$29*$B$31*1000000 ->  | D283: =LN('Data Quality Matrix'!$N$41)^2 -> 0.08032729076 | E283: =LN('Data Quality Matrix'!$N$32)^2 -> 0.02094068492 | F283: =(C283/$B$271)^2 ->  | G283: =D283+E283+$D$27+$D$29+$D$31 -> 0.8354557096 | H283: =F283*G283 -> 
A285: Effect of waste (mg CO2e per tablet): | B285: =(C278+C283)*$B$39 -> 
A287: TRANSPORT EMISSIONS
A290: APIs - TRANSPORT TO FORMULATION SITES
A292: Formulation site 1
B294: Weight (mg) | C294: Emissions per tablet (mg CO2e) | F294: S2
C295: Air | D295: Sea | E295: Road | F295: Air | G295: Sea | H295: Road
A296: API1 | B296: =API1Site1Weight*$B$27*$B$29*$B$31 -> 0 | C296: =IF(ISERROR($B296*VLOOKUP('Data Input'!I73,Air_EF,2,FALSE)),0,$B296*VLOOKUP('Data Input'!I73,Air_EF,2,FALSE)) -> 0 | D296: =IF(ISERROR($B296*VLOOKUP('Data Input'!J73,Sea_EF,2,FALSE)),0,$B296*VLOOKUP('Data Input'!J73,Sea_EF,2,FALSE)) -> 0 | E296: =IF(ISERROR($B296*VLOOKUP('Data Input'!K73,Road_EF,2,FALSE)),0,$B296*VLOOKUP('Data Input'!K73,Road_EF,2,FALSE)) -> 0 | F296: =IFERROR((C296/$B$305)^2,0) -> 0 | G296: =IFERROR((D296/$B$305)^2,0) -> 0 | H296: 0
A297: API2 | B297: =API2Site1Weight*$B$27*$B$29*$B$31 -> 0 | C297: =IF(ISERROR($B297*VLOOKUP('Data Input'!I74,Air_EF,2,FALSE)),0,$B297*VLOOKUP('Data Input'!I74,Air_EF,2,FALSE)) -> 0 | D297: =IF(ISERROR($B297*VLOOKUP('Data Input'!J74,Sea_EF,2,FALSE)),0,$B297*VLOOKUP('Data Input'!J74,Sea_EF,2,FALSE)) -> 0 | E297: =IF(ISERROR($B297*VLOOKUP('Data Input'!K74,Road_EF,2,FALSE)),0,$B297*VLOOKUP('Data Input'!K74,Road_EF,2,FALSE)) -> 0 | F297: =IFERROR((C297/$B$305)^2,0) -> 0 | G297: 0 | H297: 0
A298: API3 | B298: =API3Site1Weight*$B$27*$B$29*$B$31 -> 0 | C298: =IF(ISERROR($B298*VLOOKUP('Data Input'!I75,Air_EF,2,FALSE)),0,$B298*VLOOKUP('Data Input'!I75,Air_EF,2,FALSE)) -> 0 | D298: =IF(ISERROR($B298*VLOOKUP('Data Input'!J75,Sea_EF,2,FALSE)),0,$B298*VLOOKUP('Data Input'!J75,Sea_EF,2,FALSE)) -> 0 | E298: =IF(ISERROR($B298*VLOOKUP('Data Input'!K75,Road_EF,2,FALSE)),0,$B298*VLOOKUP('Data Input'!K75,Road_EF,2,FALSE)) -> 0 | F298: 0 | G298: 0 | H298: 0
B300: (ln UE)2 | C300: Σ(S2 x (ln UE)2)
... 168 more rows

Sheet Sheet2 (hidden)
A2: API | B2: ='Calculation sheet'!D48 -> 0 | C2: =B2*SQRT('Calculation sheet'!F48)-B2 -> 
A3: Excipients | B3: ='Calculation sheet'!D49 -> 0 | C3: =B3*SQRT('Calculation sheet'!F49)-B3 -> 
A4: Packaging | B4: ='Calculation sheet'!D50 ->  | C4: =B4*SQRT('Calculation sheet'!F50)-B4 -> 
A5: Energy | B5: ='Calculation sheet'!D52 ->  | C5: =B5*SQRT('Calculation sheet'!F51)-B5 -> 
A6: In-bound Transport | B6: ='Calculation sheet'!D53 -> 0 | C6: =B6*SQRT('Calculation sheet'!F53)-B6 -> 
A7: Energy | B7: ='Calculation sheet'!D56 ->  | C7: =B7*SQRT('Calculation sheet'!F56)-B7 -> 
A8: In-bound Transport | B8: ='Calculation sheet'!D57 -> 0 | C8: =B8*SQRT('Calculation sheet'!F57)-B8 -> 
A9: Waste | B9: ='Calculation sheet'!D58 ->  | C9: =B9*SQRT('Calculation sheet'!F58)-B9 -> 
A10: RDC | B10: ='Calculation sheet'!D60 ->  | C10: =B10*SQRT('Calculation sheet'!F60)-B10 -> 
A11: Transport | B11: ='Calculation sheet'!D61 ->  | C11: =B11*SQRT('Calculation sheet'!F61)-B11 ->  | M11: Average | N11: =AVERAGE(N16:N777) -> 
A12: Waste | B12: ='Calculation sheet'!D62 ->  | C12: =B12*SQRT('Calculation sheet'!F62)-B12 ->  | M12: St Dev | N12: =STDEV(N16:N777) -> 
A13: End of Life | B13: ='Calculation sheet'!D67 ->  | C13: =B13*SQRT('Calculation sheet'!F67)-B13 ->  | M13: Approx. U | N13: =1+(2*N12/N11) -> 
B15: API | C15: Excipients | D15: Packaging | E15: Energy | F15: In-bound Transport | G15: Energy | H15: In-bound Transport | I15: Waste | J15: RDC | K15: Transport | L15: Waste | M15: End of Life | N15: Total
B16: =_xlfn.NORM.INV(RAND(),$B$2,$C$2) ->  | C16: =_xlfn.NORM.INV(RAND(),$B$3,$C$3) ->  | D16: =_xlfn.NORM.INV(RAND(),$B$4,$C$4) ->  | E16: =_xlfn.NORM.INV(RAND(),$B$5,$C$5) ->  | F16: =_xlfn.NORM.INV(RAND(),$B$6,$C$6) ->  | G16: =_xlfn.NORM.INV(RAND(),$B$7,$C$7) ->  | H16: =_xlfn.NORM.INV(RAND(),$B$8,$C$8) ->  | I16: =_xlfn.NORM.INV(RAND(),$B$9,$C$9) ->  | J16: =_xlfn.NORM.INV(RAND(),$B$10,$C$10) ->  | K16: =_xlfn.NORM.INV(RAND(),$B$11,$C$11) ->  | L16: =_xlfn.NORM.INV(RAND(),$B$12,$C$12) ->  | M16: =_xlfn.NORM.INV(RAND(),$B$13,$C$13) ->  | N16: =SUM(B16:M16) -> 
B17: =_xlfn.NORM.INV(RAND(),$B$2,$C$2) ->  | C17: =_xlfn.NORM.INV(RAND(),$B$3,$C$3) ->  | D17: =_xlfn.NORM.INV(RAND(),$B$4,$C$4) ->  | E17: =_xlfn.NORM.INV(RAND(),$B$5,$C$5) ->  | F17: =_xlfn.NORM.INV(RAND(),$B$6,$C$6) ->  | G17: =_xlfn.NORM.INV(RAND(),$B$7,$C$7) ->  | H17: =_xlfn.NORM.INV(RAND(),$B$8,$C$8) ->  | I17: =_xlfn.NORM.INV(RAND(),$B$9,$C$9) ->  | J17: =_xlfn.NORM.INV(RAND(),$B$10,$C$10) ->  | K17: =_xlfn.NORM.INV(RAND(),$B$11,$C$11) ->  | L17: =_xlfn.NORM.INV(RAND(),$B$12,$C$12) ->  | M17: =_xlfn.NORM.INV(RAND(),$B$13,$C$13) ->  | N17: =SUM(B17:M17) -> 
B81: =_xlfn.NORM.INV(RAND(),$B$2,$C$2) ->  | C81: =_xlfn.NORM.INV(RAND(),$B$3,$C$3) ->  | D81: =_xlfn.NORM.INV(RAND(),$B$4,$C$4) ->  | E81: =_xlfn.NORM.INV(RAND(),$B$5,$C$5) ->  | F81: =_xlfn.NORM.INV(RAND(),$B$6,$C$6) ->  | G81: =_xlfn.NORM.INV(RAND(),$B$7,$C$7) ->  | H81: =_xlfn.NORM.INV(RAND(),$B$8,$C$8) ->  | I81: =_xlfn.NORM.INV(RAND(),$B$9,$C$9) ->  | J81: =_xlfn.NORM.INV(RAND(),$B$10,$C$10) ->  | K81: =_xlfn.NORM.INV(RAND(),$B$11,$C$11) ->  | L81: =_xlfn.NORM.INV(RAND(),$B$12,$C$12) ->  | M81: =_xlfn.NORM.INV(RAND(),$B$13,$C$13) ->  | N81: =SUM(B81:M81) -> 
B145: =_xlfn.NORM.INV(RAND(),$B$2,$C$2) ->  | C145: =_xlfn.NORM.INV(RAND(),$B$3,$C$3) ->  | D145: =_xlfn.NORM.INV(RAND(),$B$4,$C$4) ->  | E145: =_xlfn.NORM.INV(RAND(),$B$5,$C$5) ->  | F145: =_xlfn.NORM.INV(RAND(),$B$6,$C$6) ->  | G145: =_xlfn.NORM.INV(RAND(),$B$7,$C$7) ->  | H145: =_xlfn.NORM.INV(RAND(),$B$8,$C$8) ->  | I145: =_xlfn.NORM.INV(RAND(),$B$9,$C$9) ->  | J145: =_xlfn.NORM.INV(RAND(),$B$10,$C$10) ->  | K145: =_xlfn.NORM.INV(RAND(),$B$11,$C$11) ->  | L145: =_xlfn.NORM.INV(RAND(),$B$12,$C$12) ->  | M145: =_xlfn.NORM.INV(RAND(),$B$13,$C$13) ->  | N145: =SUM(B145:M145) -> 
B209: =_xlfn.NORM.INV(RAND(),$B$2,$C$2) ->  | C209: =_xlfn.NORM.INV(RAND(),$B$3,$C$3) ->  | D209: =_xlfn.NORM.INV(RAND(),$B$4,$C$4) ->  | E209: =_xlfn.NORM.INV(RAND(),$B$5,$C$5) ->  | F209: =_xlfn.NORM.INV(RAND(),$B$6,$C$6) ->  | G209: =_xlfn.NORM.INV(RAND(),$B$7,$C$7) ->  | H209: =_xlfn.NORM.INV(RAND(),$B$8,$C$8) ->  | I209: =_xlfn.NORM.INV(RAND(),$B$9,$C$9) ->  | J209: =_xlfn.NORM.INV(RAND(),$B$10,$C$10) ->  | K209: =_xlfn.NORM.INV(RAND(),$B$11,$C$11) ->  | L209: =_xlfn.NORM.INV(RAND(),$B$12,$C$12) ->  | M209: =_xlfn.NORM.INV(RAND(),$B$13,$C$13) ->  | N209: =SUM(B209:M209) -> 
B273: =_xlfn.NORM.INV(RAND(),$B$2,$C$2) ->  | C273: =_xlfn.NORM.INV(RAND(),$B$3,$C$3) ->  | D273: =_xlfn.NORM.INV(RAND(),$B$4,$C$4) ->  | E273: =_xlfn.NORM.INV(RAND(),$B$5,$C$5) ->  | F273: =_xlfn.NORM.INV(RAND(),$B$6,$C$6) ->  | G273: =_xlfn.NORM.INV(RAND(),$B$7,$C$7) ->  | H273: =_xlfn.NORM.INV(RAND(),$B$8,$C$8) ->  | I273: =_xlfn.NORM.INV(RAND(),$B$9,$C$9) ->  | J273: =_xlfn.NORM.INV(RAND(),$B$10,$C$10) ->  | K273: =_xlfn.NORM.INV(RAND(),$B$11,$C$11) ->  | L273: =_xlfn.NORM.INV(RAND(),$B$12,$C$12) ->  | M273: =_xlfn.NORM.INV(RAND(),$B$13,$C$13) ->  | N273: =SUM(B273:M273) -> 
B337: =_xlfn.NORM.INV(RAND(),$B$2,$C$2) ->  | C337: =_xlfn.NORM.INV(RAND(),$B$3,$C$3) ->  | D337: =_xlfn.NORM.INV(RAND(),$B$4,$C$4) ->  | E337: =_xlfn.NORM.INV(RAND(),$B$5,$C$5) ->  | F337: =_xlfn.NORM.INV(RAND(),$B$6,$C$6) ->  | G337: =_xlfn.NORM.INV(RAND(),$B$7,$C$7) ->  | H337: =_xlfn.NORM.INV(RAND(),$B$8,$C$8) ->  | I337: =_xlfn.NORM.INV(RAND(),$B$9,$C$9) ->  | J337: =_xlfn.NORM.INV(RAND(),$B$10,$C$10) ->  | K337: =_xlfn.NORM.INV(RAND(),$B$11,$C$11) ->  | L337: =_xlfn.NORM.INV(RAND(),$B$12,$C$12) ->  | M337: =_xlfn.NORM.INV(RAND(),$B$13,$C$13) ->  | N337: =SUM(B337:M337) -> 
B401: =_xlfn.NORM.INV(RAND(),$B$2,$C$2) ->  | C401: =_xlfn.NORM.INV(RAND(),$B$3,$C$3) ->  | D401: =_xlfn.NORM.INV(RAND(),$B$4,$C$4) ->  | E401: =_xlfn.NORM.INV(RAND(),$B$5,$C$5) ->  | F401: =_xlfn.NORM.INV(RAND(),$B$6,$C$6) ->  | G401: =_xlfn.NORM.INV(RAND(),$B$7,$C$7) ->  | H401: =_xlfn.NORM.INV(RAND(),$B$8,$C$8) ->  | I401: =_xlfn.NORM.INV(RAND(),$B$9,$C$9) ->  | J401: =_xlfn.NORM.INV(RAND(),$B$10,$C$10) ->  | K401: =_xlfn.NORM.INV(RAND(),$B$11,$C$11) ->  | L401: =_xlfn.NORM.INV(RAND(),$B$12,$C$12) ->  | M401: =_xlfn.NORM.INV(RAND(),$B$13,$C$13) ->  | N401: =SUM(B401:M401) -> 
B465: =_xlfn.NORM.INV(RAND(),$B$2,$C$2) ->  | C465: =_xlfn.NORM.INV(RAND(),$B$3,$C$3) ->  | D465: =_xlfn.NORM.INV(RAND(),$B$4,$C$4) ->  | E465: =_xlfn.NORM.INV(RAND(),$B$5,$C$5) ->  | F465: =_xlfn.NORM.INV(RAND(),$B$6,$C$6) ->  | G465: =_xlfn.NORM.INV(RAND(),$B$7,$C$7) ->  | H465: =_xlfn.NORM.INV(RAND(),$B$8,$C$8) ->  | I465: =_xlfn.NORM.INV(RAND(),$B$9,$C$9) ->  | J465: =_xlfn.NORM.INV(RAND(),$B$10,$C$10) ->  | K465: =_xlfn.NORM.INV(RAND(),$B$11,$C$11) ->  | L465: =_xlfn.NORM.INV(RAND(),$B$12,$C$12) ->  | M465: =_xlfn.NORM.INV(RAND(),$B$13,$C$13) ->  | N465: =SUM(B465:M465) -> 
B529: =_xlfn.NORM.INV(RAND(),$B$2,$C$2) ->  | C529: =_xlfn.NORM.INV(RAND(),$B$3,$C$3) ->  | D529: =_xlfn.NORM.INV(RAND(),$B$4,$C$4) ->  | E529: =_xlfn.NORM.INV(RAND(),$B$5,$C$5) ->  | F529: =_xlfn.NORM.INV(RAND(),$B$6,$C$6) ->  | G529: =_xlfn.NORM.INV(RAND(),$B$7,$C$7) ->  | H529: =_xlfn.NORM.INV(RAND(),$B$8,$C$8) ->  | I529: =_xlfn.NORM.INV(RAND(),$B$9,$C$9) ->  | J529: =_xlfn.NORM.INV(RAND(),$B$10,$C$10) ->  | K529: =_xlfn.NORM.INV(RAND(),$B$11,$C$11) ->  | L529: =_xlfn.NORM.INV(RAND(),$B$12,$C$12) ->  | M529: =_xlfn.NORM.INV(RAND(),$B$13,$C$13) ->  | N529: =SUM(B529:M529) -> 
B593: =_xlfn.NORM.INV(RAND(),$B$2,$C$2) ->  | C593: =_xlfn.NORM.INV(RAND(),$B$3,$C$3) ->  | D593: =_xlfn.NORM.INV(RAND(),$B$4,$C$4) ->  | E593: =_xlfn.NORM.INV(RAND(),$B$5,$C$5) ->  | F593: =_xlfn.NORM.INV(RAND(),$B$6,$C$6) ->  | G593: =_xlfn.NORM.INV(RAND(),$B$7,$C$7) ->  | H593: =_xlfn.NORM.INV(RAND(),$B$8,$C$8) ->  | I593: =_xlfn.NORM.INV(RAND(),$B$9,$C$9) ->  | J593: =_xlfn.NORM.INV(RAND(),$B$10,$C$10) ->  | K593: =_xlfn.NORM.INV(RAND(),$B$11,$C$11) ->  | L593: =_xlfn.NORM.INV(RAND(),$B$12,$C$12) ->  | M593: =_xlfn.NORM.INV(RAND(),$B$13,$C$13) ->  | N593: =SUM(B593:M593) -> 
B657: =_xlfn.NORM.INV(RAND(),$B$2,$C$2) ->  | C657: =_xlfn.NORM.INV(RAND(),$B$3,$C$3) ->  | D657: =_xlfn.NORM.INV(RAND(),$B$4,$C$4) ->  | E657: =_xlfn.NORM.INV(RAND(),$B$5,$C$5) ->  | F657: =_xlfn.NORM.INV(RAND(),$B$6,$C$6) ->  | G657: =_xlfn.NORM.INV(RAND(),$B$7,$C$7) ->  | H657: =_xlfn.NORM.INV(RAND(),$B$8,$C$8) ->  | I657: =_xlfn.NORM.INV(RAND(),$B$9,$C$9) ->  | J657: =_xlfn.NORM.INV(RAND(),$B$10,$C$10) ->  | K657: =_xlfn.NORM.INV(RAND(),$B$11,$C$11) ->  | L657: =_xlfn.NORM.INV(RAND(),$B$12,$C$12) ->  | M657: =_xlfn.NORM.INV(RAND(),$B$13,$C$13) ->  | N657: =SUM(B657:M657) -> 
B721: =_xlfn.NORM.INV(RAND(),$B$2,$C$2) ->  | C721: =_xlfn.NORM.INV(RAND(),$B$3,$C$3) ->  | D721: =_xlfn.NORM.INV(RAND(),$B$4,$C$4) ->  | E721: =_xlfn.NORM.INV(RAND(),$B$5,$C$5) ->  | F721: =_xlfn.NORM.INV(RAND(),$B$6,$C$6) ->  | G721: =_xlfn.NORM.INV(RAND(),$B$7,$C$7) ->  | H721: =_xlfn.NORM.INV(RAND(),$B$8,$C$8) ->  | I721: =_xlfn.NORM.INV(RAND(),$B$9,$C$9) ->  | J721: =_xlfn.NORM.INV(RAND(),$B$10,$C$10) ->  | K721: =_xlfn.NORM.INV(RAND(),$B$11,$C$11) ->  | L721: =_xlfn.NORM.INV(RAND(),$B$12,$C$12) ->  | M721: =_xlfn.NORM.INV(RAND(),$B$13,$C$13) ->  | N721: =SUM(B721:M721) -> 

Sheet Data Quality Matrix (hidden)
A1: Pedigree Matrix
B2: Data Quality Criteria | F2: API Data Quality Criteria
A3: Data Quality Indicators | B3: Very Good | C3: Good | D3: Fair | E3: Poor | F3: Very Good | G3: Good | H3: Fair | I3: Poor
A4: Precision | B4: 1 | C4: 1.1 | D4: 1.2 | E4: 1.5 | F4: 1 | G4: 1.5 | H4: 2.2 | I4: 3.5
A5: Completeness | B5: 1 | C5: 1.05 | D5: 1.1 | E5: 1.2 | F5: 1 | G5: 1.5 | H5: 2 | I5: 3
A6: Temporal Representativeness | B6: 1 | C6: 1.1 | D6: 1.2 | E6: 1.5 | F6: 1 | G6: 1.1 | H6: 1.2 | I6: 1.5
A7: Geographical Representativeness | B7: 1 | C7: 1.02 | D7: 1.05 | E7: 1.1 | F7: 1 | G7: 1.02 | H7: 1.05 | I7: 1.1
A8: Technological Representativenss | B8: 1 | C8: 1.2 | D8: 1.5 | E8: 2 | F8: 1 | G8: 1.5 | H8: 2 | I8: 3
A11: Basic Uncertainty Factors by Process Type
A12: Combustion Process | B12: 1.05
A13: Thermal Energy | B13: 1.05
A14: Electricity | B14: 1.05
A15: Industrial Products | B15: 1.05
A16: Agricultural Products | B16: 2
A17: Transport Services | B17: 2
A18: Infrastructure | B18: 3
A19: Direct emissions, CO2 | B19: 1.05
A20: Direct emissions, Other GHGs | B20: 1.5
A21: API | B21: 1.5
A22: Activity Data | B22: 1
B25: Pedigree | H25: (ln(U))2 | N25: U Total
B26: Precision | C26: Completeness | D26: Temporal representativeness | E26: Geographical representativeness | F26: Technological representativeness | G26: Basic | H26: Precision | I26: Completeness | J26: Temporal representativeness | K26: Geographical representativeness | L26: Technological representativeness | M26: Basic
A27: Average API EF | B27: Poor | C27: Fair | D27: Fair | E27: Poor | F27: Poor | G27: API | H27: =LN(HLOOKUP(B27,$F$3:$I$8,2,FALSE))^2 -> 1.569415055 | I27: =LN(HLOOKUP(C27,$F$3:$I$8,3,FALSE))^2 -> 0.4804530139 | J27: =LN(HLOOKUP(D27,$F$3:$I$8,4,FALSE))^2 -> 0.03324115007 | K27: =LN(HLOOKUP(E27,$F$3:$I$8,5,FALSE))^2 -> 0.009084030374 | L27: =LN(HLOOKUP(F27,$F$3:$I$8,6,FALSE))^2 -> 1.206948961 | M27: =LN(VLOOKUP(G27,$A$12:$B$22,2,FALSE))^2 -> 0.1644019539 | N27: =EXP(SQRT(SUM(H27:M27))) -> 6.430549267
A28: H,M,L API EF | B28: Poor | C28: Fair | D28: Fair | E28: Poor | F28: Fair | G28: API | H28: =LN(HLOOKUP(B28,$F$3:$I$8,2,FALSE))^2 -> 1.569415055 | I28: =LN(HLOOKUP(C28,$F$3:$I$8,3,FALSE))^2 -> 0.4804530139 | J28: =LN(HLOOKUP(D28,$F$3:$I$8,4,FALSE))^2 -> 0.03324115007 | K28: =LN(HLOOKUP(E28,$F$3:$I$8,5,FALSE))^2 -> 0.009084030374 | L28: =LN(HLOOKUP(F28,$F$3:$I$8,6,FALSE))^2 -> 0.4804530139 | M28: =LN(VLOOKUP(G28,$A$12:$B$22,2,FALSE))^2 -> 0.1644019539 | N28: 5.229955016
A29: Default Excipient EF (not used) | B29: Poor | C29: Fair | D29: Fair | E29: Fair | F29: Good | G29: Industrial Products | H29: =LN(HLOOKUP(B29,$B$3:$E$8,2,FALSE))^2 -> 0.1644019539 | I29: =LN(HLOOKUP(C29,$B$3:$E$8,3,FALSE))^2 -> 0.009084030374 | J29: =LN(HLOOKUP(D29,$B$3:$E$8,4,FALSE))^2 -> 0.03324115007 | K29: =LN(HLOOKUP(E29,$B$3:$E$8,5,FALSE))^2 -> 0.00238048012 | L29: =LN(HLOOKUP(F29,$B$3:$E$8,6,FALSE))^2 -> 0.03324115007 | M29: =LN(VLOOKUP(G29,$A$12:$B$22,2,FALSE))^2 -> 0.00238048012 | N29: 1.640008077
A30: Packaging EF | B30: Fair | C30: Good | D30: Good | E30: Fair | F30: Good | G30: Industrial Products | H30: 0.03324115007 | I30: 0.00238048012 | J30: 0.009084030374 | K30: 0.00238048012 | L30: 0.03324115007 | M30: 0.00238048012 | N30: 1.333210026
A31: Electricity EF | B31: Very Good | C31: Very Good | D31: Good | E31: Very Good | F31: Very Good | G31: Electricity | H31: 0 | I31: 0 | J31: 0.009084030374 | K31: 0 | L31: 0 | M31: 0.00238048012 | N31: 1.113014894
A32: Gas EF | B32: Good | C32: Very Good | D32: Good | E32: Good | F32: Very Good | G32: Thermal Energy | H32: 0.009084030374 | I32: 0 | J32: 0.009084030374 | K32: 0.0003921440478 | L32: 0 | M32: 0.00238048012 | N32: 1.155703173
A33: Road Transport EF | B33: Good | C33: Good | D33: Good | E33: Good | F33: Good | G33: Transport Services | H33: 0.009084030374 | I33: 0.00238048012 | J33: 0.009084030374 | K33: 0.0003921440478 | L33: 0.03324115007 | M33: 0.4804530139 | N33: 2.077545787
A34: Sea Transport EF | B34: Good | C34: Good | D34: Good | E34: Good | F34: Good | G34: Transport Services | H34: 0.009084030374 | I34: 0.00238048012 | J34: 0.009084030374 | K34: 0.0003921440478 | L34: 0.03324115007 | M34: 0.4804530139 | N34: 2.077545787
A35: Air Transport EF | B35: Good | C35: Good | D35: Good | E35: Good | F35: Good | G35: Transport Services | H35: 0.009084030374 | I35: 0.00238048012 | J35: 0.009084030374 | K35: 0.0003921440478 | L35: 0.03324115007 | M35: 0.4804530139 | N35: 2.077545787
A36: Packaging Material EF | B36: Good | C36: Good | D36: Good | E36: Fair | F36: Good | G36: Industrial Products | H36: 0.009084030374 | I36: 0.00238048012 | J36: 0.009084030374 | K36: 0.00238048012 | L36: 0.03324115007 | M36: 0.00238048012 | N36: 1.27375906
A37: Use Phasre Material EF | B37: Fair | C37: Good | D37: Good | E37: Fair | F37: Fair | G37: Industrial Products | H37: =LN(HLOOKUP(B37,$B$3:$E$8,2,FALSE))^2 -> 0.03324115007 | I37: =LN(HLOOKUP(C37,$B$3:$E$8,3,FALSE))^2 -> 0.00238048012 | J37: =LN(HLOOKUP(D37,$B$3:$E$8,4,FALSE))^2 -> 0.009084030374 | K37: =LN(HLOOKUP(E37,$B$3:$E$8,5,FALSE))^2 -> 0.00238048012 | L37: =LN(HLOOKUP(F37,$B$3:$E$8,6,FALSE))^2 -> 0.1644019539 | M37: =LN(VLOOKUP(G37,$A$12:$B$22,2,FALSE))^2 -> 0.00238048012 | N37: =EXP(SQRT(SUM(H37:M37))) -> 1.587974442
A39: Transport Distance | B39: Poor | C39: Fair | D39: Very Good | E39: Fair | F39: Good | G39: Activity Data | H39: =LN(HLOOKUP(B39,$B$3:$E$8,2,FALSE))^2 -> 0.1644019539 | I39: =LN(HLOOKUP(C39,$B$3:$E$8,3,FALSE))^2 -> 0.009084030374 | J39: =LN(HLOOKUP(D39,$B$3:$E$8,4,FALSE))^2 -> 0 | K39: =LN(HLOOKUP(E39,$B$3:$E$8,5,FALSE))^2 -> 0.00238048012 | L39: =LN(HLOOKUP(F39,$B$3:$E$8,6,FALSE))^2 -> 0.03324115007 | M39: 0 | N39: =EXP(SQRT(SUM(H39:M39))) -> 1.579775677
A40: Electricity Process | B40: Fair | C40: Good | D40: Good | E40: Fair | F40: Good | G40: Activity Data | H40: 0.03324115007 | I40: 0.00238048012 | J40: 0.009084030374 | K40: 0.00238048012 | L40: 0.03324115007 | M40: 0 | N40: 1.327663587
A41: Gas Process | B41: Fair | C41: Good | D41: Good | E41: Fair | F41: Good | G41: Activity Data | H41: 0.03324115007 | I41: 0.00238048012 | J41: 0.009084030374 | K41: 0.00238048012 | L41: 0.03324115007 | M41: 0 | N41: 1.327663587
A42: Waste Transport | B42: Fair | C42: Fair | D42: Fair | E42: Fair | F42: Fair | G42: Activity Data | H42: 0.03324115007 | I42: 0.009084030374 | J42: 0.03324115007 | K42: 0.00238048012 | L42: 0.1644019539 | M42: 0 | N42: 1.636057378
A43: Default Packaging - mass | B43: Fair | C43: Fair | D43: Good | E43: Fair | F43: Fair | G43: Activity Data | H43: 0.03324115007 | I43: 0.009084030374 | J43: 0.009084030374 | K43: 0.00238048012 | L43: 0.1644019539 | M43: 0 | N43: 1.595376702
A44: User defined packaging - mass | B44: Very Good | C44: Very Good | D44: Very Good | E44: Very Good | F44: Very Good | G44: Activity Data | H44: 0 | I44: 0 | J44: 0 | K44: 0 | L44: 0 | M44: 0 | N44: 1
A45: Chemical input (API and excipient) - mass | B45: Very Good | C45: Very Good | D45: Very Good | E45: Very Good | F45: Very Good | G45: Activity Data | H45: 0 | I45: 0 | J45: 0 | K45: 0 | L45: 0 | M45: 0 | N45: 1
A46: Formulation process | B46: Fair | C46: Good | D46: Good | E46: Good | F46: Good | G46: Activity Data | H46: 0.03324115007 | I46: 0.00238048012 | J46: 0.009084030374 | K46: 0.0003921440478 | L46: 0.03324115007 | M46: 0 | N46: 1.322985558
A47: Packaging process | B47: Fair | C47: Good | D47: Good | E47: Good | F47: Good | G47: Activity Data | H47: 0.03324115007 | I47: 0.00238048012 | J47: 0.009084030374 | K47: 0.0003921440478 | L47: 0.03324115007 | M47: 0 | N47: 1.322985558
A48: Distribution | B48: Fair | C48: Good | D48: Good | E48: Very Good | F48: Good | G48: Activity Data | H48: 0.03324115007 | I48: 0.00238048012 | J48: 0.009084030374 | K48: 0 | L48: 0.03324115007 | M48: 0 | N48: 1.32205793
A49: Retail | B49: Poor | C49: Fair | D49: Good | E49: Very Good | F49: Good | G49: Activity Data | H49: 0.1644019539 | I49: 0.009084030374 | J49: 0.009084030374 | K49: 0 | L49: 0.03324115007 | M49: 0 | N49: 1.591305586
A51: Wastage Rates - User Defined | B51: Good | C51: Good | D51: Good | E51: Good | F51: Good | G51: Industrial Products | H51: =LN(HLOOKUP(B51,$B$3:$E$8,2,FALSE))^2 -> 0.009084030374 | I51: =LN(HLOOKUP(C51,$B$3:$E$8,3,FALSE))^2 -> 0.00238048012 | J51: =LN(HLOOKUP(D51,$B$3:$E$8,4,FALSE))^2 -> 0.009084030374 | K51: =LN(HLOOKUP(E51,$B$3:$E$8,5,FALSE))^2 -> 0.0003921440478 | L51: =LN(HLOOKUP(F51,$B$3:$E$8,6,FALSE))^2 -> 0.03324115007 | M51: 0.00238048012 | N51: =EXP(SQRT(SUM(H51:M51))) -> 1.268491414
A52: Wastage Rates - Default | B52: Poor | C52: Fair | D52: Fair | E52: Fair | F52: Good | G52: Industrial Products | H52: =LN(HLOOKUP(B52,$B$3:$E$8,2,FALSE))^2 -> 0.1644019539 | I52: =LN(HLOOKUP(C52,$B$3:$E$8,3,FALSE))^2 -> 0.009084030374 | J52: =LN(HLOOKUP(D52,$B$3:$E$8,4,FALSE))^2 -> 0.03324115007 | K52: =LN(HLOOKUP(E52,$B$3:$E$8,5,FALSE))^2 -> 0.00238048012 | L52: =LN(HLOOKUP(F52,$B$3:$E$8,6,FALSE))^2 -> 0.03324115007 | M52: 0.00238048012 | N52: =EXP(SQRT(SUM(H52:M52))) -> 1.640008077
A54: Use | B54: Poor | C54: Fair | D54: Fair | E54: Fair | F54: Fair | G54: Activity Data | H54: =LN(HLOOKUP(B54,$B$3:$E$8,2,FALSE))^2 -> 0.1644019539 | I54: =LN(HLOOKUP(C54,$B$3:$E$8,3,FALSE))^2 -> 0.009084030374 | J54: =LN(HLOOKUP(D54,$B$3:$E$8,4,FALSE))^2 -> 0.03324115007 | K54: =LN(HLOOKUP(E54,$B$3:$E$8,5,FALSE))^2 -> 0.00238048012 | L54: =LN(HLOOKUP(F54,$B$3:$E$8,6,FALSE))^2 -> 0.1644019539 | M54: 0 | N54: =EXP(SQRT(SUM(H54:M54))) -> 1.84255702
A55: End of life | B55: Poor | C55: Poor | D55: Poor | E55: Poor | F55: Poor | G55: Activity Data | H55: =LN(HLOOKUP(B55,$B$3:$E$8,2,FALSE))^2 -> 0.1644019539 | I55: =LN(HLOOKUP(C55,$B$3:$E$8,3,FALSE))^2 -> 0.03324115007 | J55: =LN(HLOOKUP(D55,$B$3:$E$8,4,FALSE))^2 -> 0.1644019539 | K55: =LN(HLOOKUP(E55,$B$3:$E$8,5,FALSE))^2 -> 0.009084030374 | L55: =LN(HLOOKUP(F55,$B$3:$E$8,6,FALSE))^2 -> 0.4804530139 | M55: 0 | N55: =EXP(SQRT(SUM(H55:M55))) -> 2.516356601

Sheet DATA ------------> (hidden)
B2: DATA

Sheet User Defined Excipient EFs
A3: Excipient Name | B3: Default Uncertainty | C3: User Defined Emission Factor (kg CO2e/kg) | D3: Precision | E3: Completeness | F3: Temporal representativeness | G3: Geographical representativeness | H3: Technological representativeness | I3: Basic | J3: (ln(UEF))2 | K3: PLEASE SPECIFY THE DATA QUALITY INDICATORS FOR THIS EXCIPIENT
A4: Dicalcium phosphate | B4: ='Original Excipient EFs'!R2 -> 2.2975193 | J4: =IFERROR(LN(HLOOKUP(D4,'Data Quality Matrix'!$B$3:$E$8,2,0))^2+LN(HLOOKUP(E4,'Data Quality Matrix'!$B$3:$E$8,3,0))^2+LN(HLOOKUP(F4,'Data Quality Matrix'!$B$3:$E$8,4,0))^2+LN(HLOOKUP(G4,'Data Quality Matrix'!$B$3:$E$8,5,0))^2+LN(HLOOKUP(H4,'Data Quality Matrix'!$B$3:$E$8,6,0))^2+LN(VLOOKUP(I4,'Data Quality Matrix'!$A$12:$B$20,2,0))^2,"") ->  | K4: =IF(C4<>"",IF(COUNTBLANK(D4:I4)>0,$K$3,""),"") -> 
A5: Microcrystalline cellulose | B5: ='Original Excipient EFs'!R3 -> 1.628857372 | J5: =IFERROR(LN(HLOOKUP(D5,'Data Quality Matrix'!$B$3:$E$8,2,0))^2+LN(HLOOKUP(E5,'Data Quality Matrix'!$B$3:$E$8,3,0))^2+LN(HLOOKUP(F5,'Data Quality Matrix'!$B$3:$E$8,4,0))^2+LN(HLOOKUP(G5,'Data Quality Matrix'!$B$3:$E$8,5,0))^2+LN(HLOOKUP(H5,'Data Quality Matrix'!$B$3:$E$8,6,0))^2+LN(VLOOKUP(I5,'Data Quality Matrix'!$A$12:$B$20,2,0))^2,"") ->  | K5: =IF(C5<>"",IF(COUNTBLANK(D5:I5)>0,$K$3,""),"") -> 
A6: Lactose | B6: ='Original Excipient EFs'!R4 -> 1.599436 | J6: =IFERROR(LN(HLOOKUP(D6,'Data Quality Matrix'!$B$3:$E$8,2,0))^2+LN(HLOOKUP(E6,'Data Quality Matrix'!$B$3:$E$8,3,0))^2+LN(HLOOKUP(F6,'Data Quality Matrix'!$B$3:$E$8,4,0))^2+LN(HLOOKUP(G6,'Data Quality Matrix'!$B$3:$E$8,5,0))^2+LN(HLOOKUP(H6,'Data Quality Matrix'!$B$3:$E$8,6,0))^2+LN(VLOOKUP(I6,'Data Quality Matrix'!$A$12:$B$20,2,0))^2,"") -> 
A7: Mannitol | B7: ='Original Excipient EFs'!R5 -> 2.2975193 | J7: =IFERROR(LN(HLOOKUP(D7,'Data Quality Matrix'!$B$3:$E$8,2,0))^2+LN(HLOOKUP(E7,'Data Quality Matrix'!$B$3:$E$8,3,0))^2+LN(HLOOKUP(F7,'Data Quality Matrix'!$B$3:$E$8,4,0))^2+LN(HLOOKUP(G7,'Data Quality Matrix'!$B$3:$E$8,5,0))^2+LN(HLOOKUP(H7,'Data Quality Matrix'!$B$3:$E$8,6,0))^2+LN(VLOOKUP(I7,'Data Quality Matrix'!$A$12:$B$20,2,0))^2,"") -> 
A8: Hydroxyypropylmethylcellulose | B8: ='Original Excipient EFs'!R6 -> 1.640008077 | J8: =IFERROR(LN(HLOOKUP(D8,'Data Quality Matrix'!$B$3:$E$8,2,0))^2+LN(HLOOKUP(E8,'Data Quality Matrix'!$B$3:$E$8,3,0))^2+LN(HLOOKUP(F8,'Data Quality Matrix'!$B$3:$E$8,4,0))^2+LN(HLOOKUP(G8,'Data Quality Matrix'!$B$3:$E$8,5,0))^2+LN(HLOOKUP(H8,'Data Quality Matrix'!$B$3:$E$8,6,0))^2+LN(VLOOKUP(I8,'Data Quality Matrix'!$A$12:$B$20,2,0))^2,"") -> 
A9: Croscarmellose sodium | B9: ='Original Excipient EFs'!R7 -> 2.114572488 | J9: =IFERROR(LN(HLOOKUP(D9,'Data Quality Matrix'!$B$3:$E$8,2,0))^2+LN(HLOOKUP(E9,'Data Quality Matrix'!$B$3:$E$8,3,0))^2+LN(HLOOKUP(F9,'Data Quality Matrix'!$B$3:$E$8,4,0))^2+LN(HLOOKUP(G9,'Data Quality Matrix'!$B$3:$E$8,5,0))^2+LN(HLOOKUP(H9,'Data Quality Matrix'!$B$3:$E$8,6,0))^2+LN(VLOOKUP(I9,'Data Quality Matrix'!$A$12:$B$20,2,0))^2,"") -> 
A10: Sodium starch glycolate | B10: ='Original Excipient EFs'!R8 -> 2.2975193 | J10: =IFERROR(LN(HLOOKUP(D10,'Data Quality Matrix'!$B$3:$E$8,2,0))^2+LN(HLOOKUP(E10,'Data Quality Matrix'!$B$3:$E$8,3,0))^2+LN(HLOOKUP(F10,'Data Quality Matrix'!$B$3:$E$8,4,0))^2+LN(HLOOKUP(G10,'Data Quality Matrix'!$B$3:$E$8,5,0))^2+LN(HLOOKUP(H10,'Data Quality Matrix'!$B$3:$E$8,6,0))^2+LN(VLOOKUP(I10,'Data Quality Matrix'!$A$12:$B$20,2,0))^2,"") -> 
A11: Polyvinylpyrollidone | B11: ='Original Excipient EFs'!R9 -> 2.2975193 | J11: =IFERROR(LN(HLOOKUP(D11,'Data Quality Matrix'!$B$3:$E$8,2,0))^2+LN(HLOOKUP(E11,'Data Quality Matrix'!$B$3:$E$8,3,0))^2+LN(HLOOKUP(F11,'Data Quality Matrix'!$B$3:$E$8,4,0))^2+LN(HLOOKUP(G11,'Data Quality Matrix'!$B$3:$E$8,5,0))^2+LN(HLOOKUP(H11,'Data Quality Matrix'!$B$3:$E$8,6,0))^2+LN(VLOOKUP(I11,'Data Quality Matrix'!$A$12:$B$20,2,0))^2,"") -> 
A12: Silicon dioxide | B12: ='Original Excipient EFs'!R10 -> 1.640008077 | J12: =IFERROR(LN(HLOOKUP(D12,'Data Quality Matrix'!$B$3:$E$8,2,0))^2+LN(HLOOKUP(E12,'Data Quality Matrix'!$B$3:$E$8,3,0))^2+LN(HLOOKUP(F12,'Data Quality Matrix'!$B$3:$E$8,4,0))^2+LN(HLOOKUP(G12,'Data Quality Matrix'!$B$3:$E$8,5,0))^2+LN(HLOOKUP(H12,'Data Quality Matrix'!$B$3:$E$8,6,0))^2+LN(VLOOKUP(I12,'Data Quality Matrix'!$A$12:$B$20,2,0))^2,"") -> 
A13: Magnesium stearate | B13: ='Original Excipient EFs'!R11 -> 2.114572488 | J13: =IFERROR(LN(HLOOKUP(D13,'Data Quality Matrix'!$B$3:$E$8,2,0))^2+LN(HLOOKUP(E13,'Data Quality Matrix'!$B$3:$E$8,3,0))^2+LN(HLOOKUP(F13,'Data Quality Matrix'!$B$3:$E$8,4,0))^2+LN(HLOOKUP(G13,'Data Quality Matrix'!$B$3:$E$8,5,0))^2+LN(HLOOKUP(H13,'Data Quality Matrix'!$B$3:$E$8,6,0))^2+LN(VLOOKUP(I13,'Data Quality Matrix'!$A$12:$B$20,2,0))^2,"") -> 
A14: Polyethyleneglycol | B14: ='Original Excipient EFs'!R12 -> 2.306773195 | J14: =IFERROR(LN(HLOOKUP(D14,'Data Quality Matrix'!$B$3:$E$8,2,0))^2+LN(HLOOKUP(E14,'Data Quality Matrix'!$B$3:$E$8,3,0))^2+LN(HLOOKUP(F14,'Data Quality Matrix'!$B$3:$E$8,4,0))^2+LN(HLOOKUP(G14,'Data Quality Matrix'!$B$3:$E$8,5,0))^2+LN(HLOOKUP(H14,'Data Quality Matrix'!$B$3:$E$8,6,0))^2+LN(VLOOKUP(I14,'Data Quality Matrix'!$A$12:$B$20,2,0))^2,"") -> 
A15: Isopropyl alcohol | B15: ='Original Excipient EFs'!R13 -> 1.172442994 | J15: =IFERROR(LN(HLOOKUP(D15,'Data Quality Matrix'!$B$3:$E$8,2,0))^2+LN(HLOOKUP(E15,'Data Quality Matrix'!$B$3:$E$8,3,0))^2+LN(HLOOKUP(F15,'Data Quality Matrix'!$B$3:$E$8,4,0))^2+LN(HLOOKUP(G15,'Data Quality Matrix'!$B$3:$E$8,5,0))^2+LN(HLOOKUP(H15,'Data Quality Matrix'!$B$3:$E$8,6,0))^2+LN(VLOOKUP(I15,'Data Quality Matrix'!$A$12:$B$20,2,0))^2,"") -> 
A16: Ethanol | B16: ='Original Excipient EFs'!R14 -> 1.27375906 | J16: =IFERROR(LN(HLOOKUP(D16,'Data Quality Matrix'!$B$3:$E$8,2,0))^2+LN(HLOOKUP(E16,'Data Quality Matrix'!$B$3:$E$8,3,0))^2+LN(HLOOKUP(F16,'Data Quality Matrix'!$B$3:$E$8,4,0))^2+LN(HLOOKUP(G16,'Data Quality Matrix'!$B$3:$E$8,5,0))^2+LN(HLOOKUP(H16,'Data Quality Matrix'!$B$3:$E$8,6,0))^2+LN(VLOOKUP(I16,'Data Quality Matrix'!$A$12:$B$20,2,0))^2,"") -> 
A17: Purified water | B17: ='Original Excipient EFs'!R15 -> 1.27375906 | J17: =IFERROR(LN(HLOOKUP(D17,'Data Quality Matrix'!$B$3:$E$8,2,0))^2+LN(HLOOKUP(E17,'Data Quality Matrix'!$B$3:$E$8,3,0))^2+LN(HLOOKUP(F17,'Data Quality Matrix'!$B$3:$E$8,4,0))^2+LN(HLOOKUP(G17,'Data Quality Matrix'!$B$3:$E$8,5,0))^2+LN(HLOOKUP(H17,'Data Quality Matrix'!$B$3:$E$8,6,0))^2+LN(VLOOKUP(I17,'Data Quality Matrix'!$A$12:$B$20,2,0))^2,"") -> 
A18: Gelatin | B18: ='Original Excipient EFs'!R16 -> 2.306773195 | J18: =IFERROR(LN(HLOOKUP(D18,'Data Quality Matrix'!$B$3:$E$8,2,0))^2+LN(HLOOKUP(E18,'Data Quality Matrix'!$B$3:$E$8,3,0))^2+LN(HLOOKUP(F18,'Data Quality Matrix'!$B$3:$E$8,4,0))^2+LN(HLOOKUP(G18,'Data Quality Matrix'!$B$3:$E$8,5,0))^2+LN(HLOOKUP(H18,'Data Quality Matrix'!$B$3:$E$8,6,0))^2+LN(VLOOKUP(I18,'Data Quality Matrix'!$A$12:$B$20,2,0))^2,"") -> 
A19: Talc | B19: ='Original Excipient EFs'!R17 -> 1.651081863 | J19: =IFERROR(LN(HLOOKUP(D19,'Data Quality Matrix'!$B$3:$E$8,2,0))^2+LN(HLOOKUP(E19,'Data Quality Matrix'!$B$3:$E$8,3,0))^2+LN(HLOOKUP(F19,'Data Quality Matrix'!$B$3:$E$8,4,0))^2+LN(HLOOKUP(G19,'Data Quality Matrix'!$B$3:$E$8,5,0))^2+LN(HLOOKUP(H19,'Data Quality Matrix'!$B$3:$E$8,6,0))^2+LN(VLOOKUP(I19,'Data Quality Matrix'!$A$12:$B$20,2,0))^2,"") -> 
A20: Avicel | B20: ='Original Excipient EFs'!R18 -> 1.651081863 | J20: =IFERROR(LN(HLOOKUP(D20,'Data Quality Matrix'!$B$3:$E$8,2,0))^2+LN(HLOOKUP(E20,'Data Quality Matrix'!$B$3:$E$8,3,0))^2+LN(HLOOKUP(F20,'Data Quality Matrix'!$B$3:$E$8,4,0))^2+LN(HLOOKUP(G20,'Data Quality Matrix'!$B$3:$E$8,5,0))^2+LN(HLOOKUP(H20,'Data Quality Matrix'!$B$3:$E$8,6,0))^2+LN(VLOOKUP(I20,'Data Quality Matrix'!$A$12:$B$20,2,0))^2,"") -> 
A21: Colloidal anhydrous silica (collodial silicon dioxide, Cab-o-sil-M-5P) | B21: ='Original Excipient EFs'!R19 -> 1.651081863 | J21: =IFERROR(LN(HLOOKUP(D21,'Data Quality Matrix'!$B$3:$E$8,2,0))^2+LN(HLOOKUP(E21,'Data Quality Matrix'!$B$3:$E$8,3,0))^2+LN(HLOOKUP(F21,'Data Quality Matrix'!$B$3:$E$8,4,0))^2+LN(HLOOKUP(G21,'Data Quality Matrix'!$B$3:$E$8,5,0))^2+LN(HLOOKUP(H21,'Data Quality Matrix'!$B$3:$E$8,6,0))^2+LN(VLOOKUP(I21,'Data Quality Matrix'!$A$12:$B$20,2,0))^2,"") -> 
A22: Low substituted Hydroxypropylcellulose (L-HPC) | B22: ='Original Excipient EFs'!R20 -> 1.856218789 | J22: =IFERROR(LN(HLOOKUP(D22,'Data Quality Matrix'!$B$3:$E$8,2,0))^2+LN(HLOOKUP(E22,'Data Quality Matrix'!$B$3:$E$8,3,0))^2+LN(HLOOKUP(F22,'Data Quality Matrix'!$B$3:$E$8,4,0))^2+LN(HLOOKUP(G22,'Data Quality Matrix'!$B$3:$E$8,5,0))^2+LN(HLOOKUP(H22,'Data Quality Matrix'!$B$3:$E$8,6,0))^2+LN(VLOOKUP(I22,'Data Quality Matrix'!$A$12:$B$20,2,0))^2,"") -> 
A23: Opaglos 2 blue 97W90646 | B23: ='Original Excipient EFs'!R21 -> 2.306773195 | J23: =IFERROR(LN(HLOOKUP(D23,'Data Quality Matrix'!$B$3:$E$8,2,0))^2+LN(HLOOKUP(E23,'Data Quality Matrix'!$B$3:$E$8,3,0))^2+LN(HLOOKUP(F23,'Data Quality Matrix'!$B$3:$E$8,4,0))^2+LN(HLOOKUP(G23,'Data Quality Matrix'!$B$3:$E$8,5,0))^2+LN(HLOOKUP(H23,'Data Quality Matrix'!$B$3:$E$8,6,0))^2+LN(VLOOKUP(I23,'Data Quality Matrix'!$A$12:$B$20,2,0))^2,"") -> 
A24: Paraffin / Wax | B24: ='Original Excipient EFs'!R22 -> 1.27375906 | J24: =IFERROR(LN(HLOOKUP(D24,'Data Quality Matrix'!$B$3:$E$8,2,0))^2+LN(HLOOKUP(E24,'Data Quality Matrix'!$B$3:$E$8,3,0))^2+LN(HLOOKUP(F24,'Data Quality Matrix'!$B$3:$E$8,4,0))^2+LN(HLOOKUP(G24,'Data Quality Matrix'!$B$3:$E$8,5,0))^2+LN(HLOOKUP(H24,'Data Quality Matrix'!$B$3:$E$8,6,0))^2+LN(VLOOKUP(I24,'Data Quality Matrix'!$A$12:$B$20,2,0))^2,"") -> 
A25: Potato starch | B25: ='Original Excipient EFs'!R23 -> 1.27375906 | J25: =IFERROR(LN(HLOOKUP(D25,'Data Quality Matrix'!$B$3:$E$8,2,0))^2+LN(HLOOKUP(E25,'Data Quality Matrix'!$B$3:$E$8,3,0))^2+LN(HLOOKUP(F25,'Data Quality Matrix'!$B$3:$E$8,4,0))^2+LN(HLOOKUP(G25,'Data Quality Matrix'!$B$3:$E$8,5,0))^2+LN(HLOOKUP(H25,'Data Quality Matrix'!$B$3:$E$8,6,0))^2+LN(VLOOKUP(I25,'Data Quality Matrix'!$A$12:$B$20,2,0))^2,"") -> 
A26: Pregelatinised starch (Starch 1500) | B26: ='Original Excipient EFs'!R24 -> 1.545826602 | J26: =IFERROR(LN(HLOOKUP(D26,'Data Quality Matrix'!$B$3:$E$8,2,0))^2+LN(HLOOKUP(E26,'Data Quality Matrix'!$B$3:$E$8,3,0))^2+LN(HLOOKUP(F26,'Data Quality Matrix'!$B$3:$E$8,4,0))^2+LN(HLOOKUP(G26,'Data Quality Matrix'!$B$3:$E$8,5,0))^2+LN(HLOOKUP(H26,'Data Quality Matrix'!$B$3:$E$8,6,0))^2+LN(VLOOKUP(I26,'Data Quality Matrix'!$A$12:$B$20,2,0))^2,"") -> 
A27: Red Ferric Oxide | B27: ='Original Excipient EFs'!R25 -> 1.545826602 | J27: =IFERROR(LN(HLOOKUP(D27,'Data Quality Matrix'!$B$3:$E$8,2,0))^2+LN(HLOOKUP(E27,'Data Quality Matrix'!$B$3:$E$8,3,0))^2+LN(HLOOKUP(F27,'Data Quality Matrix'!$B$3:$E$8,4,0))^2+LN(HLOOKUP(G27,'Data Quality Matrix'!$B$3:$E$8,5,0))^2+LN(HLOOKUP(H27,'Data Quality Matrix'!$B$3:$E$8,6,0))^2+LN(VLOOKUP(I27,'Data Quality Matrix'!$A$12:$B$20,2,0))^2,"") -> 
A28: Sugar from sugar Cane | B28: ='Original Excipient EFs'!R26 -> 1.208975074 | J28: =IFERROR(LN(HLOOKUP(D28,'Data Quality Matrix'!$B$3:$E$8,2,0))^2+LN(HLOOKUP(E28,'Data Quality Matrix'!$B$3:$E$8,3,0))^2+LN(HLOOKUP(F28,'Data Quality Matrix'!$B$3:$E$8,4,0))^2+LN(HLOOKUP(G28,'Data Quality Matrix'!$B$3:$E$8,5,0))^2+LN(HLOOKUP(H28,'Data Quality Matrix'!$B$3:$E$8,6,0))^2+LN(VLOOKUP(I28,'Data Quality Matrix'!$A$12:$B$20,2,0))^2,"") -> 
A29: Sugar from sugarbeet | B29: ='Original Excipient EFs'!R27 -> 1.27375906 | J29: =IFERROR(LN(HLOOKUP(D29,'Data Quality Matrix'!$B$3:$E$8,2,0))^2+LN(HLOOKUP(E29,'Data Quality Matrix'!$B$3:$E$8,3,0))^2+LN(HLOOKUP(F29,'Data Quality Matrix'!$B$3:$E$8,4,0))^2+LN(HLOOKUP(G29,'Data Quality Matrix'!$B$3:$E$8,5,0))^2+LN(HLOOKUP(H29,'Data Quality Matrix'!$B$3:$E$8,6,0))^2+LN(VLOOKUP(I29,'Data Quality Matrix'!$A$12:$B$20,2,0))^2,"") -> 
A30: Yellow Ferric Oxide | B30: ='Original Excipient EFs'!R28 -> 1.545826602 | J30: =IFERROR(LN(HLOOKUP(D30,'Data Quality Matrix'!$B$3:$E$8,2,0))^2+LN(HLOOKUP(E30,'Data Quality Matrix'!$B$3:$E$8,3,0))^2+LN(HLOOKUP(F30,'Data Quality Matrix'!$B$3:$E$8,4,0))^2+LN(HLOOKUP(G30,'Data Quality Matrix'!$B$3:$E$8,5,0))^2+LN(HLOOKUP(H30,'Data Quality Matrix'!$B$3:$E$8,6,0))^2+LN(VLOOKUP(I30,'Data Quality Matrix'!$A$12:$B$20,2,0))^2,"") -> 
A31: Zinc Oxide | B31: ='Original Excipient EFs'!R29 -> 1.27375906 | J31: =IFERROR(LN(HLOOKUP(D31,'Data Quality Matrix'!$B$3:$E$8,2,0))^2+LN(HLOOKUP(E31,'Data Quality Matrix'!$B$3:$E$8,3,0))^2+LN(HLOOKUP(F31,'Data Quality Matrix'!$B$3:$E$8,4,0))^2+LN(HLOOKUP(G31,'Data Quality Matrix'!$B$3:$E$8,5,0))^2+LN(HLOOKUP(H31,'Data Quality Matrix'!$B$3:$E$8,6,0))^2+LN(VLOOKUP(I31,'Data Quality Matrix'!$A$12:$B$20,2,0))^2,"") -> 
J32: =IFERROR(LN(HLOOKUP(D32,'Data Quality Matrix'!$B$3:$E$8,2,0))^2+LN(HLOOKUP(E32,'Data Quality Matrix'!$B$3:$E$8,3,0))^2+LN(HLOOKUP(F32,'Data Quality Matrix'!$B$3:$E$8,4,0))^2+LN(HLOOKUP(G32,'Data Quality Matrix'!$B$3:$E$8,5,0))^2+LN(HLOOKUP(H32,'Data Quality Matrix'!$B$3:$E$8,6,0))^2+LN(VLOOKUP(I32,'Data Quality Matrix'!$A$12:$B$20,2,0))^2,"") -> 
J33: =IFERROR(LN(HLOOKUP(D33,'Data Quality Matrix'!$B$3:$E$8,2,0))^2+LN(HLOOKUP(E33,'Data Quality Matrix'!$B$3:$E$8,3,0))^2+LN(HLOOKUP(F33,'Data Quality Matrix'!$B$3:$E$8,4,0))^2+LN(HLOOKUP(G33,'Data Quality Matrix'!$B$3:$E$8,5,0))^2+LN(HLOOKUP(H33,'Data Quality Matrix'!$B$3:$E$8,6,0))^2+LN(VLOOKUP(I33,'Data Quality Matrix'!$A$12:$B$20,2,0))^2,"") -> 
J34: =IFERROR(LN(HLOOKUP(D34,'Data Quality Matrix'!$B$3:$E$8,2,0))^2+LN(HLOOKUP(E34,'Data Quality Matrix'!$B$3:$E$8,3,0))^2+LN(HLOOKUP(F34,'Data Quality Matrix'!$B$3:$E$8,4,0))^2+LN(HLOOKUP(G34,'Data Quality Matrix'!$B$3:$E$8,5,0))^2+LN(HLOOKUP(H34,'Data Quality Matrix'!$B$3:$E$8,6,0))^2+LN(VLOOKUP(I34,'Data Quality Matrix'!$A$12:$B$20,2,0))^2,"") -> 
J35: =IFERROR(LN(HLOOKUP(D35,'Data Quality Matrix'!$B$3:$E$8,2,0))^2+LN(HLOOKUP(E35,'Data Quality Matrix'!$B$3:$E$8,3,0))^2+LN(HLOOKUP(F35,'Data Quality Matrix'!$B$3:$E$8,4,0))^2+LN(HLOOKUP(G35,'Data Quality Matrix'!$B$3:$E$8,5,0))^2+LN(HLOOKUP(H35,'Data Quality Matrix'!$B$3:$E$8,6,0))^2+LN(VLOOKUP(I35,'Data Quality Matrix'!$A$12:$B$20,2,0))^2,"") -> 
J36: =IFERROR(LN(HLOOKUP(D36,'Data Quality Matrix'!$B$3:$E$8,2,0))^2+LN(HLOOKUP(E36,'Data Quality Matrix'!$B$3:$E$8,3,0))^2+LN(HLOOKUP(F36,'Data Quality Matrix'!$B$3:$E$8,4,0))^2+LN(HLOOKUP(G36,'Data Quality Matrix'!$B$3:$E$8,5,0))^2+LN(HLOOKUP(H36,'Data Quality Matrix'!$B$3:$E$8,6,0))^2+LN(VLOOKUP(I36,'Data Quality Matrix'!$A$12:$B$20,2,0))^2,"") -> 
J37: =IFERROR(LN(HLOOKUP(D37,'Data Quality Matrix'!$B$3:$E$8,2,0))^2+LN(HLOOKUP(E37,'Data Quality Matrix'!$B$3:$E$8,3,0))^2+LN(HLOOKUP(F37,'Data Quality Matrix'!$B$3:$E$8,4,0))^2+LN(HLOOKUP(G37,'Data Quality Matrix'!$B$3:$E$8,5,0))^2+LN(HLOOKUP(H37,'Data Quality Matrix'!$B$3:$E$8,6,0))^2+LN(VLOOKUP(I37,'Data Quality Matrix'!$A$12:$B$20,2,0))^2,"") -> 
J38: =IFERROR(LN(HLOOKUP(D38,'Data Quality Matrix'!$B$3:$E$8,2,0))^2+LN(HLOOKUP(E38,'Data Quality Matrix'!$B$3:$E$8,3,0))^2+LN(HLOOKUP(F38,'Data Quality Matrix'!$B$3:$E$8,4,0))^2+LN(HLOOKUP(G38,'Data Quality Matrix'!$B$3:$E$8,5,0))^2+LN(HLOOKUP(H38,'Data Quality Matrix'!$B$3:$E$8,6,0))^2+LN(VLOOKUP(I38,'Data Quality Matrix'!$A$12:$B$20,2,0))^2,"") -> 
J39: =IFERROR(LN(HLOOKUP(D39,'Data Quality Matrix'!$B$3:$E$8,2,0))^2+LN(HLOOKUP(E39,'Data Quality Matrix'!$B$3:$E$8,3,0))^2+LN(HLOOKUP(F39,'Data Quality Matrix'!$B$3:$E$8,4,0))^2+LN(HLOOKUP(G39,'Data Quality Matrix'!$B$3:$E$8,5,0))^2+LN(HLOOKUP(H39,'Data Quality Matrix'!$B$3:$E$8,6,0))^2+LN(VLOOKUP(I39,'Data Quality Matrix'!$A$12:$B$20,2,0))^2,"") -> 
J40: =IFERROR(LN(HLOOKUP(D40,'Data Quality Matrix'!$B$3:$E$8,2,0))^2+LN(HLOOKUP(E40,'Data Quality Matrix'!$B$3:$E$8,3,0))^2+LN(HLOOKUP(F40,'Data Quality Matrix'!$B$3:$E$8,4,0))^2+LN(HLOOKUP(G40,'Data Quality Matrix'!$B$3:$E$8,5,0))^2+LN(HLOOKUP(H40,'Data Quality Matrix'!$B$3:$E$8,6,0))^2+LN(VLOOKUP(I40,'Data Quality Matrix'!$A$12:$B$20,2,0))^2,"") -> 
J41: =IFERROR(LN(HLOOKUP(D41,'Data Quality Matrix'!$B$3:$E$8,2,0))^2+LN(HLOOKUP(E41,'Data Quality Matrix'!$B$3:$E$8,3,0))^2+LN(HLOOKUP(F41,'Data Quality Matrix'!$B$3:$E$8,4,0))^2+LN(HLOOKUP(G41,'Data Quality Matrix'!$B$3:$E$8,5,0))^2+LN(HLOOKUP(H41,'Data Quality Matrix'!$B$3:$E$8,6,0))^2+LN(VLOOKUP(I41,'Data Quality Matrix'!$A$12:$B$20,2,0))^2,"") -> 
J42: =IFERROR(LN(HLOOKUP(D42,'Data Quality Matrix'!$B$3:$E$8,2,0))^2+LN(HLOOKUP(E42,'Data Quality Matrix'!$B$3:$E$8,3,0))^2+LN(HLOOKUP(F42,'Data Quality Matrix'!$B$3:$E$8,4,0))^2+LN(HLOOKUP(G42,'Data Quality Matrix'!$B$3:$E$8,5,0))^2+LN(HLOOKUP(H42,'Data Quality Matrix'!$B$3:$E$8,6,0))^2+LN(VLOOKUP(I42,'Data Quality Matrix'!$A$12:$B$20,2,0))^2,"") -> 
J43: =IFERROR(LN(HLOOKUP(D43,'Data Quality Matrix'!$B$3:$E$8,2,0))^2+LN(HLOOKUP(E43,'Data Quality Matrix'!$B$3:$E$8,3,0))^2+LN(HLOOKUP(F43,'Data Quality Matrix'!$B$3:$E$8,4,0))^2+LN(HLOOKUP(G43,'Data Quality Matrix'!$B$3:$E$8,5,0))^2+LN(HLOOKUP(H43,'Data Quality Matrix'!$B$3:$E$8,6,0))^2+LN(VLOOKUP(I43,'Data Quality Matrix'!$A$12:$B$20,2,0))^2,"") -> 
J44: =IFERROR(LN(HLOOKUP(D44,'Data Quality Matrix'!$B$3:$E$8,2,0))^2+LN(HLOOKUP(E44,'Data Quality Matrix'!$B$3:$E$8,3,0))^2+LN(HLOOKUP(F44,'Data Quality Matrix'!$B$3:$E$8,4,0))^2+LN(HLOOKUP(G44,'Data Quality Matrix'!$B$3:$E$8,5,0))^2+LN(HLOOKUP(H44,'Data Quality Matrix'!$B$3:$E$8,6,0))^2+LN(VLOOKUP(I44,'Data Quality Matrix'!$A$12:$B$20,2,0))^2,"") -> 
J45: =IFERROR(LN(HLOOKUP(D45,'Data Quality Matrix'!$B$3:$E$8,2,0))^2+LN(HLOOKUP(E45,'Data Quality Matrix'!$B$3:$E$8,3,0))^2+LN(HLOOKUP(F45,'Data Quality Matrix'!$B$3:$E$8,4,0))^2+LN(HLOOKUP(G45,'Data Quality Matrix'!$B$3:$E$8,5,0))^2+LN(HLOOKUP(H45,'Data Quality Matrix'!$B$3:$E$8,6,0))^2+LN(VLOOKUP(I45,'Data Quality Matrix'!$A$12:$B$20,2,0))^2,"") -> 
J46: =IFERROR(LN(HLOOKUP(D46,'Data Quality Matrix'!$B$3:$E$8,2,0))^2+LN(HLOOKUP(E46,'Data Quality Matrix'!$B$3:$E$8,3,0))^2+LN(HLOOKUP(F46,'Data Quality Matrix'!$B$3:$E$8,4,0))^2+LN(HLOOKUP(G46,'Data Quality Matrix'!$B$3:$E$8,5,0))^2+LN(HLOOKUP(H46,'Data Quality Matrix'!$B$3:$E$8,6,0))^2+LN(VLOOKUP(I46,'Data Quality Matrix'!$A$12:$B$20,2,0))^2,"") -> 
J47: =IFERROR(LN(HLOOKUP(D47,'Data Quality Matrix'!$B$3:$E$8,2,0))^2+LN(HLOOKUP(E47,'Data Quality Matrix'!$B$3:$E$8,3,0))^2+LN(HLOOKUP(F47,'Data Quality Matrix'!$B$3:$E$8,4,0))^2+LN(HLOOKUP(G47,'Data Quality Matrix'!$B$3:$E$8,5,0))^2+LN(HLOOKUP(H47,'Data Quality Matrix'!$B$3:$E$8,6,0))^2+LN(VLOOKUP(I47,'Data Quality Matrix'!$A$12:$B$20,2,0))^2,"") -> 
J48: =IFERROR(LN(HLOOKUP(D48,'Data Quality Matrix'!$B$3:$E$8,2,0))^2+LN(HLOOKUP(E48,'Data Quality Matrix'!$B$3:$E$8,3,0))^2+LN(HLOOKUP(F48,'Data Quality Matrix'!$B$3:$E$8,4,0))^2+LN(HLOOKUP(G48,'Data Quality Matrix'!$B$3:$E$8,5,0))^2+LN(HLOOKUP(H48,'Data Quality Matrix'!$B$3:$E$8,6,0))^2+LN(VLOOKUP(I48,'Data Quality Matrix'!$A$12:$B$20,2,0))^2,"") -> 
J49: =IFERROR(LN(HLOOKUP(D49,'Data Quality Matrix'!$B$3:$E$8,2,0))^2+LN(HLOOKUP(E49,'Data Quality Matrix'!$B$3:$E$8,3,0))^2+LN(HLOOKUP(F49,'Data Quality Matrix'!$B$3:$E$8,4,0))^2+LN(HLOOKUP(G49,'Data Quality Matrix'!$B$3:$E$8,5,0))^2+LN(HLOOKUP(H49,'Data Quality Matrix'!$B$3:$E$8,6,0))^2+LN(VLOOKUP(I49,'Data Quality Matrix'!$A$12:$B$20,2,0))^2,"") -> 

Sheet Original Excipient EFs (hidden)
A1: Excipient Name | B1: Original Emission Factor (PUT UNIT HERE) | C1: User Defined Emission Factor (PUT UNIT HERE) | D1: Source | E1: Note | F1: Precision | G1: Completeness | H1: Temporal representativeness | I1: Geographical representativeness | J1: Technological representativeness | K1: Basic | L1: Precision | M1: Completeness | N1: Temporal representativeness | O1: Geographical representativeness | P1: Technological representativeness | Q1: Basic | R1: U Total
A2: Dicalcium phosphate | B2: 1.86 | C2: =IF(ISBLANK('User Defined Excipient EFs'!C4),FALSE,'User Defined Excipient EFs'!C4) -> FALSE | D2: Ecoinvent 2.2 | E2: inorganic chemichal | F2: Poor | G2: Fair | H2: Fair | I2: Fair | J2: Poor | K2: Industrial Products | L2: =LN(HLOOKUP(F2,DQM,2,FALSE))^2 -> 0.1644019539 | M2: =LN(HLOOKUP(G2,DQM,3,FALSE))^2 -> 0.009084030374 | N2: =LN(HLOOKUP(H2,DQM,4,FALSE))^2 -> 0.03324115007 | O2: =LN(HLOOKUP(I2,DQM,5,FALSE))^2 -> 0.00238048012 | P2: =LN(HLOOKUP(J2,DQM,6,FALSE))^2 -> 0.4804530139 | Q2: =LN(VLOOKUP(K2,'Data Quality Matrix'!$A$12:$B$22,2,FALSE))^2 -> 0.00238048012 | R2: =EXP(SQRT(SUM(L2:Q2))) -> 2.2975193
A3: Microcrystalline cellulose | B3: 4.212 | C3: =IF(ISBLANK('User Defined Excipient EFs'!C5),FALSE,'User Defined Excipient EFs'!C5) -> FALSE | D3: Ecoinvent 2.2 | E3: carboxymethyl cellulose, powder, at plant | F3: Fair | G3: Good | H3: Fair | I3: Fair | J3: Fair | K3: Industrial Products | L3: 0.03324115007 | M3: 0.00238048012 | N3: 0.03324115007 | O3: 0.00238048012 | P3: 0.1644019539 | Q3: =LN(VLOOKUP(K3,'Data Quality Matrix'!$A$12:$B$22,2,FALSE))^2 -> 0.00238048012 | R3: =EXP(SQRT(SUM(L3:Q3))) -> 1.628857372
A4: Lactose | B4: 9 | C4: =IF(ISBLANK('User Defined Excipient EFs'!C6),FALSE,'User Defined Excipient EFs'!C6) -> FALSE | D4: CT | F4: Poor | G4: Good | H4: Good | I4: Poor | J4: Good | K4: Industrial Products | L4: 0.1644019539 | M4: 0.00238048012 | N4: 0.009084030374 | O4: 0.009084030374 | P4: 0.03324115007 | Q4: =LN(VLOOKUP(K4,'Data Quality Matrix'!$A$12:$B$22,2,FALSE))^2 -> 0.00238048012 | R4: 1.599436
A5: Mannitol | B5: 1.899 | C5: =IF(ISBLANK('User Defined Excipient EFs'!C7),FALSE,'User Defined Excipient EFs'!C7) -> FALSE | D5: Ecoinvent 2.2 | E5: chemicals organic, at plant | F5: Poor | G5: Fair | H5: Fair | I5: Fair | J5: Poor | K5: Industrial Products | L5: 0.1644019539 | M5: 0.009084030374 | N5: 0.03324115007 | O5: 0.00238048012 | P5: 0.4804530139 | Q5: =LN(VLOOKUP(K5,'Data Quality Matrix'!$A$12:$B$22,2,FALSE))^2 -> 0.00238048012 | R5: 2.2975193
A6: Hydroxyypropylmethylcellulose | B6: 2.8 | C6: =IF(ISBLANK('User Defined Excipient EFs'!C8),FALSE,'User Defined Excipient EFs'!C8) -> FALSE | D6: FPX 3.3 | E6: Methyl Ethyl HydroxyEthyl Cellulose (MEHEC) | F6: Fair | G6: Fair | H6: Fair | I6: Fair | J6: Fair | K6: Industrial Products | L6: 0.03324115007 | M6: 0.009084030374 | N6: 0.03324115007 | O6: 0.00238048012 | P6: 0.1644019539 | Q6: =LN(VLOOKUP(K6,'Data Quality Matrix'!$A$12:$B$22,2,FALSE))^2 -> 0.00238048012 | R6: 1.640008077
A7: Croscarmellose sodium | B7: 4.212 | C7: =IF(ISBLANK('User Defined Excipient EFs'!C9),FALSE,'User Defined Excipient EFs'!C9) -> FALSE | D7: Ecoinvent 2.2 | E7: carboxymethyl cellulose, powder, at plant | F7: Fair | G7: Fair | H7: Fair | I7: Fair | J7: Poor | K7: Industrial Products | L7: 0.03324115007 | M7: 0.009084030374 | N7: 0.03324115007 | O7: 0.00238048012 | P7: 0.4804530139 | Q7: =LN(VLOOKUP(K7,'Data Quality Matrix'!$A$12:$B$22,2,FALSE))^2 -> 0.00238048012 | R7: 2.114572488
A8: Sodium starch glycolate | B8: 1.8985 | C8: =IF(ISBLANK('User Defined Excipient EFs'!C10),FALSE,'User Defined Excipient EFs'!C10) -> FALSE | D8: Ecoinvent 2.2 | E8: chemicals organic, at plant | F8: Poor | G8: Fair | H8: Fair | I8: Fair | J8: Poor | K8: Industrial Products | L8: 0.1644019539 | M8: 0.009084030374 | N8: 0.03324115007 | O8: 0.00238048012 | P8: 0.4804530139 | Q8: =LN(VLOOKUP(K8,'Data Quality Matrix'!$A$12:$B$22,2,FALSE))^2 -> 0.00238048012 | R8: 2.2975193
A9: Polyvinylpyrollidone | B9: 1.8985 | C9: =IF(ISBLANK('User Defined Excipient EFs'!C11),FALSE,'User Defined Excipient EFs'!C11) -> FALSE | D9: Ecoinvent 2.2 | E9: chemicals organic, at plant | F9: Poor | G9: Fair | H9: Fair | I9: Fair | J9: Poor | K9: Industrial Products | L9: 0.1644019539 | M9: 0.009084030374 | N9: 0.03324115007 | O9: 0.00238048012 | P9: 0.4804530139 | Q9: =LN(VLOOKUP(K9,'Data Quality Matrix'!$A$12:$B$22,2,FALSE))^2 -> 0.00238048012 | R9: 2.2975193
A10: Silicon dioxide | B10: 0.021 | C10: =IF(ISBLANK('User Defined Excipient EFs'!C12),FALSE,'User Defined Excipient EFs'!C12) -> FALSE | D10: Ecoinvent 2.2 | E10: silica sand, at plant | F10: Fair | G10: Fair | H10: Fair | I10: Fair | J10: Fair | K10: Industrial Products | L10: 0.03324115007 | M10: 0.009084030374 | N10: 0.03324115007 | O10: 0.00238048012 | P10: 0.1644019539 | Q10: =LN(VLOOKUP(K10,'Data Quality Matrix'!$A$12:$B$22,2,FALSE))^2 -> 0.00238048012 | R10: 1.640008077
A11: Magnesium stearate | B11: 0.7467989683 | C11: =IF(ISBLANK('User Defined Excipient EFs'!C13),FALSE,'User Defined Excipient EFs'!C13) -> FALSE | D11: Ecoinvent 2.2 | E11: Nearest neighbor - tallow | F11: Fair | G11: Fair | H11: Fair | I11: Fair | J11: Poor | K11: Industrial Products | L11: 0.03324115007 | M11: 0.009084030374 | N11: 0.03324115007 | O11: 0.00238048012 | P11: 0.4804530139 | Q11: =LN(VLOOKUP(K11,'Data Quality Matrix'!$A$12:$B$22,2,FALSE))^2 -> 0.00238048012 | R11: 2.114572488
A12: Polyethyleneglycol | B12: 2.1 | C12: =IF(ISBLANK('User Defined Excipient EFs'!C14),FALSE,'User Defined Excipient EFs'!C14) -> FALSE | D12: CT derivation from Ecoinvent data | F12: Poor | G12: Fair | H12: Fair | I12: Poor | J12: Poor | K12: Industrial Products | L12: 0.1644019539 | M12: 0.009084030374 | N12: 0.03324115007 | O12: 0.009084030374 | P12: 0.4804530139 | Q12: =LN(VLOOKUP(K12,'Data Quality Matrix'!$A$12:$B$22,2,FALSE))^2 -> 0.00238048012 | R12: 2.306773195
A13: Isopropyl alcohol | B13: 1.8487 | C13: =IF(ISBLANK('User Defined Excipient EFs'!C15),FALSE,'User Defined Excipient EFs'!C15) -> FALSE | D13: Ecoinvent 2.2 | E13: isopropanol, at plant | F13: Good | G13: Good | H13: Good | I13: Fair | J13: Very Good | K13: Industrial Products | L13: 0.009084030374 | M13: 0.00238048012 | N13: 0.009084030374 | O13: 0.00238048012 | P13: 0 | Q13: =LN(VLOOKUP(K13,'Data Quality Matrix'!$A$12:$B$22,2,FALSE))^2 -> 0.00238048012 | R13: 1.172442994
A14: Ethanol | B14: 1.248 | C14: =IF(ISBLANK('User Defined Excipient EFs'!C16),FALSE,'User Defined Excipient EFs'!C16) -> FALSE | D14: Ecoinvent 2.2 | E14: ethanol from ethylene | F14: Good | G14: Good | H14: Good | I14: Fair | J14: Good | K14: Industrial Products | L14: 0.009084030374 | M14: 0.00238048012 | N14: 0.009084030374 | O14: 0.00238048012 | P14: 0.03324115007 | Q14: =LN(VLOOKUP(K14,'Data Quality Matrix'!$A$12:$B$22,2,FALSE))^2 -> 0.00238048012 | R14: 1.27375906
A15: Purified water | B15: 0.00068 | C15: =IF(ISBLANK('User Defined Excipient EFs'!C17),FALSE,'User Defined Excipient EFs'!C17) -> FALSE | D15: Ecoinvent 2.2 | E15: water, ultrapure, at plant | F15: Good | G15: Good | H15: Good | I15: Fair | J15: Good | K15: Industrial Products | L15: 0.009084030374 | M15: 0.00238048012 | N15: 0.009084030374 | O15: 0.00238048012 | P15: 0.03324115007 | Q15: =LN(VLOOKUP(K15,'Data Quality Matrix'!$A$12:$B$22,2,FALSE))^2 -> 0.00238048012 | R15: 1.27375906
A16: Gelatin | B16: 1.8985 | C16: =IF(ISBLANK('User Defined Excipient EFs'!C18),FALSE,'User Defined Excipient EFs'!C18) -> FALSE | D16: Ecoinvent 2.2 | E16: very poor proxy | F16: Poor | G16: Fair | H16: Fair | I16: Poor | J16: Poor | K16: Industrial Products | L16: 0.1644019539 | M16: 0.009084030374 | N16: 0.03324115007 | O16: 0.009084030374 | P16: 0.4804530139 | Q16: =LN(VLOOKUP(K16,'Data Quality Matrix'!$A$12:$B$22,2,FALSE))^2 -> 0.00238048012 | R16: 2.306773195
A17: Talc | B17: 1.598 | C17: =IF(ISBLANK('User Defined Excipient EFs'!C19),FALSE,'User Defined Excipient EFs'!C19) -> FALSE | D17: Ecoinvent | E17: colloidal anhydrous silica | F17: Fair | G17: Fair | H17: Fair | I17: Poor | J17: Fair | K17: Industrial Products | L17: 0.03324115007 | M17: 0.009084030374 | N17: 0.03324115007 | O17: 0.009084030374 | P17: 0.1644019539 | Q17: =LN(VLOOKUP(K17,'Data Quality Matrix'!$A$12:$B$22,2,FALSE))^2 -> 0.00238048012 | R17: 1.651081863
A18: Avicel | B18: 4.2122 | C18: =IF(ISBLANK('User Defined Excipient EFs'!C20),FALSE,'User Defined Excipient EFs'!C20) -> FALSE | D18: Ecoinvent | E18: carboxymethyl cellulose, powder, at plant | F18: Fair | G18: Fair | H18: Fair | I18: Poor | J18: Fair | K18: Industrial Products | L18: 0.03324115007 | M18: 0.009084030374 | N18: 0.03324115007 | O18: 0.009084030374 | P18: 0.1644019539 | Q18: =LN(VLOOKUP(K18,'Data Quality Matrix'!$A$12:$B$22,2,FALSE))^2 -> 0.00238048012 | R18: 1.651081863
A19: Colloidal anhydrous silica (collodial silicon dioxide, Cab-o-sil-M-5P) | B19: 1.59846516 | C19: =IF(ISBLANK('User Defined Excipient EFs'!C21),FALSE,'User Defined Excipient EFs'!C21) -> FALSE | D19: Ecoinvent | E19: sodium silicate | F19: Fair | G19: Fair | H19: Fair | I19: Poor | J19: Fair | K19: Industrial Products | L19: 0.03324115007 | M19: 0.009084030374 | N19: 0.03324115007 | O19: 0.009084030374 | P19: 0.1644019539 | Q19: =LN(VLOOKUP(K19,'Data Quality Matrix'!$A$12:$B$22,2,FALSE))^2 -> 0.00238048012 | R19: 1.651081863
A20: Low substituted Hydroxypropylcellulose (L-HPC) | B20: 4.212 | C20: =IF(ISBLANK('User Defined Excipient EFs'!C22),FALSE,'User Defined Excipient EFs'!C22) -> FALSE | D20: Ecoinvent | E20: carboxymethyl cellulose, powder, at plant | F20: Poor | G20: Fair | H20: Fair | I20: Poor | J20: Fair | K20: Industrial Products | L20: 0.1644019539 | M20: 0.009084030374 | N20: 0.03324115007 | O20: 0.009084030374 | P20: 0.1644019539 | Q20: =LN(VLOOKUP(K20,'Data Quality Matrix'!$A$12:$B$22,2,FALSE))^2 -> 0.00238048012 | R20: 1.856218789
A21: Opaglos 2 blue 97W90646 | B21: 0.82914 | C21: =IF(ISBLANK('User Defined Excipient EFs'!C23),FALSE,'User Defined Excipient EFs'!C23) -> FALSE | D21: Ecoinvent | E21: Paraffin used. Opaglos contains ethanol, shellac, wax | F21: Poor | G21: Fair | H21: Fair | I21: Poor | J21: Poor | K21: Industrial Products | L21: 0.1644019539 | M21: 0.009084030374 | N21: 0.03324115007 | O21: 0.009084030374 | P21: 0.4804530139 | Q21: =LN(VLOOKUP(K21,'Data Quality Matrix'!$A$12:$B$22,2,FALSE))^2 -> 0.00238048012 | R21: 2.306773195
A22: Paraffin / Wax | B22: 0.82914 | C22: =IF(ISBLANK('User Defined Excipient EFs'!C24),FALSE,'User Defined Excipient EFs'!C24) -> FALSE | D22: Ecoinvent | E22: paraffin, at plant | F22: Good | G22: Good | H22: Good | I22: Fair | J22: Good | K22: Industrial Products | L22: 0.009084030374 | M22: 0.00238048012 | N22: 0.009084030374 | O22: 0.00238048012 | P22: 0.03324115007 | Q22: =LN(VLOOKUP(K22,'Data Quality Matrix'!$A$12:$B$22,2,FALSE))^2 -> 0.00238048012 | R22: 1.27375906
A23: Potato starch | B23: 0.7176 | C23: =IF(ISBLANK('User Defined Excipient EFs'!C25),FALSE,'User Defined Excipient EFs'!C25) -> FALSE | D23: Ecoinvent | E23: potato starch, at plant | F23: Good | G23: Good | H23: Good | I23: Fair | J23: Good | K23: Industrial Products | L23: 0.009084030374 | M23: 0.00238048012 | N23: 0.009084030374 | O23: 0.00238048012 | P23: 0.03324115007 | Q23: =LN(VLOOKUP(K23,'Data Quality Matrix'!$A$12:$B$22,2,FALSE))^2 -> 0.00238048012 | R23: 1.27375906
A24: Pregelatinised starch (Starch 1500) | B24: 2.016 | C24: =IF(ISBLANK('User Defined Excipient EFs'!C26),FALSE,'User Defined Excipient EFs'!C26) -> FALSE | D24: Ecoinvent | E24: modified starch, at plant | F24: Good | G24: Good | H24: Good | I24: Fair | J24: Fair | K24: Industrial Products | L24: 0.009084030374 | M24: 0.00238048012 | N24: 0.009084030374 | O24: 0.00238048012 | P24: 0.1644019539 | Q24: =LN(VLOOKUP(K24,'Data Quality Matrix'!$A$12:$B$22,2,FALSE))^2 -> 0.00238048012 | R24: 1.545826602
A25: Red Ferric Oxide | B25: 0.031189 | C25: =IF(ISBLANK('User Defined Excipient EFs'!C27),FALSE,'User Defined Excipient EFs'!C27) -> FALSE | D25: Ecoinvent | E25: portafer, at plant | F25: Good | G25: Good | H25: Good | I25: Fair | J25: Fair | K25: Industrial Products | L25: 0.009084030374 | M25: 0.00238048012 | N25: 0.009084030374 | O25: 0.00238048012 | P25: 0.1644019539 | Q25: =LN(VLOOKUP(K25,'Data Quality Matrix'!$A$12:$B$22,2,FALSE))^2 -> 0.00238048012 | R25: 1.545826602
A26: Sugar from sugar Cane | B26: 0.3 | C26: =IF(ISBLANK('User Defined Excipient EFs'!C28),FALSE,'User Defined Excipient EFs'!C28) -> FALSE | D26: FPX 3.3 | E26: sugar, from sugarcane, at sugar refinery | F26: Very Good | G26: Very Good | H26: Very Good | I26: Good | J26: Good | K26: Industrial Products | L26: 0 | M26: 0 | N26: 0 | O26: 0.0003921440478 | P26: 0.03324115007 | Q26: =LN(VLOOKUP(K26,'Data Quality Matrix'!$A$12:$B$22,2,FALSE))^2 -> 0.00238048012 | R26: 1.208975074
A27: Sugar from sugarbeet | B27: 0.507 | C27: =IF(ISBLANK('User Defined Excipient EFs'!C29),FALSE,'User Defined Excipient EFs'!C29) -> FALSE | D27: Ecoinvent | E27: sugar, from sugar beet, at sugar refinery | F27: Good | G27: Good | H27: Good | I27: Fair | J27: Good | K27: Industrial Products | L27: 0.009084030374 | M27: 0.00238048012 | N27: 0.009084030374 | O27: 0.00238048012 | P27: 0.03324115007 | Q27: =LN(VLOOKUP(K27,'Data Quality Matrix'!$A$12:$B$22,2,FALSE))^2 -> 0.00238048012 | R27: 1.27375906
A28: Yellow Ferric Oxide | B28: 0.031189 | C28: =IF(ISBLANK('User Defined Excipient EFs'!C30),FALSE,'User Defined Excipient EFs'!C30) -> FALSE | D28: Ecoinvent | E28: portafer, at plant | F28: Good | G28: Good | H28: Good | I28: Fair | J28: Fair | K28: Industrial Products | L28: 0.009084030374 | M28: 0.00238048012 | N28: 0.009084030374 | O28: 0.00238048012 | P28: 0.1644019539 | Q28: =LN(VLOOKUP(K28,'Data Quality Matrix'!$A$12:$B$22,2,FALSE))^2 -> 0.00238048012 | R28: 1.545826602
A29: Zinc Oxide | B29: 2.8889 | C29: =IF(ISBLANK('User Defined Excipient EFs'!C31),FALSE,'User Defined Excipient EFs'!C31) -> FALSE | D29: Ecoinvent | E29: zinc oxide, at plant | F29: Good | G29: Good | H29: Good | I29: Fair | J29: Good | K29: Industrial Products | L29: 0.009084030374 | M29: 0.00238048012 | N29: 0.009084030374 | O29: 0.00238048012 | P29: 0.03324115007 | Q29: =LN(VLOOKUP(K29,'Data Quality Matrix'!$A$12:$B$22,2,FALSE))^2 -> 0.00238048012 | R29: 1.27375906
A30: ='User Defined Excipient EFs'!A32 -> 0 | B30: FALSE | C30: =IF(ISBLANK('User Defined Excipient EFs'!C32),FALSE,'User Defined Excipient EFs'!C32) -> FALSE | Q30: =LN(VLOOKUP(K30,'Data Quality Matrix'!$A$12:$B$22,2,FALSE))^2 -> 
A31: ='User Defined Excipient EFs'!A33 -> 0 | B31: FALSE | C31: =IF(ISBLANK('User Defined Excipient EFs'!C33),FALSE,'User Defined Excipient EFs'!C33) -> FALSE | Q31: =LN(VLOOKUP(K31,'Data Quality Matrix'!$A$12:$B$22,2,FALSE))^2 -> 
A32: ='User Defined Excipient EFs'!A34 -> 0 | B32: FALSE | C32: =IF(ISBLANK('User Defined Excipient EFs'!C34),FALSE,'User Defined Excipient EFs'!C34) -> FALSE | Q32: =LN(VLOOKUP(K32,'Data Quality Matrix'!$A$12:$B$22,2,FALSE))^2 -> 
A33: ='User Defined Excipient EFs'!A35 -> 0 | B33: FALSE | C33: =IF(ISBLANK('User Defined Excipient EFs'!C35),FALSE,'User Defined Excipient EFs'!C35) -> FALSE | Q33: =LN(VLOOKUP(K33,'Data Quality Matrix'!$A$12:$B$22,2,FALSE))^2 -> 
A34: ='User Defined Excipient EFs'!A36 -> 0 | B34: FALSE | C34: =IF(ISBLANK('User Defined Excipient EFs'!C36),FALSE,'User Defined Excipient EFs'!C36) -> FALSE | Q34: =LN(VLOOKUP(K34,'Data Quality Matrix'!$A$12:$B$22,2,FALSE))^2 -> 
A35: ='User Defined Excipient EFs'!A37 -> 0 | B35: FALSE | C35: =IF(ISBLANK('User Defined Excipient EFs'!C37),FALSE,'User Defined Excipient EFs'!C37) -> FALSE | Q35: =LN(VLOOKUP(K35,'Data Quality Matrix'!$A$12:$B$22,2,FALSE))^2 -> 
A36: ='User Defined Excipient EFs'!A38 -> 0 | B36: FALSE | C36: =IF(ISBLANK('User Defined Excipient EFs'!C38),FALSE,'User Defined Excipient EFs'!C38) -> FALSE | Q36: =LN(VLOOKUP(K36,'Data Quality Matrix'!$A$12:$B$22,2,FALSE))^2 -> 
A37: ='User Defined Excipient EFs'!A39 -> 0 | B37: FALSE | C37: =IF(ISBLANK('User Defined Excipient EFs'!C39),FALSE,'User Defined Excipient EFs'!C39) -> FALSE | Q37: =LN(VLOOKUP(K37,'Data Quality Matrix'!$A$12:$B$22,2,FALSE))^2 -> 
A38: ='User Defined Excipient EFs'!A40 -> 0 | B38: FALSE | C38: =IF(ISBLANK('User Defined Excipient EFs'!C40),FALSE,'User Defined Excipient EFs'!C40) -> FALSE | Q38: =LN(VLOOKUP(K38,'Data Quality Matrix'!$A$12:$B$22,2,FALSE))^2 -> 
A39: ='User Defined Excipient EFs'!A41 -> 0 | B39: FALSE | C39: =IF(ISBLANK('User Defined Excipient EFs'!C41),FALSE,'User Defined Excipient EFs'!C41) -> FALSE | Q39: =LN(VLOOKUP(K39,'Data Quality Matrix'!$A$12:$B$22,2,FALSE))^2 -> 
A40: ='User Defined Excipient EFs'!A42 -> 0 | B40: FALSE | C40: =IF(ISBLANK('User Defined Excipient EFs'!C42),FALSE,'User Defined Excipient EFs'!C42) -> FALSE | Q40: =LN(VLOOKUP(K40,'Data Quality Matrix'!$A$12:$B$22,2,FALSE))^2 -> 
A41: ='User Defined Excipient EFs'!A43 -> 0 | B41: FALSE | C41: =IF(ISBLANK('User Defined Excipient EFs'!C43),FALSE,'User Defined Excipient EFs'!C43) -> FALSE | Q41: =LN(VLOOKUP(K41,'Data Quality Matrix'!$A$12:$B$22,2,FALSE))^2 -> 
A42: ='User Defined Excipient EFs'!A44 -> 0 | B42: FALSE | C42: =IF(ISBLANK('User Defined Excipient EFs'!C44),FALSE,'User Defined Excipient EFs'!C44) -> FALSE | Q42: =LN(VLOOKUP(K42,'Data Quality Matrix'!$A$12:$B$22,2,FALSE))^2 -> 
A43: ='User Defined Excipient EFs'!A45 -> 0 | B43: FALSE | C43: =IF(ISBLANK('User Defined Excipient EFs'!C45),FALSE,'User Defined Excipient EFs'!C45) -> FALSE | Q43: =LN(VLOOKUP(K43,'Data Quality Matrix'!$A$12:$B$22,2,FALSE))^2 -> 
A44: ='User Defined Excipient EFs'!A46 -> 0 | B44: FALSE | C44: =IF(ISBLANK('User Defined Excipient EFs'!C46),FALSE,'User Defined Excipient EFs'!C46) -> FALSE | Q44: =LN(VLOOKUP(K44,'Data Quality Matrix'!$A$12:$B$22,2,FALSE))^2 -> 
A45: ='User Defined Excipient EFs'!A47 -> 0 | B45: FALSE | C45: =IF(ISBLANK('User Defined Excipient EFs'!C47),FALSE,'User Defined Excipient EFs'!C47) -> FALSE | Q45: =LN(VLOOKUP(K45,'Data Quality Matrix'!$A$12:$B$22,2,FALSE))^2 -> 
A46: ='User Defined Excipient EFs'!A48 -> 0 | B46: FALSE | C46: =IF(ISBLANK('User Defined Excipient EFs'!C48),FALSE,'User Defined Excipient EFs'!C48) -> FALSE | Q46: =LN(VLOOKUP(K46,'Data Quality Matrix'!$A$12:$B$22,2,FALSE))^2 -> 
A47: ='User Defined Excipient EFs'!A49 -> 0 | B47: FALSE | C47: =IF(ISBLANK('User Defined Excipient EFs'!C49),FALSE,'User Defined Excipient EFs'!C49) -> FALSE | Q47: =LN(VLOOKUP(K47,'Data Quality Matrix'!$A$12:$B$22,2,FALSE))^2 -> 

Sheet Reference Data (hidden)
A1: APIs
A3: Type of API Emission Factors (for dropdown)
B4: <----This row intentionally blank
A5: Specific
A6: Calculated
A7: High/Medium/Low
A8: Average
A10: High/Medium/Low API Emission Factors
A12: Low | B12: 600 | C12: kg CO2e/kg
A13: Medium | B13: 1500 | C13: kg CO2e/kg
A14: High | B14: 7000 | C14: kg CO2e/kg
A16: Average API Emission Factors
A18: Average Factor | B18: 1500 | C18: kg CO2e/kg
A20: FORMULATION
A22: Electricity requirement (kWh per kg of tablet): | B22: 14.31
A23: Gas requirement (kWh per kg of tablet): | B23: 14.4
A25: PACKAGING
A27: Electricity requirement (kWh per kg of tablet): | B27: 11.45
A28: Gas requirement (kWh per kg of tablet): | B28: 11.52
A31: DEFAULT PACKAGING
A33: Summary:
A35: Total Weight per tablet (mg): | B35: =IF(WasteDefault="Small",SUM('Reference Data'!E42:E46),IF(WasteDefault="Medium",SUM(E52:E56),IF(WasteDefault="Large",SUM(E62:E66),""))) -> 
A38: Small:
A40: Material | B40: Quantites per tablet (g) | E40: Total weight per tablet (mg)
B41: Blister | C41: Retail | D41: Outer
A42: PVC - blister | B42: 1.486 | E42: =SUM(B42:D42)*1000 -> 1486
A43: PVdC - blister | B43: 0.178 | E43: =SUM(B43:D43)*1000 -> 178
A44: Aluminium | B44: 0.239 | E44: =SUM(B44:D44)*1000 -> 239
A45: Paper | C45: =4/TabletsPerPack ->  | E45: =SUM(B45:D45)*1000 -> 
A46: Cardboard | C46: =10.56/TabletsPerPack ->  | D46: =195/(TabletsPerPack*30) ->  | E46: =SUM(B46:D46)*1000 -> 
A48: Medium:
A50: Material | B50: Quantites per tablet (g) | E50: Total weight per tablet (mg)
B51: Blister | C51: Retail | D51: Outer
A52: PVC - blister | B52: 2.351 | E52: =SUM(B52:D52)*1000 -> 2351
A53: PVdC - blister | B53: 0.282 | E53: =SUM(B53:D53)*1000 -> 282
A54: Aluminium | B54: 0.377 | E54: =SUM(B54:D54)*1000 -> 377
A55: Paper | C55: =6/TabletsPerPack ->  | E55: =SUM(B55:D55)*1000 -> 
A56: Cardboard | C56: =13.56/TabletsPerPack ->  | D56: =195/(TabletsPerPack*30) ->  | E56: =SUM(B56:D56)*1000 -> 
A58: Large:
A60: Material | B60: Quantites per tablet (g) | E60: Total weight per tablet (mg)
B61: Blister | C61: Retail | D61: Outer
A62: PVC - blister | B62: 3.634 | E62: =SUM(B62:D62)*1000 -> 3634
A63: PVdC - blister | B63: 0.436 | E63: =SUM(B63:D63)*1000 -> 436
A64: Aluminium | B64: 0.583 | E64: =SUM(B64:D64)*1000 -> 583
A65: Paper | C65: =12/TabletsPerPack ->  | E65: =SUM(B65:D65)*1000 -> 
A66: Cardboard | C66: =24.8/TabletsPerPack ->  | D66: =195/(TabletsPerPack*30) ->  | E66: =SUM(B66:D66)*1000 -> 
A69: USE (PLASTIC CUP FOR NHS, PAPER BAG + LABEL FOR PHARMACY)
A71: NHS:
A73: Material | B73: PP - bottle
A74: Mass per cup | B74: 0.004 | C74: kg
A75: Avg. tablets per cup | B75: 2
A77: Pharmacy:
A79: Paper bag weight | B79: 0.012 | C79: kg
A80: Paper label weight | B80: =0.05*0.08*0.1*2 -> 0.0008 | C80: kg
A82: DEFAULT SALES SPLIT
A84: NHS hospital | B84: 0.3
A85: Other hospital | B85: 0.1
A86: Pharmacy (NHS prescription) | B86: 0.5
A87: Pharmacy (non-NHS)/retail | B87: 0.1
A89: DEFAULT WASTAGE RATES
A91: Formulation Site 1 - Process Wastage | B91: 0.02
A92: Formulation Site 2 - Process Wastage | B92: 0.02
A93: % Product lost during packaging | B93: 0.005
A94: % Packaging lost during packaging | B94: 0.025
A95: RDC Wastage | B95: 0.02
A97: DEFAULT PACKAGING SPLIT
A99: Default Blisters Per Retail Pack: | B99: 4
A100: Default retail packs per outer box: | B100: 50
A101: Default outer boxes per pallet: | B101: 200

Sheet FPX Reference Data (hidden)
A1: Core Data Details | B1: Footprint Expert Reference Database 3.3 | H1: Intrinsic Data Quality | I1: Data Application Information | M1: Data Intrinsic Information | T1: PAS 2050 Compliancy Information
A2: Data Group | B2: Unique Name | D2: Number | E2: Units | F2: Technical scope | G2: Data type | H2: Intrinsic data quality grade | I2: Geographical Area | J2: Data Source Date | K2: Date Collection End Period | L2: Technology/method/notes | M2: Accuracy | N2: Representativeness | O2: Consistency | P2: Reproducibility | Q2: Data source organisation | R2: Data source publication | S2: Source Author | T2: Boundaries criteria | U2: Cut off | V2: Allocation principle | W2: Allocation type | X2: Offsetting included | Y2: GHGs included and GWP | Z2: Biogenic carbon treatment | AA2: Biogenic carbon storage | AB2: Land use change
A3: Biodegradability Rates | B3: Degradability rate -Card packaging | D3: 0.64 | E3: % | F3: N/A | G3: Activity Data | H3: B | I3: EU | J3: 2002 | K3: 2001 | L3: Calculated using existing literature | M3: Calculated | N3: Medium | O3: High | P3: Medium | Q3: Golders Associates, Environment Agency and Land Quality Management Ltd | R3: Development of a landfill gas risk assessment model: GasSim | S3: Golders Associates, Environment Agency and Land Quality Management Ltd | T3: N/A | U3: N/A | V3: N/A | W3: N/A | X3: N/A | Y3: N/A | Z3: N/A | AA3: N/A | AB3: N/A
A4: Biodegradability Rates | B4: Degradability rate -Composted Organic Material | D4: 0.57 | E4: % | F4: N/A | G4: Activity Data | H4: B | I4: EU | J4: 2002 | K4: 2001 | L4: Calculated using existing literature | M4: Calculated | N4: Medium | O4: High | P4: Medium | Q4: Golders Associates, Environment Agency and Land Quality Management Ltd | R4: Development of a landfill gas risk assessment model: GasSim | S4: Golders Associates, Environment Agency and Land Quality Management Ltd | T4: N/A | U4: N/A | V4: N/A | W4: N/A | X4: N/A | Y4: N/A | Z4: N/A | AA4: N/A | AB4: N/A
A5: Biodegradability Rates | B5: Degradability rate -Incinerator Ash | D5: 0.57 | E5: % | F5: N/A | G5: Activity Data | H5: B | I5: EU | J5: 2002 | K5: 2001 | L5: Calculated using existing literature | M5: Calculated | N5: Medium | O5: High | P5: Medium | Q5: Golders Associates, Environment Agency and Land Quality Management Ltd | R5: Development of a landfill gas risk assessment model: GasSim | S5: Golders Associates, Environment Agency and Land Quality Management Ltd | T5: N/A | U5: N/A | V5: N/A | W5: N/A | X5: N/A | Y5: N/A | Z5: N/A | AA5: N/A | AB5: N/A
A6: Biodegradability Rates | B6: Degradability rate -Liquid Cartons | D6: 0.64 | E6: % | F6: N/A | G6: Activity Data | H6: B | I6: EU | J6: 2002 | K6: 2001 | L6: Calculated using existing literature | M6: Calculated | N6: Medium | O6: High | P6: Medium | Q6: Golders Associates, Environment Agency and Land Quality Management Ltd | R6: Development of a landfill gas risk assessment model: GasSim | S6: Golders Associates, Environment Agency and Land Quality Management Ltd | T6: N/A | U6: N/A | V6: N/A | W6: N/A | X6: N/A | Y6: N/A | Z6: N/A | AA6: N/A | AB6: N/A
A7: Biodegradability Rates | B7: Degradability rate -Non-degradable (e.g. plastics) | D7: 0 | E7: % | F7: N/A | G7: Activity Data | H7: B | I7: EU | J7: 2002 | K7: 2001 | L7: Calculated using existing literature | M7: Calculated | N7: Medium | O7: High | P7: Medium | Q7: Golders Associates, Environment Agency and Land Quality Management Ltd | R7: Development of a landfill gas risk assessment model: GasSim | S7: Golders Associates, Environment Agency and Land Quality Management Ltd | T7: N/A | U7: N/A | V7: N/A | W7: N/A | X7: N/A | Y7: N/A | Z7: N/A | AA7: N/A | AB7: N/A
A8: Biodegradability Rates | B8: Degradability rate -Other Card | D8: 0.64 | E8: % | F8: N/A | G8: Activity Data | H8: B | I8: EU | J8: 2002 | K8: 2001 | L8: Calculated using existing literature | M8: Calculated | N8: Medium | O8: High | P8: Medium | Q8: Golders Associates, Environment Agency and Land Quality Management Ltd | R8: Development of a landfill gas risk assessment model: GasSim | S8: Golders Associates, Environment Agency and Land Quality Management Ltd | T8: N/A | U8: N/A | V8: N/A | W8: N/A | X8: N/A | Y8: N/A | Z8: N/A | AA8: N/A | AB8: N/A
A9: Biodegradability Rates | B9: Degradability rate -Other misc. combustibles | D9: 0.5 | E9: % | F9: N/A | G9: Activity Data | H9: B | I9: EU | J9: 2002 | K9: 2001 | L9: Calculated using existing literature | M9: Calculated | N9: Medium | O9: High | P9: Medium | Q9: Golders Associates, Environment Agency and Land Quality Management Ltd | R9: Development of a landfill gas risk assessment model: GasSim | S9: Golders Associates, Environment Agency and Land Quality Management Ltd | T9: N/A | U9: N/A | V9: N/A | W9: N/A | X9: N/A | Y9: N/A | Z9: N/A | AA9: N/A | AB9: N/A
A10: Biodegradability Rates | B10: Degradability rate -Other Paper | D10: 0.98 | E10: % | F10: N/A | G10: Activity Data | H10: B | I10: EU | J10: 2002 | K10: 2001 | L10: Calculated using existing literature | M10: Calculated | N10: Medium | O10: High | P10: Medium | Q10: Golders Associates, Environment Agency and Land Quality Management Ltd | R10: Development of a landfill gas risk assessment model: GasSim | S10: Golders Associates, Environment Agency and Land Quality Management Ltd | T10: N/A | U10: N/A | V10: N/A | W10: N/A | X10: N/A | Y10: N/A | Z10: N/A | AA10: N/A | AB10: N/A
A11: Biodegradability Rates | B11: Degradability rate -Textiles | D11: 0.5 | E11: % | F11: N/A | G11: Activity Data | H11: B | I11: EU | J11: 2002 | K11: 2001 | L11: Calculated using existing literature | M11: Calculated | N11: Medium | O11: High | P11: Medium | Q11: Golders Associates, Environment Agency and Land Quality Management Ltd | R11: Development of a landfill gas risk assessment model: GasSim | S11: Golders Associates, Environment Agency and Land Quality Management Ltd | T11: N/A | U11: N/A | V11: N/A | W11: N/A | X11: N/A | Y11: N/A | Z11: N/A | AA11: N/A | AB11: N/A
A12: Biodegradability Rates | B12: Degradability rate -Wood | D12: 0.75 | E12: % | F12: N/A | G12: Activity Data | H12: B | I12: EU | J12: 2002 | K12: 2001 | L12: Calculated using existing literature | M12: Calculated | N12: Medium | O12: High | P12: Medium | Q12: Golders Associates, Environment Agency and Land Quality Management Ltd | R12: Development of a landfill gas risk assessment model: GasSim | S12: Golders Associates, Environment Agency and Land Quality Management Ltd | T12: N/A | U12: N/A | V12: N/A | W12: N/A | X12: N/A | Y12: N/A | Z12: N/A | AA12: N/A | AB12: N/A
A13: Carbon Contents | B13: Biogenic Carbon Content - Absorbent hygiene | D13: 0.148 | E13: % | F13: N/A | G13: Activity Data | H13: B | I13: EU | J13: 2006 | K13: 2005 | L13: Study using surveys/sampling | M13: Calculated | N13: Medium | O13: High | P13: Medium | Q13: ERM, Golders Associates | R13: Carbon Balances and Energy impacts of the Management of UK wastes | S13: ERM and Golders Associates | T13: N/A | U13: N/A | V13: N/A | W13: N/A | X13: N/A | Y13: N/A | Z13: N/A | AA13: N/A | AB13: N/A
A14: Carbon Contents | B14: Biogenic Carbon Content - aggregates/minerals | D14: 0 | E14: % | F14: N/A | G14: Activity Data | H14: B | I14: EU | J14: 2006 | K14: 2005 | L14: Study using surveys/sampling | M14: Calculated | N14: Medium | O14: High | P14: Medium | Q14: ERM, Golders Associates | R14: Carbon Balances and Energy impacts of the Management of UK wastes | S14: ERM and Golders Associates | T14: N/A | U14: N/A | V14: N/A | W14: N/A | X14: N/A | Y14: N/A | Z14: N/A | AA14: N/A | AB14: N/A
A15: Carbon Contents | B15: Biogenic Carbon Content - Biogenic Carbon Content - WEEE | D15: 0 | E15: % | F15: N/A | G15: Activity Data | H15: B | I15: EU | J15: 2006 | K15: 2005 | L15: Study using surveys/sampling | M15: Calculated | N15: Medium | O15: High | P15: Medium | Q15: ERM, Golders Associates | R15: Carbon Balances and Energy impacts of the Management of UK wastes | S15: ERM and Golders Associates | T15: N/A | U15: N/A | V15: N/A | W15: N/A | X15: N/A | Y15: N/A | Z15: N/A | AA15: N/A | AB15: N/A
A16: Carbon Contents | B16: Biogenic Carbon Content - Combustion residues | D16: 0 | E16: % | F16: N/A | G16: Activity Data | H16: B | I16: EU | J16: 2006 | K16: 2005 | L16: Study using surveys/sampling | M16: Calculated | N16: Medium | O16: High | P16: Medium | Q16: ERM, Golders Associates | R16: Carbon Balances and Energy impacts of the Management of UK wastes | S16: ERM and Golders Associates | T16: N/A | U16: N/A | V16: N/A | W16: N/A | X16: N/A | Y16: N/A | Z16: N/A | AA16: N/A | AB16: N/A
A17: Carbon Contents | B17: Biogenic Carbon Content - ELVs | D17: 0 | E17: % | F17: N/A | G17: Activity Data | H17: B | I17: EU | J17: 2006 | K17: 2005 | L17: Study using surveys/sampling | M17: Calculated | N17: Medium | O17: High | P17: Medium | Q17: ERM, Golders Associates | R17: Carbon Balances and Energy impacts of the Management of UK wastes | S17: ERM and Golders Associates | T17: N/A | U17: N/A | V17: N/A | W17: N/A | X17: N/A | Y17: N/A | Z17: N/A | AA17: N/A | AB17: N/A
A18: Carbon Contents | B18: Biogenic Carbon Content - Fines | D18: 0.069 | E18: % | F18: N/A | G18: Activity Data | H18: B | I18: EU | J18: 2006 | K18: 2005 | L18: Study using surveys/sampling | M18: Calculated | N18: Medium | O18: High | P18: Medium | Q18: ERM, Golders Associates | R18: Carbon Balances and Energy impacts of the Management of UK wastes | S18: ERM and Golders Associates | T18: N/A | U18: N/A | V18: N/A | W18: N/A | X18: N/A | Y18: N/A | Z18: N/A | AA18: N/A | AB18: N/A
A19: Carbon Contents | B19: Biogenic Carbon Content - Glass | D19: 0.003 | E19: % | F19: N/A | G19: Activity Data | H19: B | I19: EU | J19: 2006 | K19: 2005 | L19: Study using surveys/sampling | M19: Calculated | N19: Medium | O19: High | P19: Medium | Q19: ERM, Golders Associates | R19: Carbon Balances and Energy impacts of the Management of UK wastes | S19: ERM and Golders Associates | T19: N/A | U19: N/A | V19: N/A | W19: N/A | X19: N/A | Y19: N/A | Z19: N/A | AA19: N/A | AB19: N/A
A20: Carbon Contents | B20: Biogenic Carbon Content - Green/Plant Waste | D20: 0.172 | E20: % | F20: N/A | G20: Activity Data | H20: B | I20: EU | J20: 2006 | K20: 2005 | L20: Study using surveys/sampling | M20: Calculated | N20: Medium | O20: High | P20: Medium | Q20: ERM, Golders Associates | R20: Carbon Balances and Energy impacts of the Management of UK wastes | S20: ERM and Golders Associates | T20: N/A | U20: N/A | V20: N/A | W20: N/A | X20: N/A | Y20: N/A | Z20: N/A | AA20: N/A | AB20: N/A
A21: Carbon Contents | B21: Biogenic Carbon Content - Inorganic Chemicals | D21: 0 | E21: % | F21: N/A | G21: Activity Data | H21: B | I21: EU | J21: 2006 | K21: 2005 | L21: Study using surveys/sampling | M21: Calculated | N21: Medium | O21: High | P21: Medium | Q21: ERM, Golders Associates | R21: Carbon Balances and Energy impacts of the Management of UK wastes | S21: ERM and Golders Associates | T21: N/A | U21: N/A | V21: N/A | W21: N/A | X21: N/A | Y21: N/A | Z21: N/A | AA21: N/A | AB21: N/A
A22: Carbon Contents | B22: Biogenic Carbon Content - Inorganic Sludges | D22: 0 | E22: % | F22: N/A | G22: Activity Data | H22: B | I22: EU | J22: 2006 | K22: 2005 | L22: Study using surveys/sampling | M22: Calculated | N22: Medium | O22: High | P22: Medium | Q22: ERM, Golders Associates | R22: Carbon Balances and Energy impacts of the Management of UK wastes | S22: ERM and Golders Associates | T22: N/A | U22: N/A | V22: N/A | W22: N/A | X22: N/A | Y22: N/A | Z22: N/A | AA22: N/A | AB22: N/A
A23: Carbon Contents | B23: Biogenic Carbon Content - Kitchen/Food Waste | D23: 0.135 | E23: % | F23: N/A | G23: Activity Data | H23: B | I23: EU | J23: 2006 | K23: 2005 | L23: Study using surveys/sampling | M23: Calculated | N23: Medium | O23: High | P23: Medium | Q23: ERM, Golders Associates | R23: Carbon Balances and Energy impacts of the Management of UK wastes | S23: ERM and Golders Associates | T23: N/A | U23: N/A | V23: N/A | W23: N/A | X23: N/A | Y23: N/A | Z23: N/A | AA23: N/A | AB23: N/A
A24: Carbon Contents | B24: Biogenic Carbon Content - Mixed Chemicals | D24: 0 | E24: % | F24: N/A | G24: Activity Data | H24: B | I24: EU | J24: 2006 | K24: 2005 | L24: Study using surveys/sampling | M24: Calculated | N24: Medium | O24: High | P24: Medium | Q24: ERM, Golders Associates | R24: Carbon Balances and Energy impacts of the Management of UK wastes | S24: ERM and Golders Associates | T24: N/A | U24: N/A | V24: N/A | W24: N/A | X24: N/A | Y24: N/A | Z24: N/A | AA24: N/A | AB24: N/A
A25: Carbon Contents | B25: Biogenic Carbon Content - Oils/Fuels | D25: 0 | E25: % | F25: N/A | G25: Activity Data | H25: B | I25: EU | J25: 2006 | K25: 2005 | L25: Study using surveys/sampling | M25: Calculated | N25: Medium | O25: High | P25: Medium | Q25: ERM, Golders Associates | R25: Carbon Balances and Energy impacts of the Management of UK wastes | S25: ERM and Golders Associates | T25: N/A | U25: N/A | V25: N/A | W25: N/A | X25: N/A | Y25: N/A | Z25: N/A | AA25: N/A | AB25: N/A
A26: Carbon Contents | B26: Biogenic Carbon Content - Organic Chemicals | D26: 0 | E26: % | F26: N/A | G26: Activity Data | H26: B | I26: EU | J26: 2006 | K26: 2005 | L26: Study using surveys/sampling | M26: Calculated | N26: Medium | O26: High | P26: Medium | Q26: ERM, Golders Associates | R26: Carbon Balances and Energy impacts of the Management of UK wastes | S26: ERM and Golders Associates | T26: N/A | U26: N/A | V26: N/A | W26: N/A | X26: N/A | Y26: N/A | Z26: N/A | AA26: N/A | AB26: N/A
A27: Carbon Contents | B27: Biogenic Carbon Content - Organic Sludges | D27: 0.309 | E27: % | F27: N/A | G27: Activity Data | H27: B | I27: EU | J27: 2006 | K27: 2005 | L27: Study using surveys/sampling | M27: Calculated | N27: Medium | O27: High | P27: Medium | Q27: ERM, Golders Associates | R27: Carbon Balances and Energy impacts of the Management of UK wastes | S27: ERM and Golders Associates | T27: N/A | U27: N/A | V27: N/A | W27: N/A | X27: N/A | Y27: N/A | Z27: N/A | AA27: N/A | AB27: N/A
A28: Carbon Contents | B28: Biogenic Carbon Content - other non combustibles | D28: 0.035 | E28: % | F28: N/A | G28: Activity Data | H28: B | I28: EU | J28: 2006 | K28: 2005 | L28: Study using surveys/sampling | M28: Calculated | N28: Medium | O28: High | P28: Medium | Q28: ERM, Golders Associates | R28: Carbon Balances and Energy impacts of the Management of UK wastes | S28: ERM and Golders Associates | T28: N/A | U28: N/A | V28: N/A | W28: N/A | X28: N/A | Y28: N/A | Z28: N/A | AA28: N/A | AB28: N/A
A29: Carbon Contents | B29: Biogenic Carbon Content - Other organic waste | D29: 0.135 | E29: % | F29: N/A | G29: Activity Data | H29: B | I29: EU | J29: 2006 | K29: 2005 | L29: Study using surveys/sampling | M29: Calculated | N29: Medium | O29: High | P29: Medium | Q29: ERM, Golders Associates | R29: Carbon Balances and Energy impacts of the Management of UK wastes | S29: ERM and Golders Associates | T29: N/A | U29: N/A | V29: N/A | W29: N/A | X29: N/A | Y29: N/A | Z29: N/A | AA29: N/A | AB29: N/A
A30: Carbon Contents | B30: Biogenic Carbon Content - Paper and Card | D30: 0.319 | E30: % | F30: N/A | G30: Activity Data | H30: B | I30: EU | J30: 2006 | K30: 2005 | L30: Study using surveys/sampling | M30: Calculated | N30: Medium | O30: High | P30: Medium | Q30: ERM, Golders Associates | R30: Carbon Balances and Energy impacts of the Management of UK wastes | S30: ERM and Golders Associates | T30: N/A | U30: N/A | V30: N/A | W30: N/A | X30: N/A | Y30: N/A | Z30: N/A | AA30: N/A | AB30: N/A
A31: Carbon Contents | B31: Biogenic Carbon Content - Plastic (dense) | D31: 0 | E31: % | F31: N/A | G31: Activity Data | H31: B | I31: EU | J31: 2006 | K31: 2005 | L31: Study using surveys/sampling | M31: Calculated | N31: Medium | O31: High | P31: Medium | Q31: ERM, Golders Associates | R31: Carbon Balances and Energy impacts of the Management of UK wastes | S31: ERM and Golders Associates | T31: N/A | U31: N/A | V31: N/A | W31: N/A | X31: N/A | Y31: N/A | Z31: N/A | AA31: N/A | AB31: N/A
A32: Carbon Contents | B32: Biogenic Carbon Content - Plastics (film) | D32: 0 | E32: % | F32: N/A | G32: Activity Data | H32: B | I32: EU | J32: 2006 | K32: 2005 | L32: Study using surveys/sampling | M32: Calculated | N32: Medium | O32: High | P32: Medium | Q32: ERM, Golders Associates | R32: Carbon Balances and Energy impacts of the Management of UK wastes | S32: ERM and Golders Associates | T32: N/A | U32: N/A | V32: N/A | W32: N/A | X32: N/A | Y32: N/A | Z32: N/A | AA32: N/A | AB32: N/A
A33: Carbon Contents | B33: Biogenic Carbon Content - Silt/soil | D33: 0.07 | E33: % | F33: N/A | G33: Activity Data | H33: B | I33: EU | J33: 2006 | K33: 2005 | L33: Study using surveys/sampling | M33: Calculated | N33: Medium | O33: High | P33: Medium | Q33: ERM, Golders Associates | R33: Carbon Balances and Energy impacts of the Management of UK wastes | S33: ERM and Golders Associates | T33: N/A | U33: N/A | V33: N/A | W33: N/A | X33: N/A | Y33: N/A | Z33: N/A | AA33: N/A | AB33: N/A
A34: Carbon Contents | B34: Biogenic Carbon Content - Textiles | D34: 0.199 | E34: % | F34: N/A | G34: Activity Data | H34: B | I34: EU | J34: 2006 | K34: 2005 | L34: Study using surveys/sampling | M34: Calculated | N34: Medium | O34: High | P34: Medium | Q34: ERM, Golders Associates | R34: Carbon Balances and Energy impacts of the Management of UK wastes | S34: ERM and Golders Associates | T34: N/A | U34: N/A | V34: N/A | W34: N/A | X34: N/A | Y34: N/A | Z34: N/A | AA34: N/A | AB34: N/A
A35: Carbon Contents | B35: Biogenic Carbon Content - Tyres | D35: 0 | E35: % | F35: N/A | G35: Activity Data | H35: B | I35: EU | J35: 2006 | K35: 2005 | L35: Study using surveys/sampling | M35: Calculated | N35: Medium | O35: High | P35: Medium | Q35: ERM, Golders Associates | R35: Carbon Balances and Energy impacts of the Management of UK wastes | S35: ERM and Golders Associates | T35: N/A | U35: N/A | V35: N/A | W35: N/A | X35: N/A | Y35: N/A | Z35: N/A | AA35: N/A | AB35: N/A
A36: Carbon Contents | B36: Biogenic Carbon Content - Wood | D36: 0.438 | E36: % | F36: N/A | G36: Activity Data | H36: B | I36: EU | J36: 2006 | K36: 2005 | L36: Study using surveys/sampling | M36: Calculated | N36: Medium | O36: High | P36: Medium | Q36: ERM, Golders Associates | R36: Carbon Balances and Energy impacts of the Management of UK wastes | S36: ERM and Golders Associates | T36: N/A | U36: N/A | V36: N/A | W36: N/A | X36: N/A | Y36: N/A | Z36: N/A | AA36: N/A | AB36: N/A
A37: Carbon Contents | B37: Fossil Carbon Content - Absorbent hygiene | D37: 0.037 | E37: % | F37: N/A | G37: Activity Data | H37: B | I37: EU | J37: 2006 | K37: 2005 | L37: Study using surveys/sampling | M37: Calculated | N37: Medium | O37: High | P37: Medium | Q37: ERM, Golders Associates | R37: Carbon Balances and Energy impacts of the Management of UK wastes | S37: ERM and Golders Associates | T37: N/A | U37: N/A | V37: N/A | W37: N/A | X37: N/A | Y37: N/A | Z37: N/A | AA37: N/A | AB37: N/A
A38: Carbon Contents | B38: Fossil Carbon Content - aggregates/minerals | D38: 0.07 | E38: % | F38: N/A | G38: Activity Data | H38: B | I38: EU | J38: 2006 | K38: 2005 | L38: Study using surveys/sampling | M38: Calculated | N38: Medium | O38: High | P38: Medium | Q38: ERM, Golders Associates | R38: Carbon Balances and Energy impacts of the Management of UK wastes | S38: ERM and Golders Associates | T38: N/A | U38: N/A | V38: N/A | W38: N/A | X38: N/A | Y38: N/A | Z38: N/A | AA38: N/A | AB38: N/A
A39: Carbon Contents | B39: Fossil Carbon Content - Combustion residues | D39: 0.07 | E39: % | F39: N/A | G39: Activity Data | H39: B | I39: EU | J39: 2006 | K39: 2005 | L39: Study using surveys/sampling | M39: Calculated | N39: Medium | O39: High | P39: Medium | Q39: ERM, Golders Associates | R39: Carbon Balances and Energy impacts of the Management of UK wastes | S39: ERM and Golders Associates | T39: N/A | U39: N/A | V39: N/A | W39: N/A | X39: N/A | Y39: N/A | Z39: N/A | AA39: N/A | AB39: N/A
A40: Carbon Contents | B40: Fossil Carbon Content - ELVs | D40: 0.158 | E40: % | F40: N/A | G40: Activity Data | H40: B | I40: EU | J40: 2006 | K40: 2005 | L40: Study using surveys/sampling | M40: Calculated | N40: Medium | O40: High | P40: Medium | Q40: ERM, Golders Associates | R40: Carbon Balances and Energy impacts of the Management of UK wastes | S40: ERM and Golders Associates | T40: N/A | U40: N/A | V40: N/A | W40: N/A | X40: N/A | Y40: N/A | Z40: N/A | AA40: N/A | AB40: N/A
A41: Carbon Contents | B41: Fossil Carbon Content - Fines | D41: 0.069 | E41: % | F41: N/A | G41: Activity Data | H41: B | I41: EU | J41: 2006 | K41: 2005 | L41: Study using surveys/sampling | M41: Calculated | N41: Medium | O41: High | P41: Medium | Q41: ERM, Golders Associates | R41: Carbon Balances and Energy impacts of the Management of UK wastes | S41: ERM and Golders Associates | T41: N/A | U41: N/A | V41: N/A | W41: N/A | X41: N/A | Y41: N/A | Z41: N/A | AA41: N/A | AB41: N/A
A42: Carbon Contents | B42: Fossil Carbon Content - Glass | D42: 0 | E42: % | F42: N/A | G42: Activity Data | H42: B | I42: EU | J42: 2006 | K42: 2005 | L42: Study using surveys/sampling | M42: Calculated | N42: Medium | O42: High | P42: Medium | Q42: ERM, Golders Associates | R42: Carbon Balances and Energy impacts of the Management of UK wastes | S42: ERM and Golders Associates | T42: N/A | U42: N/A | V42: N/A | W42: N/A | X42: N/A | Y42: N/A | Z42: N/A | AA42: N/A | AB42: N/A
A43: Carbon Contents | B43: Fossil Carbon Content - Green/Plant Waste | D43: 0 | E43: % | F43: N/A | G43: Activity Data | H43: B | I43: EU | J43: 2006 | K43: 2005 | L43: Study using surveys/sampling | M43: Calculated | N43: Medium | O43: High | P43: Medium | Q43: ERM, Golders Associates | R43: Carbon Balances and Energy impacts of the Management of UK wastes | S43: ERM and Golders Associates | T43: N/A | U43: N/A | V43: N/A | W43: N/A | X43: N/A | Y43: N/A | Z43: N/A | AA43: N/A | AB43: N/A
A44: Carbon Contents | B44: Fossil Carbon Content - Inorganic Chemicals | D44: 0.384 | E44: % | F44: N/A | G44: Activity Data | H44: B | I44: EU | J44: 2006 | K44: 2005 | L44: Study using surveys/sampling | M44: Calculated | N44: Medium | O44: High | P44: Medium | Q44: ERM, Golders Associates | R44: Carbon Balances and Energy impacts of the Management of UK wastes | S44: ERM and Golders Associates | T44: N/A | U44: N/A | V44: N/A | W44: N/A | X44: N/A | Y44: N/A | Z44: N/A | AA44: N/A | AB44: N/A
A45: Carbon Contents | B45: Fossil Carbon Content - Inorganic Sludges | D45: 0.309 | E45: % | F45: N/A | G45: Activity Data | H45: B | I45: EU | J45: 2006 | K45: 2005 | L45: Study using surveys/sampling | M45: Calculated | N45: Medium | O45: High | P45: Medium | Q45: ERM, Golders Associates | R45: Carbon Balances and Energy impacts of the Management of UK wastes | S45: ERM and Golders Associates | T45: N/A | U45: N/A | V45: N/A | W45: N/A | X45: N/A | Y45: N/A | Z45: N/A | AA45: N/A | AB45: N/A
A46: Carbon Contents | B46: Fossil Carbon Content - Kitchen/Food Waste | D46: 0 | E46: % | F46: N/A | G46: Activity Data | H46: B | I46: EU | J46: 2006 | K46: 2005 | L46: Study using surveys/sampling | M46: Calculated | N46: Medium | O46: High | P46: Medium | Q46: ERM, Golders Associates | R46: Carbon Balances and Energy impacts of the Management of UK wastes | S46: ERM and Golders Associates | T46: N/A | U46: N/A | V46: N/A | W46: N/A | X46: N/A | Y46: N/A | Z46: N/A | AA46: N/A | AB46: N/A
A47: Carbon Contents | B47: Fossil Carbon Content - Mixed Chemicals | D47: 0.384 | E47: % | F47: N/A | G47: Activity Data | H47: B | I47: EU | J47: 2006 | K47: 2005 | L47: Study using surveys/sampling | M47: Calculated | N47: Medium | O47: High | P47: Medium | Q47: ERM, Golders Associates | R47: Carbon Balances and Energy impacts of the Management of UK wastes | S47: ERM and Golders Associates | T47: N/A | U47: N/A | V47: N/A | W47: N/A | X47: N/A | Y47: N/A | Z47: N/A | AA47: N/A | AB47: N/A
A48: Carbon Contents | B48: Fossil Carbon Content - Oils/Fuels | D48: 0.804 | E48: % | F48: N/A | G48: Activity Data | H48: B | I48: EU | J48: 2006 | K48: 2005 | L48: Study using surveys/sampling | M48: Calculated | N48: Medium | O48: High | P48: Medium | Q48: ERM, Golders Associates | R48: Carbon Balances and Energy impacts of the Management of UK wastes | S48: ERM and Golders Associates | T48: N/A | U48: N/A | V48: N/A | W48: N/A | X48: N/A | Y48: N/A | Z48: N/A | AA48: N/A | AB48: N/A
A49: Carbon Contents | B49: Fossil Carbon Content - Organic Chemicals | D49: 0.384 | E49: % | F49: N/A | G49: Activity Data | H49: B | I49: EU | J49: 2006 | K49: 2005 | L49: Study using surveys/sampling | M49: Calculated | N49: Medium | O49: High | P49: Medium | Q49: ERM, Golders Associates | R49: Carbon Balances and Energy impacts of the Management of UK wastes | S49: ERM and Golders Associates | T49: N/A | U49: N/A | V49: N/A | W49: N/A | X49: N/A | Y49: N/A | Z49: N/A | AA49: N/A | AB49: N/A
A50: Carbon Contents | B50: Fossil Carbon Content - other non combustibles | D50: 0.035 | E50: % | F50: N/A | G50: Activity Data | H50: B | I50: EU | J50: 2006 | K50: 2005 | L50: Study using surveys/sampling | M50: Calculated | N50: Medium | O50: High | P50: Medium | Q50: ERM, Golders Associates | R50: Carbon Balances and Energy impacts of the Management of UK wastes | S50: ERM and Golders Associates | T50: N/A | U50: N/A | V50: N/A | W50: N/A | X50: N/A | Y50: N/A | Z50: N/A | AA50: N/A | AB50: N/A
A51: Carbon Contents | B51: Fossil Carbon Content - Other organic waste | D51: 0 | E51: % | F51: N/A | G51: Activity Data | H51: B | I51: EU | J51: 2006 | K51: 2005 | L51: Study using surveys/sampling | M51: Calculated | N51: Medium | O51: High | P51: Medium | Q51: ERM, Golders Associates | R51: Carbon Balances and Energy impacts of the Management of UK wastes | S51: ERM and Golders Associates | T51: N/A | U51: N/A | V51: N/A | W51: N/A | X51: N/A | Y51: N/A | Z51: N/A | AA51: N/A | AB51: N/A
A52: Carbon Contents | B52: Fossil Carbon Content - Paper and Card | D52: 0 | E52: % | F52: N/A | G52: Activity Data | H52: B | I52: EU | J52: 2006 | K52: 2005 | L52: Study using surveys/sampling | M52: Calculated | N52: Medium | O52: High | P52: Medium | Q52: ERM, Golders Associates | R52: Carbon Balances and Energy impacts of the Management of UK wastes | S52: ERM and Golders Associates | T52: N/A | U52: N/A | V52: N/A | W52: N/A | X52: N/A | Y52: N/A | Z52: N/A | AA52: N/A | AB52: N/A
A53: Carbon Contents | B53: Fossil Carbon Content - Plastic (dense) | D53: 0.548 | E53: % | F53: N/A | G53: Activity Data | H53: B | I53: EU | J53: 2006 | K53: 2005 | L53: Study using surveys/sampling | M53: Calculated | N53: Medium | O53: High | P53: Medium | Q53: ERM, Golders Associates | R53: Carbon Balances and Energy impacts of the Management of UK wastes | S53: ERM and Golders Associates | T53: N/A | U53: N/A | V53: N/A | W53: N/A | X53: N/A | Y53: N/A | Z53: N/A | AA53: N/A | AB53: N/A
A54: Carbon Contents | B54: Fossil Carbon Content - Plastics (film) | D54: 0.478 | E54: % | F54: N/A | G54: Activity Data | H54: B | I54: EU | J54: 2006 | K54: 2005 | L54: Study using surveys/sampling | M54: Calculated | N54: Medium | O54: High | P54: Medium | Q54: ERM, Golders Associates | R54: Carbon Balances and Energy impacts of the Management of UK wastes | S54: ERM and Golders Associates | T54: N/A | U54: N/A | V54: N/A | W54: N/A | X54: N/A | Y54: N/A | Z54: N/A | AA54: N/A | AB54: N/A
A55: Carbon Contents | B55: Fossil Carbon Content - Silt/soil | D55: 0 | E55: % | F55: N/A | G55: Activity Data | H55: B | I55: EU | J55: 2006 | K55: 2005 | L55: Study using surveys/sampling | M55: Calculated | N55: Medium | O55: High | P55: Medium | Q55: ERM, Golders Associates | R55: Carbon Balances and Energy impacts of the Management of UK wastes | S55: ERM and Golders Associates | T55: N/A | U55: N/A | V55: N/A | W55: N/A | X55: N/A | Y55: N/A | Z55: N/A | AA55: N/A | AB55: N/A
A56: Carbon Contents | B56: Fossil Carbon Content - Textiles | D56: 0.199 | E56: % | F56: N/A | G56: Activity Data | H56: B | I56: EU | J56: 2006 | K56: 2005 | L56: Study using surveys/sampling | M56: Calculated | N56: Medium | O56: High | P56: Medium | Q56: ERM, Golders Associates | R56: Carbon Balances and Energy impacts of the Management of UK wastes | S56: ERM and Golders Associates | T56: N/A | U56: N/A | V56: N/A | W56: N/A | X56: N/A | Y56: N/A | Z56: N/A | AA56: N/A | AB56: N/A
A57: Carbon Contents | B57: Fossil Carbon Content - Tyres | D57: 0.74 | E57: % | F57: N/A | G57: Activity Data | H57: B | I57: EU | J57: 2006 | K57: 2005 | L57: Study using surveys/sampling | M57: Calculated | N57: Medium | O57: High | P57: Medium | Q57: ERM, Golders Associates | R57: Carbon Balances and Energy impacts of the Management of UK wastes | S57: ERM and Golders Associates | T57: N/A | U57: N/A | V57: N/A | W57: N/A | X57: N/A | Y57: N/A | Z57: N/A | AA57: N/A | AB57: N/A
A58: Carbon Contents | B58: Fossil Carbon Content - WEEE | D58: 0.158 | E58: % | F58: N/A | G58: Activity Data | H58: B | I58: EU | J58: 2006 | K58: 2005 | L58: Study using surveys/sampling | M58: Calculated | N58: Medium | O58: High | P58: Medium | Q58: ERM, Golders Associates | R58: Carbon Balances and Energy impacts of the Management of UK wastes | S58: ERM and Golders Associates | T58: N/A | U58: N/A | V58: N/A | W58: N/A | X58: N/A | Y58: N/A | Z58: N/A | AA58: N/A | AB58: N/A
A59: Carbon Contents | B59: Fossil Carbon Content - Wood | D59: 0 | E59: % | F59: N/A | G59: Activity Data | H59: B | I59: EU | J59: 2006 | K59: 2005 | L59: Study using surveys/sampling | M59: Calculated | N59: Medium | O59: High | P59: Medium | Q59: ERM, Golders Associates | R59: Carbon Balances and Energy impacts of the Management of UK wastes | S59: ERM and Golders Associates | T59: N/A | U59: N/A | V59: N/A | W59: N/A | X59: N/A | Y59: N/A | Z59: N/A | AA59: N/A | AB59: N/A
A60: Carbon Contents | B60: Fossil Carbon Contents - Organic Sludges | D60: 0 | E60: % | F60: N/A | G60: Activity Data | H60: B | I60: EU | J60: 2006 | K60: 2005 | L60: Study using surveys/sampling | M60: Calculated | N60: Medium | O60: High | P60: Medium | Q60: ERM, Golders Associates | R60: Carbon Balances and Energy impacts of the Management of UK wastes | S60: ERM and Golders Associates | T60: N/A | U60: N/A | V60: N/A | W60: N/A | X60: N/A | Y60: N/A | Z60: N/A | AA60: N/A | AB60: N/A
A61: Chemicals | B61: Acetic acid - from conventional petrochemicals | D61: 1.8 | E61: kg CO2(e)/kg | F61: Cradle to Gate | G61: Emission Factor | H61: B | I61: EU | J61: 2006 | K61: 2004 | L61: Survey/study of average technologies and production processes at time | M61: Calculated | N61: Medium | O61: Medium | P61: Low | Q61: European Commission, Utrecht University | R61: Medium and Long-term Opportunities and Risks of the Biotechnological Production of Bulk Chemicals from Renewable Resources | S61: Dr. Martin Patel et al. | T61: Custom definition | U61: PAS 2050 | V61: Unknown | W61: unknown | X61: No | Y61: PAS 2050 | Z61: Unknown | AA61: No | AB61: No
A62: Chemicals | B62: Acetone | D62: 2.2 | E62: kg CO2(e)/kg | F62: Cradle to Gate | G62: Emission Factor | H62: A | I62: EU | J62: 2005 | K62: 2001 | L62: PlasticsEurope Eco-profiles and EPDs represent European industry averages within the scope of PlasticsEurope as the issuing trade federation. As a general rule, Eco-profiles represent a minimum of three (3) producers. | M62: Calculated | N62: High | O62: High | P62: Medium | Q62: Plastics Europe, Carbon Trust | R62: Eco-profiles of the European Plastics Industry | S62: I Boustead | T62: ISO 14000 Series | U62: PAS 2050 | V62: ISO 14000 Series | W62: Mass | X62: No | Y62: PAS 2050 | Z62: Unknown | AA62: No | AB62: No
A63: Chemicals | B63: Acetone cyanohydrin | D63: 3.8 | E63: kg CO2(e)/kg | F63: Cradle to Gate | G63: Emission Factor | H63: A | I63: EU | J63: 2005 | K63: 2001 | L63: PlasticsEurope Eco-profiles and EPDs represent European industry averages within the scope of PlasticsEurope as the issuing trade federation. As a general rule, Eco-profiles represent a minimum of three (3) producers. | M63: Calculated | N63: High | O63: High | P63: Medium | Q63: Plastics Europe, Carbon Trust | R63: Eco-profiles of the European Plastics Industry | S63: I Boustead | T63: ISO 14000 Series | U63: PAS 2050 | V63: ISO 14000 Series | W63: Mass | X63: No | Y63: PAS 2050 | Z63: Unknown | AA63: No | AB63: No
A64: Chemicals | B64: Acrylic acid - from conventional petrochemicals | D64: 1.7 | E64: kg CO2(e)/kg | F64: Cradle to Gate | G64: Emission Factor | H64: B | I64: EU | J64: 2006 | K64: 2004 | L64: Survey/study of average technologies and production processes at time | M64: Calculated | N64: Medium | O64: Medium | P64: Low | Q64: European Commission, Utrecht University | R64: Medium and Long-term Opportunities and Risks of the Biotechnological Production of Bulk Chemicals from Renewable Resources | S64: Dr. Martin Patel et al. | T64: Custom definition | U64: PAS 2050 | V64: Unknown | W64: unknown | X64: No | Y64: PAS 2050 | Z64: Unknown | AA64: No | AB64: No
A65: Chemicals | B65: Acrylonitrile | D65: 3.2 | E65: kg CO2(e)/kg | F65: Cradle to Gate | G65: Emission Factor | H65: A | I65: EU | J65: 2005 | K65: 2001 | L65: PlasticsEurope Eco-profiles and EPDs represent European industry averages within the scope of PlasticsEurope as the issuing trade federation. As a general rule, Eco-profiles represent a minimum of three (3) producers. | M65: Calculated | N65: High | O65: High | P65: Medium | Q65: Plastics Europe, Carbon Trust | R65: Eco-profiles of the European Plastics Industry | S65: I Boustead | T65: ISO 14000 Series | U65: PAS 2050 | V65: ISO 14000 Series | W65: Mass | X65: No | Y65: PAS 2050 | Z65: Unknown | AA65: No | AB65: No
A66: Chemicals | B66: Adipic acid - from conventional petrochemicals | D66: 4 | E66: kg CO2(e)/kg | F66: Cradle to Gate | G66: Emission Factor | H66: B | I66: EU | J66: 2006 | K66: 2004 | L66: Survey/study of average technologies and production processes at time | M66: Calculated | N66: Medium | O66: Medium | P66: Low | Q66: European Commission, Utrecht University | R66: Medium and Long-term Opportunities and Risks of the Biotechnological Production of Bulk Chemicals from Renewable Resources | S66: Dr. Martin Patel et al. | T66: Custom definition | U66: PAS 2050 | V66: Unknown | W66: unknown | X66: No | Y66: PAS 2050 | Z66: Unknown | AA66: No | AB66: No
A67: Chemicals | B67: Alamine | D67: 1.3 | E67: kg CO2(e)/kg | F67: Cradle to Gate | G67: Emission Factor | H67: B | I67: GBR | J67: 2009 | K67: 2005 | L67: Calculated based on case study | M67: Calculated | N67: Medium | O67: High | P67: High | Q67: National Non-Food Crops Centre and North Energy | R67: Mortimer, N., A. Evans, A. Ashley, C. Hatto, V. Shaw, C. Whittaker and A. Hunter (2009) Life cycle assessment workbooks for selection of major renewable chemicals, NNFCC and North Energy. | S67: Mortimer, N., A. Evans, A. Ashley, C. Hatto, V. Shaw, C. Whittaker and A. Hunter | T67: Custom definition | U67: PAS 2050 | V67: PAS 2050 | W67: economic | X67: No | Y67: Kyoto gases only | Z67: Unknown | AA67: No | AB67: No
A68: Chemicals | B68: Ammonia | D68: 2.4 | E68: kg CO2(e)/kg | F68: Cradle to Gate | G68: Emission Factor | H68: A | I68: EU | J68: 2005 | K68: 2001 | L68: PlasticsEurope Eco-profiles and EPDs represent European industry averages within the scope of PlasticsEurope as the issuing trade federation. As a general rule, Eco-profiles represent a minimum of three (3) producers. | M68: Calculated | N68: High | O68: High | P68: Medium | Q68: Plastics Europe, Carbon Trust | R68: Eco-profiles of the European Plastics Industry | S68: I Boustead | T68: ISO 14000 Series | U68: PAS 2050 | V68: ISO 14000 Series | W68: Mass | X68: No | Y68: PAS 2050 | Z68: Unknown | AA68: No | AB68: No
A69: Chemicals | B69: Ammonium Bicarbonate | D69: 0.69 | E69: kg CO2(e)/kg | F69: Cradle to Gate | G69: Emission Factor | H69: B | I69: GBR | J69: 2009 | K69: 2007 | L69: Based on case study | M69: Calculated | N69: Medium | O69: High | P69: Medium | Q69: Department for Environment, Food and Rural Affairs (DEFRA) | R69: Scenario building to test and inform the development of a BSI method for assessing greenhouse gas emissions from food. Report to Defra, Project Reference Number: FO0404. ADAS, London, 2009. | S69: Jeremy Wiltshire, Adrian Williams et al. | T69: PAS 2050 | U69: PAS 2050 | V69: PAS 2050 | W69: multiple | X69: No | Y69: PAS 2050 | Z69: PAS 2050 | AA69: No | AB69: PAS 2050
A70: Chemicals | B70: Benzene | D70: 1.8 | E70: kg CO2(e)/kg | F70: Cradle to Gate | G70: Emission Factor | H70: A | I70: EU | J70: 2005 | K70: 2001 | L70: PlasticsEurope Eco-profiles and EPDs represent European industry averages within the scope of PlasticsEurope as the issuing trade federation. As a general rule, Eco-profiles represent a minimum of three (3) producers. | M70: Calculated | N70: High | O70: High | P70: Medium | Q70: Plastics Europe, Carbon Trust | R70: Eco-profiles of the European Plastics Industry | S70: I Boustead | T70: ISO 14000 Series | U70: PAS 2050 | V70: ISO 14000 Series | W70: Mass | X70: No | Y70: PAS 2050 | Z70: Unknown | AA70: No | AB70: No
A71: Chemicals | B71: Butadiene | D71: 1.2 | E71: kg CO2(e)/kg | F71: Cradle to Gate | G71: Emission Factor | H71: A | I71: EU | J71: 2005 | K71: 2001 | L71: PlasticsEurope Eco-profiles and EPDs represent European industry averages within the scope of PlasticsEurope as the issuing trade federation. As a general rule, Eco-profiles represent a minimum of three (3) producers. | M71: Calculated | N71: High | O71: High | P71: Medium | Q71: Plastics Europe, Carbon Trust | R71: Eco-profiles of the European Plastics Industry | S71: I Boustead | T71: ISO 14000 Series | U71: PAS 2050 | V71: ISO 14000 Series | W71: Mass | X71: No | Y71: PAS 2050 | Z71: Unknown | AA71: No | AB71: No
A72: Chemicals | B72: Butanol - from conventional petrochemicals | D72: 1.9 | E72: kg CO2(e)/kg | F72: Cradle to Gate | G72: Emission Factor | H72: B | I72: EU | J72: 2006 | K72: 2004 | L72: Survey/study of average technologies and production processes at time | M72: Calculated | N72: Medium | O72: Medium | P72: Low | Q72: European Commission, Utrecht University | R72: Medium and Long-term Opportunities and Risks of the Biotechnological Production of Bulk Chemicals from Renewable Resources | S72: Dr. Martin Patel et al. | T72: Custom definition | U72: PAS 2050 | V72: Unknown | W72: unknown | X72: No | Y72: PAS 2050 | Z72: Unknown | AA72: No | AB72: No
A73: Chemicals | B73: Butenes - mixed | D73: 1.5 | E73: kg CO2(e)/kg | F73: Cradle to Gate | G73: Emission Factor | H73: A | I73: EU | J73: 2005 | K73: 2001 | L73: PlasticsEurope Eco-profiles and EPDs represent European industry averages within the scope of PlasticsEurope as the issuing trade federation. As a general rule, Eco-profiles represent a minimum of three (3) producers. | M73: Calculated | N73: High | O73: High | P73: Medium | Q73: Plastics Europe, Carbon Trust | R73: Eco-profiles of the European Plastics Industry | S73: I Boustead | T73: ISO 14000 Series | U73: PAS 2050 | V73: ISO 14000 Series | W73: Mass | X73: No | Y73: PAS 2050 | Z73: Unknown | AA73: No | AB73: No
A74: Chemicals | B74: Calcium oxide - CaO (from calcium carbonate) | D74: 1.09 | E74: kg CO2(e)/kg | F74: Cradle to Gate | G74: Emission Factor | H74: B | I74: GBR | J74: 2009 | K74: 2005 | L74: Calculated based on case study | M74: Calculated | N74: Medium | O74: High | P74: High | Q74: National Non-Food Crops Centre and North Energy | R74: Mortimer, N., A. Evans, A. Ashley, C. Hatto, V. Shaw, C. Whittaker and A. Hunter (2009) Life cycle assessment workbooks for selection of major renewable chemicals, NNFCC and North Energy. | S74: Mortimer, N., A. Evans, A. Ashley, C. Hatto, V. Shaw, C. Whittaker and A. Hunter | T74: Custom definition | U74: PAS 2050 | V74: PAS 2050 | W74: economic | X74: No | Y74: Kyoto gases only | Z74: Unknown | AA74: No | AB74: No
A75: Chemicals | B75: Caprolactam - from conventional petrochemicals | D75: 5.3 | E75: kg CO2(e)/kg | F75: Cradle to Gate | G75: Emission Factor | H75: B | I75: EU | J75: 2006 | K75: 2004 | L75: Survey/study of average technologies and production processes at time | M75: Calculated | N75: Medium | O75: Medium | P75: Low | Q75: European Commission, Utrecht University | R75: Medium and Long-term Opportunities and Risks of the Biotechnological Production of Bulk Chemicals from Renewable Resources | S75: Dr. Martin Patel et al. | T75: Custom definition | U75: PAS 2050 | V75: Unknown | W75: unknown | X75: No | Y75: PAS 2050 | Z75: Unknown | AA75: No | AB75: No
A76: Chemicals | B76: Chlorine | D76: 0.79 | E76: kg CO2(e)/kg | F76: Cradle to Gate | G76: Emission Factor | H76: A | I76: EU | J76: 2005 | K76: 2001 | L76: PlasticsEurope Eco-profiles and EPDs represent European industry averages within the scope of PlasticsEurope as the issuing trade federation. As a general rule, Eco-profiles represent a minimum of three (3) producers. | M76: Calculated | N76: High | O76: High | P76: Medium | Q76: Plastics Europe, Carbon Trust | R76: Eco-profiles of the European Plastics Industry | S76: I Boustead | T76: ISO 14000 Series | U76: PAS 2050 | V76: ISO 14000 Series | W76: Mass | X76: No | Y76: PAS 2050 | Z76: Unknown | AA76: No | AB76: No
A77: Chemicals | B77: Concrete Release Agent - mineral Oil-Based | D77: 0.452 | E77: kg CO2(e)/kg | F77: Cradle to Gate | G77: Emission Factor | H77: B | I77: GBR | J77: 2007 | K77: 2005 | L77: Calculated based on case study | M77: Calculated | N77: Medium | O77: High | P77: High | Q77: National Non-Food Crops Centre and North Energy | R77: Environmental Assessment Tool for Biomaterials | S77: National Non-Food Crops Centre and North Energy | T77: Custom definition | U77: Unknown | V77: Organisational specific | W77: economic | X77: No | Y77: Kyoto gases only | Z77: Unknown | AA77: No | AB77: No
A78: Chemicals | B78: Concrete Release Agent - spent Biolubricant | D78: 0.088 | E78: kg CO2(e)/kg | F78: Cradle to Gate | G78: Emission Factor | H78: B | I78: GBR | J78: 2007 | K78: 2005 | L78: Calculated based on case study | M78: Calculated | N78: Medium | O78: High | P78: High | Q78: National Non-Food Crops Centre and North Energy | R78: Environmental Assessment Tool for Biomaterials | S78: National Non-Food Crops Centre and North Energy | T78: Custom definition | U78: Unknown | V78: Organisational specific | W78: economic | X78: No | Y78: Kyoto gases only | Z78: Unknown | AA78: No | AB78: No
A79: Chemicals | B79: Concrete Release Agent - vegetable Oil-Based | D79: 1.952 | E79: kg CO2(e)/kg | F79: Cradle to Gate | G79: Emission Factor | H79: B | I79: GBR | J79: 2007 | K79: 2005 | L79: Calculated based on case study | M79: Calculated | N79: Medium | O79: High | P79: High | Q79: National Non-Food Crops Centre and North Energy | R79: Environmental Assessment Tool for Biomaterials | S79: National Non-Food Crops Centre and North Energy | T79: Custom definition | U79: Unknown | V79: Organisational specific | W79: economic | X79: No | Y79: Kyoto gases only | Z79: Unknown | AA79: No | AB79: No
A80: Chemicals | B80: Dextrose | D80: 0.43 | E80: kg CO2(e)/kg | F80: Cradle to Gate | G80: Emission Factor | H80: B | I80: GBR | J80: 2009 | K80: 2007 | L80: Based on case study | M80: Calculated | N80: Medium | O80: High | P80: Medium | Q80: Department for Environment, Food and Rural Affairs (DEFRA) | R80: Scenario building to test and inform the development of a BSI method for assessing greenhouse gas emissions from food. Report to Defra, Project Reference Number: FO0404. ADAS, London, 2009. | S80: Jeremy Wiltshire, Adrian Williams et al. | T80: PAS 2050 | U80: PAS 2050 | V80: PAS 2050 | W80: multiple | X80: No | Y80: PAS 2050 | Z80: PAS 2050 | AA80: No | AB80: PAS 2050
A81: Chemicals | B81: Di (2-ethylhexyl) phthalate (DEHP) | D81: 1.99 | E81: kg CO2(e)/kg | F81: Cradle to Gate | G81: Emission Factor | H81: A | I81: EU | J81: 2001 | K81: 2000 | L81: 8 industrial companies manufacturing intermediates and/or high commodity phthalate esters in Europe | M81: Calculated | N81: High | O81: High | P81: Medium | Q81: The European Council for Plasticisers and Intermediates (ECPI) | R81: Eco-profile of high volume commodity phthalate esters (DEHP/DINP/DIDP) | S81: ECPI | T81: ISO 14000 series | U81: PAS 2050 | V81: PAS 2050 | W81: System expansion | X81: No | Y81: PAS 2050 | Z81: Unknown | AA81: Unknown | AB81: PAS 2050
A82: Chemicals | B82: Diammonium phosphate - 21% conc. | D82: 0.0606 | E82: kg CO2(e)/kg | F82: Cradle to Gate | G82: Emission Factor | H82: B | I82: GBR | J82: 2009 | K82: 2005 | L82: Calculated based on case study | M82: Calculated | N82: Medium | O82: High | P82: High | Q82: National Non-Food Crops Centre and North Energy | R82: Mortimer, N., A. Evans, A. Ashley, C. Hatto, V. Shaw, C. Whittaker and A. Hunter (2009) Life cycle assessment workbooks for selection of major renewable chemicals, NNFCC and North Energy. | S82: National Non-Food Crops Centre and North Energy | T82: Custom definition | U82: PAS 2050 | V82: PAS 2050 | W82: economic | X82: No | Y82: Kyoto gases only | Z82: Unknown | AA82: No | AB82: No
A83: Chemicals | B83: Diphenylmethane diisocyanate (MDI) | D83: 3.9 | E83: kg CO2(e)/kg | F83: Cradle to Gate | G83: Emission Factor | H83: A | I83: EU | J83: 2005 | K83: 2001 | L83: PlasticsEurope Eco-profiles and EPDs represent European industry averages within the scope of PlasticsEurope as the issuing trade federation. As a general rule, Eco-profiles represent a minimum of three (3) producers. | M83: Calculated | N83: High | O83: High | P83: Medium | Q83: Plastics Europe, Carbon Trust | R83: Eco-profiles of the European Plastics Industry | S83: I Boustead | T83: ISO 14000 series | U83: PAS 2050 | V83: No | W83: None | X83: No | Y83: PAS 2050 | Z83: Unknown | AA83: No | AB83: No
A84: Chemicals | B84: Enzyme Alpha Amylase | D84: 1.6 | E84: kg CO2(e)/kg | F84: Cradle to Gate | G84: Emission Factor | H84: B | I84: GBR | J84: 2009 | K84: 2005 | L84: Calculated based on case study | M84: Calculated | N84: Medium | O84: High | P84: High | Q84: National Non-Food Crops Centre and North Energy | R84: Mortimer, N., A. Evans, A. Ashley, C. Hatto, V. Shaw, C. Whittaker and A. Hunter (2009) Life cycle assessment workbooks for selection of major renewable chemicals, NNFCC and North Energy. | S84: Mortimer, N., A. Evans, A. Ashley, C. Hatto, V. Shaw, C. Whittaker and A. Hunter | T84: Custom definition | U84: PAS 2050 | V84: PAS 2050 | W84: economic | X84: No | Y84: Kyoto gases only | Z84: Unknown | AA84: No | AB84: No
A85: Chemicals | B85: Enzyme AMG | D85: 2.25 | E85: kg CO2(e)/kg | F85: Cradle to Gate | G85: Emission Factor | H85: B | I85: GBR | J85: 2009 | K85: 2005 | L85: Calculated based on case study | M85: Calculated | N85: Medium | O85: High | P85: High | Q85: National Non-Food Crops Centre and North Energy | R85: Mortimer, N., A. Evans, A. Ashley, C. Hatto, V. Shaw, C. Whittaker and A. Hunter (2009) Life cycle assessment workbooks for selection of major renewable chemicals, NNFCC and North Energy. | S85: Mortimer, N., A. Evans, A. Ashley, C. Hatto, V. Shaw, C. Whittaker and A. Hunter | T85: Custom definition | U85: PAS 2050 | V85: PAS 2050 | W85: economic | X85: No | Y85: Kyoto gases only | Z85: Unknown | AA85: No | AB85: No
A86: Chemicals | B86: Ethanol - from conventional petrochemicals | D86: 2 | E86: kg CO2(e)/kg | F86: Cradle to Gate | G86: Emission Factor | H86: B | I86: EU | J86: 2006 | K86: 2004 | L86: Survey/study of average technologies and production processes at time | M86: Calculated | N86: Medium | O86: Medium | P86: Low | Q86: European Commission, Utrecht University | R86: Medium and Long-term Opportunities and Risks of the Biotechnological Production of Bulk Chemicals from Renewable Resources | S86: Dr. Martin Patel et al. | T86: Custom definition | U86: PAS 2050 | V86: Unknown | W86: unknown | X86: No | Y86: PAS 2050 | Z86: Unknown | AA86: No | AB86: No
A87: Chemicals | B87: Ethyl benzene | D87: 1.9 | E87: kg CO2(e)/kg | F87: Cradle to Gate | G87: Emission Factor | H87: A | I87: EU | J87: 2005 | K87: 2001 | L87: PlasticsEurope Eco-profiles and EPDs represent European industry averages within the scope of PlasticsEurope as the issuing trade federation. As a general rule, Eco-profiles represent a minimum of three (3) producers. | M87: Calculated | N87: High | O87: High | P87: Medium | Q87: Plastics Europe, Carbon Trust | R87: Eco-profiles of the European Plastics Industry | S87: I Boustead | T87: ISO 14000 Series | U87: PAS 2050 | V87: ISO 14000 Series | W87: Mass | X87: No | Y87: PAS 2050 | Z87: Unknown | AA87: No | AB87: No
A88: Chemicals | B88: Ethylene dichloride | D88: 1.6 | E88: kg CO2(e)/kg | F88: Cradle to Gate | G88: Emission Factor | H88: A | I88: EU | J88: 2005 | K88: 2001 | L88: PlasticsEurope Eco-profiles and EPDs represent European industry averages within the scope of PlasticsEurope as the issuing trade federation. As a general rule, Eco-profiles represent a minimum of three (3) producers. | M88: Calculated | N88: High | O88: High | P88: Medium | Q88: Plastics Europe, Carbon Trust | R88: Eco-profiles of the European Plastics Industry | S88: I Boustead | T88: ISO 14000 Series | U88: PAS 2050 | V88: ISO 14000 Series | W88: Mass | X88: No | Y88: PAS 2050 | Z88: Unknown | AA88: No | AB88: No
A89: Chemicals | B89: Glycerine | D89: 2 | E89: kg CO2(e)/kg | F89: Cradle to Gate | G89: Emission Factor | H89: B | I89: GBR | J89: 2009 | K89: 2007 | L89: Based on case study | M89: Calculated | N89: Medium | O89: High | P89: Medium | Q89: Department for Environment, Food and Rural Affairs (DEFRA) | R89: Scenario building to test and inform the development of a BSI method for assessing greenhouse gas emissions from food. Report to Defra, Project Reference Number: FO0404. ADAS, London, 2009. | S89: Jeremy Wiltshire, Adrian Williams et al. | T89: PAS 2050 | U89: PAS 2050 | V89: PAS 2050 | W89: multiple | X89: No | Y89: PAS 2050 | Z89: PAS 2050 | AA89: No | AB89: PAS 2050
A90: Chemicals | B90: High-fructose corn syrup (HFCS) | D90: 2 | E90: kg CO2(e)/kg | F90: Cradle to Gate | G90: Emission Factor | H90: B | I90: GBR | J90: 2009 | K90: 2007 | L90: Based on case study | M90: Calculated | N90: Medium | O90: High | P90: Medium | Q90: Department for Environment, Food and Rural Affairs (DEFRA) | R90: Scenario building to test and inform the development of a BSI method for assessing greenhouse gas emissions from food. Report to Defra, Project Reference Number: FO0404. ADAS, London, 2009. | S90: Jeremy Wiltshire, Adrian Williams et al. | T90: PAS 2050 | U90: PAS 2050 | V90: PAS 2050 | W90: multiple | X90: No | Y90: PAS 2050 | Z90: PAS 2050 | AA90: No | AB90: PAS 2050
A91: Chemicals | B91: Hydrogen - cracker | D91: 1.7 | E91: kg CO2(e)/kg | F91: Cradle to Gate | G91: Emission Factor | H91: A | I91: EU | J91: 2005 | K91: 2001 | L91: PlasticsEurope Eco-profiles and EPDs represent European industry averages within the scope of PlasticsEurope as the issuing trade federation. As a general rule, Eco-profiles represent a minimum of three (3) producers. | M91: Calculated | N91: High | O91: High | P91: Medium | Q91: Plastics Europe, Carbon Trust | R91: Eco-profiles of the European Plastics Industry | S91: I Boustead | T91: ISO 14000 Series | U91: PAS 2050 | V91: ISO 14000 Series | W91: Mass | X91: No | Y91: PAS 2050 | Z91: Unknown | AA91: No | AB91: No
A92: Chemicals | B92: Hydrogen - electrolytic | D92: 0.95 | E92: kg CO2(e)/kg | F92: Cradle to Gate | G92: Emission Factor | H92: A | I92: EU | J92: 2005 | K92: 2001 | L92: PlasticsEurope Eco-profiles and EPDs represent European industry averages within the scope of PlasticsEurope as the issuing trade federation. As a general rule, Eco-profiles represent a minimum of three (3) producers. | M92: Calculated | N92: High | O92: High | P92: Medium | Q92: Plastics Europe, Carbon Trust | R92: Eco-profiles of the European Plastics Industry | S92: I Boustead | T92: ISO 14000 Series | U92: PAS 2050 | V92: ISO 14000 Series | W92: Mass | X92: No | Y92: PAS 2050 | Z92: Unknown | AA92: No | AB92: No
A93: Chemicals | B93: Hydrogen - from natural gas | D93: 1.2 | E93: kg CO2(e)/kg | F93: Cradle to Gate | G93: Emission Factor | H93: B | I93: GBR | J93: 2009 | K93: 2005 | L93: Calculated based on case study | M93: Calculated | N93: Medium | O93: High | P93: High | Q93: National Non-Food Crops Centre and North Energy | R93: Mortimer, N., A. Evans, A. Ashley, C. Hatto, V. Shaw, C. Whittaker and A. Hunter (2009) Life cycle assessment workbooks for selection of major renewable chemicals, NNFCC and North Energy. | S93: Mortimer, N., A. Evans, A. Ashley, C. Hatto, V. Shaw, C. Whittaker and A. Hunter | T93: Custom definition | U93: PAS 2050 | V93: PAS 2050 | W93: economic | X93: No | Y93: Kyoto gases only | Z93: Unknown | AA93: No | AB93: No
A94: Chemicals | B94: Hydrogen - reformer | D94: 7.5 | E94: kg CO2(e)/kg | F94: Cradle to Gate | G94: Emission Factor | H94: A | I94: EU | J94: 2005 | K94: 2001 | L94: PlasticsEurope Eco-profiles and EPDs represent European industry averages within the scope of PlasticsEurope as the issuing trade federation. As a general rule, Eco-profiles represent a minimum of three (3) producers. | M94: Calculated | N94: High | O94: High | P94: Medium | Q94: Plastics Europe, Carbon Trust | R94: Eco-profiles of the European Plastics Industry | S94: I Boustead | T94: ISO 14000 Series | U94: PAS 2050 | V94: ISO 14000 Series | W94: Mass | X94: No | Y94: PAS 2050 | Z94: Unknown | AA94: No | AB94: No
A95: Chemicals | B95: Hydrogen chloride | D95: 1.5 | E95: kg CO2(e)/kg | F95: Cradle to Gate | G95: Emission Factor | H95: A | I95: EU | J95: 2005 | K95: 2001 | L95: PlasticsEurope Eco-profiles and EPDs represent European industry averages within the scope of PlasticsEurope as the issuing trade federation. As a general rule, Eco-profiles represent a minimum of three (3) producers. | M95: Calculated | N95: High | O95: High | P95: Medium | Q95: Plastics Europe, Carbon Trust | R95: Eco-profiles of the European Plastics Industry | S95: I Boustead | T95: ISO 14000 Series | U95: PAS 2050 | V95: ISO 14000 Series | W95: Mass | X95: No | Y95: PAS 2050 | Z95: Unknown | AA95: No | AB95: No
A96: Chemicals | B96: Hydrogen cyanide | D96: 7.1 | E96: kg CO2(e)/kg | F96: Cradle to Gate | G96: Emission Factor | H96: A | I96: EU | J96: 2005 | K96: 2001 | L96: PlasticsEurope Eco-profiles and EPDs represent European industry averages within the scope of PlasticsEurope as the issuing trade federation. As a general rule, Eco-profiles represent a minimum of three (3) producers. | M96: Calculated | N96: High | O96: High | P96: Medium | Q96: Plastics Europe, Carbon Trust | R96: Eco-profiles of the European Plastics Industry | S96: I Boustead | T96: ISO 14000 Series | U96: PAS 2050 | V96: ISO 14000 Series | W96: Mass | X96: No | Y96: PAS 2050 | Z96: Unknown | AA96: No | AB96: No
A97: Chemicals | B97: Methyl Ethyl HydroxyEthyl Cellulose (MEHEC) | D97: 2.8 | E97: kg CO2(e)/kg | F97: Cradle to RDC | G97: Emission Factor | H97: A | I97: SWE | J97: 2005 | K97: 2005 | L97: Company specific processes and technologies | M97: Calculated | N97: Medium | O97: High | P97: Medium | Q97: International Environment Product Declaration System | R97: Certified Environmental Product Declaration (EPD) MEHEC | S97: Cellulosic Specialties | T97: ISO 14000 series | U97: PAS 2050 | V97: Organisational specific | W97: economic | X97: No | Y97: Kyoto gases only | Z97: Unknown | AA97: No | AB97: Unknown
A98: Chemicals | B98: Methyl methacrylate (MMA) | D98: 6.6 | E98: kg CO2(e)/kg | F98: Cradle to Gate | G98: Emission Factor | H98: A | I98: EU | J98: 2005 | K98: 2001 | L98: PlasticsEurope Eco-profiles and EPDs represent European industry averages within the scope of PlasticsEurope as the issuing trade federation. As a general rule, Eco-profiles represent a minimum of three (3) producers. | M98: Calculated | N98: High | O98: High | P98: Medium | Q98: Plastics Europe, Carbon Trust | R98: Eco-profiles of the European Plastics Industry | S98: I Boustead | T98: ISO 14000 Series | U98: PAS 2050 | V98: ISO 14000 Series | W98: Mass | X98: No | Y98: PAS 2050 | Z98: Unknown | AA98: No | AB98: No
A99: Chemicals | B99: Nitrogen | D99: 0.08831976304 | E99: kg CO2(e)/kg | F99: Cradle to Gate | G99: Emission Factor | H99: A | I99: EU | J99: 2010 | K99: 2005 | L99: Nitrogen; via cryogenic air separation; production mix, at plant; gaseous | M99: Calculated | N99: Medium | O99: High | P99: Medium | Q99: European Commission - Joint Research Centre | R99: ELCD Database | S99: European Commission - Joint Research Centre ELCD Database | T99: ISO 14000 Series | U99: PAS 2050 | V99: ISO 14000 Series | W99: Unknown | X99: No | Y99: PAS 2050 | Z99: Unknown | AA99: No | AB99: No
A100: Chemicals | B100: Octanol | D100: 1.29923 | E100: kg CO2(e)/kg | F100: Cradle to Gate | G100: Emission Factor | H100: B | I100: GBR | J100: 2009 | K100: 2005 | L100: Calculated based on case study | M100: Calculated | N100: Medium | O100: High | P100: High | Q100: National Non-Food Crops Centre and North Energy | R100: Mortimer, N., A. Evans, A. Ashley, C. Hatto, V. Shaw, C. Whittaker and A. Hunter (2009) Life cycle assessment workbooks for selection of major renewable chemicals, NNFCC and North Energy. | S100: Mortimer, N., A. Evans, A. Ashley, C. Hatto, V. Shaw, C. Whittaker and A. Hunter | T100: Custom definition | U100: PAS 2050 | V100: PAS 2050 | W100: economic | X100: No | Y100: Kyoto gases only | Z100: Unknown | AA100: No | AB100: No
A101: Chemicals | B101: Oxygen | D101: 0.1471996051 | E101: kg CO2(e)/kg | F101: Cradle to Gate | G101: Emission Factor | H101: A | I101: EU | J101: 2010 | K101: 2005 | L101: Oxygen; via cryogenic air separation; production mix, at plant; gaseous | M101: Calculated | N101: Medium | O101: High | P101: Medium | Q101: European Commission - Joint Research Centre | R101: ELCD Database | S101: European Commission - Joint Research Centre ELCD Database | T101: ISO 14000 Series | U101: PAS 2050 | V101: ISO 14000 Series | W101: Unknown | X101: No | Y101: PAS 2050 | Z101: Unknown | AA101: No | AB101: No
A102: Chemicals | B102: Pentane | D102: 1.1 | E102: kg CO2(e)/kg | F102: Cradle to Gate | G102: Emission Factor | H102: A | I102: EU | J102: 2005 | K102: 2001 | L102: PlasticsEurope Eco-profiles and EPDs represent European industry averages within the scope of PlasticsEurope as the issuing trade federation. As a general rule, Eco-profiles represent a minimum of three (3) producers. | M102: Calculated | N102: High | O102: High | P102: Medium | Q102: Plastics Europe, Carbon Trust | R102: Eco-profiles of the European Plastics Industry | S102: I Boustead | T102: ISO 14000 Series | U102: PAS 2050 | V102: ISO 14000 Series | W102: Mass | X102: No | Y102: PAS 2050 | Z102: Unknown | AA102: No | AB102: No
A103: Chemicals | B103: Phenol | D103: 2.2 | E103: kg CO2(e)/kg | F103: Cradle to Gate | G103: Emission Factor | H103: A | I103: EU | J103: 2005 | K103: 2001 | L103: PlasticsEurope Eco-profiles and EPDs represent European industry averages within the scope of PlasticsEurope as the issuing trade federation. As a general rule, Eco-profiles represent a minimum of three (3) producers. | M103: Calculated | N103: High | O103: High | P103: Medium | Q103: Plastics Europe, Carbon Trust | R103: Eco-profiles of the European Plastics Industry | S103: I Boustead | T103: ISO 14000 Series | U103: PAS 2050 | V103: ISO 14000 Series | W103: Mass | X103: No | Y103: PAS 2050 | Z103: Unknown | AA103: No | AB103: No
A104: Chemicals | B104: Phenol-resorinol-formaldehyde | D104: 4.09 | E104: kg CO2/kg | F104: Cradle to Gate | G104: Emission Factor | H104: A | I104: USA | J104: 2004 | K104: 2003 | L104: Survey/study of existing technologies and production processes at time | M104: Calculated | N104: Medium | O104: High | P104: Medium | Q104: National Renewable Energy Laboratory | R104: U.S. Life-Cycle Inventory (LCI) Database | S104: Maureen E. Puettman | T104: Custom definition | U104: PAS 2050 | V104: No | W104: None | X104: No | Y104: Kyoto gases only | Z104: Unknown | AA104: No | AB104: Unknown
A105: Chemicals | B105: Polylactic acid - from conventional petrochemicals | D105: 2.6 | E105: kg CO2(e)/kg | F105: Cradle to Gate | G105: Emission Factor | H105: B | I105: EU | J105: 2006 | K105: 2004 | L105: Survey/study of average technologies and production processes at time | M105: Calculated | N105: Medium | O105: Medium | P105: Low | Q105: European Commission, Utrecht University | R105: Medium and Long-term Opportunities and Risks of the Biotechnological Production of Bulk Chemicals from Renewable Resources | S105: Dr. Martin Patel et al. | T105: Custom definition | U105: PAS 2050 | V105: Unknown | W105: unknown | X105: No | Y105: PAS 2050 | Z105: Unknown | AA105: No | AB105: No
A106: Chemicals | B106: Polyols | D106: 3.5 | E106: kg CO2(e)/kg | F106: Cradle to Gate | G106: Emission Factor | H106: A | I106: EU | J106: 2005 | K106: 2001 | L106: PlasticsEurope Eco-profiles and EPDs represent European industry averages within the scope of PlasticsEurope as the issuing trade federation. As a general rule, Eco-profiles represent a minimum of three (3) producers. | M106: Calculated | N106: High | O106: High | P106: Medium | Q106: Plastics Europe, Carbon Trust | R106: Eco-profiles of the European Plastics Industry | S106: I Boustead | T106: ISO 14000 Series | U106: PAS 2050 | V106: ISO 14000 Series | W106: Mass | X106: No | Y106: PAS 2050 | Z106: Unknown | AA106: No | AB106: No
A107: Chemicals | B107: Propanediol - from conventional petrochemicals3 | D107: 4.4 | E107: kg CO2(e)/kg | F107: Cradle to Gate | G107: Emission Factor | H107: B | I107: EU | J107: 2006 | K107: 2004 | L107: Survey/study of average technologies and production processes at time | M107: Calculated | N107: Medium | O107: Medium | P107: Low | Q107: European Commission, Utrecht University | R107: Medium and Long-term Opportunities and Risks of the Biotechnological Production of Bulk Chemicals from Renewable Resources | S107: Dr. Martin Patel et al. | T107: Custom definition | U107: PAS 2050 | V107: Unknown | W107: unknown | X107: No | Y107: PAS 2050 | Z107: Unknown | AA107: No | AB107: No
A108: Chemicals | B108: Sodium chlorate | D108: 0.086 | E108: kg CO2(e)/kg | F108: Cradle to RDC | G108: Emission Factor | H108: A | I108: SWE | J108: 2007 | K108: 2007 | L108: Company specific processes and technologies | M108: Calculated | N108: Medium | O108: High | P108: Medium | Q108: International Environment Product Declaration System | R108: Certified Environmental Product Declaration (EPD) for Sodium chlorate (NaClO3) | S108: AkzoNobel | T108: ISO 14000 series | U108: PAS 2050 | V108: Organisational specific | W108: economic | X108: No | Y108: Kyoto gases only | Z108: Unknown | AA108: No | AB108: Unknown
A109: Chemicals | B109: Sodium hydroxide | D109: 1.4 | E109: kg CO2/kg | F109: Cradle to Gate | G109: Emission Factor | H109: A | I109: EU | J109: 2005 | K109: 2001 | L109: PlasticsEurope Eco-profiles and EPDs represent European industry averages within the scope of PlasticsEurope as the issuing trade federation. As a general rule, Eco-profiles represent a minimum of three (3) producers. | M109: Calculated | N109: High | O109: High | P109: Medium | Q109: Plastics Europe, Carbon Trust | R109: Eco-profiles of the European Plastics Industry | S109: I Boustead | T109: ISO 14000 series | U109: PAS 2050 | V109: No | W109: None | X109: No | Y109: PAS 2050 | Z109: Unknown | AA109: No | AB109: No
A110: Chemicals | B110: Styrene | D110: 3.1 | E110: kg CO2(e)/kg | F110: Cradle to Gate | G110: Emission Factor | H110: A | I110: EU | J110: 2005 | K110: 2001 | L110: PlasticsEurope Eco-profiles and EPDs represent European industry averages within the scope of PlasticsEurope as the issuing trade federation. As a general rule, Eco-profiles represent a minimum of three (3) producers. | M110: Calculated | N110: High | O110: High | P110: Medium | Q110: Plastics Europe, Carbon Trust | R110: Eco-profiles of the European Plastics Industry | S110: I Boustead | T110: ISO 14000 Series | U110: PAS 2050 | V110: ISO 14000 Series | W110: Mass | X110: No | Y110: PAS 2050 | Z110: Unknown | AA110: No | AB110: No
A111: Chemicals | B111: Succinic acid - from conventional petrochemicals2 | D111: 7.1 | E111: kg CO2(e)/kg | F111: Cradle to Gate | G111: Emission Factor | H111: B | I111: EU | J111: 2006 | K111: 2004 | L111: Survey/study of average technologies and production processes at time | M111: Calculated | N111: Medium | O111: Medium | P111: Low | Q111: European Commission, Utrecht University | R111: Medium and Long-term Opportunities and Risks of the Biotechnological Production of Bulk Chemicals from Renewable Resources | S111: Dr. Martin Patel et al. | T111: Custom definition | U111: PAS 2050 | V111: Unknown | W111: unknown | X111: No | Y111: PAS 2050 | Z111: Unknown | AA111: No | AB111: No
A112: Chemicals | B112: Sulphur | D112: 0.5502772853 | E112: kg CO2(e)/kg | F112: Cradle to Gate | G112: Emission Factor | H112: A | I112: EU | J112: 2010 | K112: 2005 | L112: Sulphur; from crude oil; consumption mix, at refinery; elemental sulphur | M112: Calculated | N112: Medium | O112: High | P112: Medium | Q112: European Commission - Joint Research Centre | R112: ELCD Database | S112: European Commission - Joint Research Centre ELCD Database | T112: ISO 14000 Series | U112: PAS 2050 | V112: ISO 14000 Series | W112: Unknown | X112: No | Y112: PAS 2050 | Z112: Unknown | AA112: No | AB112: No
A113: Chemicals | B113: Sulphuric acid (93% conc.) | D113: 0.1368096 | E113: kg CO2(e)/kg | F113: Cradle to Gate | G113: Emission Factor | H113: B | I113: GBR | J113: 2009 | K113: 2005 | L113: Calculated based on case study | M113: Calculated | N113: Medium | O113: High | P113: High | Q113: National Non-Food Crops Centre and North Energy | R113: Mortimer, N., A. Evans, A. Ashley, C. Hatto, V. Shaw, C. Whittaker and A. Hunter (2009) Life cycle assessment workbooks for selection of major renewable chemicals, NNFCC and North Energy. | S113: Mortimer, N., A. Evans, A. Ashley, C. Hatto, V. Shaw, C. Whittaker and A. Hunter | T113: Custom definition | U113: PAS 2050 | V113: PAS 2050 | W113: economic | X113: No | Y113: Kyoto gases only | Z113: Unknown | AA113: No | AB113: No
A114: Chemicals | B114: Terephthalic acid | D114: 2.4 | E114: kg CO2(e)/kg | F114: Cradle to Gate | G114: Emission Factor | H114: A | I114: EU | J114: 2005 | K114: 2001 | L114: PlasticsEurope Eco-profiles and EPDs represent European industry averages within the scope of PlasticsEurope as the issuing trade federation. As a general rule, Eco-profiles represent a minimum of three (3) producers. | M114: Calculated | N114: High | O114: High | P114: Medium | Q114: Plastics Europe, Carbon Trust | R114: Eco-profiles of the European Plastics Industry | S114: I Boustead | T114: ISO 14000 Series | U114: PAS 2050 | V114: ISO 14000 Series | W114: Mass | X114: No | Y114: PAS 2050 | Z114: Unknown | AA114: No | AB114: No
A115: Chemicals | B115: Titanium dioxide (TiO2) | D115: 4.2 | E115: kg CO2(e)/kg | F115: Cradle to Gate | G115: Emission Factor | H115: A | I115: EU | J115: 2010 | K115: 2004 | L115: ILCD Database | M115: Calculated | N115: Medium | O115: High | P115: Medium | Q115: European Commission - Joint Research Centre | R115: ELCD Database | S115: European Commission | T115: ISO 14000 Series | U115: PAS 2050 | V115: ISO 14000 Series | W115: Unknown | X115: No | Y115: PAS 2050 | Z115: Unknown | AA115: No | AB115: No
A116: Chemicals | B116: Tolylene diisocyanate (TDI) | D116: 6.3 | E116: kg CO2(e)/kg | F116: Cradle to Gate | G116: Emission Factor | H116: A | I116: EU | J116: 2005 | K116: 2001 | L116: PlasticsEurope Eco-profiles and EPDs represent European industry averages within the scope of PlasticsEurope as the issuing trade federation. As a general rule, Eco-profiles represent a minimum of three (3) producers. | M116: Calculated | N116: High | O116: High | P116: Medium | Q116: Plastics Europe, Carbon Trust | R116: Eco-profiles of the European Plastics Industry | S116: I Boustead | T116: ISO 14000 Series | U116: PAS 2050 | V116: ISO 14000 Series | W116: Mass | X116: No | Y116: PAS 2050 | Z116: Unknown | AA116: No | AB116: No
A117: Chemicals | B117: Vinyl chloride | D117: 1.6 | E117: kg CO2(e)/kg | F117: Cradle to Gate | G117: Emission Factor | H117: A | I117: EU | J117: 2005 | K117: 2001 | L117: PlasticsEurope Eco-profiles and EPDs represent European industry averages within the scope of PlasticsEurope as the issuing trade federation. As a general rule, Eco-profiles represent a minimum of three (3) producers. | M117: Calculated | N117: High | O117: High | P117: Medium | Q117: Plastics Europe, Carbon Trust | R117: Eco-profiles of the European Plastics Industry | S117: I Boustead | T117: ISO 14000 Series | U117: PAS 2050 | V117: ISO 14000 Series | W117: Mass | X117: No | Y117: PAS 2050 | Z117: Unknown | AA117: No | AB117: No
A118: Distribution | B118: Average Buildings Emissions - high rise offices, almost always air-conditioned - UK | D118: 0.1536594912 | E118: kg CO2(e)/m2 floor space/day | F118: Gate to Gate | G118: Emission Factor | H118: B | I118: GBR | J118: 2007 | K118: 2006 | L118: Footprint Expert calculated emission factor using the RDC Calculator and average activity data from UK Green Building Council | M118: Calculated | N118: Medium | O118: Medium | P118: High | Q118: UK Green Building Council | R118: Report on Carbon Reductions in New Non-Domestic Buildings | S118: UK Green Building Council | T118: PAS 2050 | U118: PAS 2050 | V118: N/A | W118: N/A | X118: No | Y118: PAS 2050 | Z118: Unknown | AA118: Unknown | AB118: Unknown
A119: Distribution | B119: Average Buildings Emissions - low rise offices, hospitals, education and numerous uses - UK | D119: 0.08917808219 | E119: kg CO2(e)/m2 floor space/day | F119: Gate to Gate | G119: Emission Factor | H119: B | I119: GBR | J119: 2007 | K119: 2006 | L119: Footprint Expert calculated emission factor using the RDC Calculator and average activity data from UK Green Building Council | M119: Calculated | N119: Medium | O119: Medium | P119: High | Q119: UK Green Building Council | R119: Report on Carbon Reductions in New Non-Domestic Buildings | S119: UK Green Building Council | T119: PAS 2050 | U119: PAS 2050 | V119: N/A | W119: N/A | X119: No | Y119: PAS 2050 | Z119: Unknown | AA119: Unknown | AB119: Unknown
A120: Distribution | B120: Average Buildings Emissions - Warehouses, factories, various large and out of town retail - UK | D120: 0.03479452055 | E120: kg CO2(e)/m2 floor space/day | F120: Gate to Gate | G120: Emission Factor | H120: B | I120: GBR | J120: 2007 | K120: 2006 | L120: Footprint Expert calculated emission factor using the RDC Calculator and average activity data from UK Green Building Council | M120: Calculated | N120: Medium | O120: Medium | P120: High | Q120: UK Green Building Council | R120: Report on Carbon Reductions in New Non-Domestic Buildings | S120: UK Green Building Council | T120: PAS 2050 | U120: PAS 2050 | V120: N/A | W120: N/A | X120: No | Y120: PAS 2050 | Z120: Unknown | AA120: Unknown | AB120: Unknown
A121: Distribution | B121: Average Number of containers per create (for 1 pint glass bottle) - UK | D121: 20 | E121: containers | F121: N/A | G121: activity data | H121: A | I121: GBR | J121: 2010 | K121: 2009 | L121: Estimation based on official waste data | M121: Estimation | N121: Medium | O121: High | P121: Medium | Q121: Waste & Resources Action Programme (WRAP) | R121: WRAP (2009): Household Food and Drink Waste in the UK, WRAP (2010): Lifecycle assessment of example packaging systems for milk | S121: WRAP | T121: N/A | U121: N/A | V121: N/A | W121: N/A | X121: N/A | Y121: N/A | Z121: N/A | AA121: N/A | AB121: N/A
A122: Distribution | B122: Average Number of containers per pallet (for 1 litre carton gable-top) - UK | D122: 160 | E122: containers | F122: N/A | G122: activity data | H122: A | I122: GBR | J122: 2010 | K122: 2009 | L122: Estimation based on official waste data | M122: Estimation | N122: Medium | O122: High | P122: Medium | Q122: Waste & Resources Action Programme (WRAP) | R122: WRAP (2009): Household Food and Drink Waste in the UK, WRAP (2010): Lifecycle assessment of example packaging systems for milk | S122: WRAP | T122: N/A | U122: N/A | V122: N/A | W122: N/A | X122: N/A | Y122: N/A | Z122: N/A | AA122: N/A | AB122: N/A
A123: Distribution | B123: Average Number of containers per pallet (for 1 litre carton screw-cap) - UK | D123: 160 | E123: containers | F123: N/A | G123: activity data | H123: A | I123: GBR | J123: 2010 | K123: 2009 | L123: Estimation based on official waste data | M123: Estimation | N123: Medium | O123: High | P123: Medium | Q123: Waste & Resources Action Programme (WRAP) | R123: WRAP (2009): Household Food and Drink Waste in the UK, WRAP (2010): Lifecycle assessment of example packaging systems for milk | S123: WRAP | T123: N/A | U123: N/A | V123: N/A | W123: N/A | X123: N/A | Y123: N/A | Z123: N/A | AA123: N/A | AB123: N/A
A124: Distribution | B124: Average Number of containers per pallet (for 1 litre PET bottle) - UK | D124: 160 | E124: containers | F124: N/A | G124: activity data | H124: A | I124: GBR | J124: 2010 | K124: 2009 | L124: Estimation based on official waste data | M124: Estimation | N124: Medium | O124: High | P124: Medium | Q124: Waste & Resources Action Programme (WRAP) | R124: WRAP (2009): Household Food and Drink Waste in the UK, WRAP (2010): Lifecycle assessment of example packaging systems for milk | S124: WRAP | T124: N/A | U124: N/A | V124: N/A | W124: N/A | X124: N/A | Y124: N/A | Z124: N/A | AA124: N/A | AB124: N/A
A125: Distribution | B125: Average Number of containers per pallet (for 2 pint HDPE container) - UK | D125: 140 | E125: containers | F125: N/A | G125: activity data | H125: A | I125: GBR | J125: 2010 | K125: 2009 | L125: Estimation based on official waste data | M125: Estimation | N125: Medium | O125: High | P125: Medium | Q125: Waste & Resources Action Programme (WRAP) | R125: WRAP (2009): Household Food and Drink Waste in the UK, WRAP (2010): Lifecycle assessment of example packaging systems for milk | S125: WRAP | T125: N/A | U125: N/A | V125: N/A | W125: N/A | X125: N/A | Y125: N/A | Z125: N/A | AA125: N/A | AB125: N/A
A126: Distribution | B126: Average Number of times crate is reused - UK | D126: 120 | E126: times | F126: N/A | G126: activity data | H126: A | I126: GBR | J126: 2010 | K126: 2009 | L126: Estimation based on official waste data | M126: Estimation | N126: Medium | O126: High | P126: Medium | Q126: Waste & Resources Action Programme (WRAP) | R126: WRAP (2009): Household Food and Drink Waste in the UK, WRAP (2010): Lifecycle assessment of example packaging systems for milk | S126: WRAP | T126: N/A | U126: N/A | V126: N/A | W126: N/A | X126: N/A | Y126: N/A | Z126: N/A | AA126: N/A | AB126: N/A
A127: Distribution | B127: Average Number of times pallet is reused - UK | D127: 500 | E127: times | F127: N/A | G127: activity data | H127: A | I127: GBR | J127: 2010 | K127: 2009 | L127: Estimation based on official waste data | M127: Estimation | N127: Medium | O127: High | P127: Medium | Q127: Waste & Resources Action Programme (WRAP) | R127: WRAP (2009): Household Food and Drink Waste in the UK, WRAP (2010): Lifecycle assessment of example packaging systems for milk | S127: WRAP | T127: N/A | U127: N/A | V127: N/A | W127: N/A | X127: N/A | Y127: N/A | Z127: N/A | AA127: N/A | AB127: N/A
A128: Distribution | B128: Average RDC Emissions - apples - UK | D128: 0.008412468444 | E128: kg CO2(e)/kg | F128: Gate to Gate | G128: Emission Factor | H128: A | I128: GBR | J128: 2008 | K128: 2007 | L128: Footprint Expert calculated emission factor using the RDC Calculator and average activity data from DEFRA | M128: Calculated | N128: High | O128: High | P128: High | Q128: DEFRA, Carbon Trust | R128: Greenhouse Gas Impacts of Food Retailing, DEFRA Project Code FO411 | S128: Brunel University | T128: PAS 2050 | U128: PAS 2050 | V128: N/A | W128: N/A | X128: No | Y128: PAS 2050 | Z128: PAS 2050 | AA128: N/A | AB128: N/A
A129: Distribution | B129: Average RDC Emissions - bread - UK | D129: 0.02804156148 | E129: kg CO2(e)/kg | F129: Gate to Gate | G129: Emission Factor | H129: A | I129: GBR | J129: 2008 | K129: 2007 | L129: Footprint Expert calculated emission factor using the RDC Calculator and average activity data from DEFRA | M129: Calculated | N129: High | O129: High | P129: High | Q129: DEFRA, Carbon Trust | R129: Greenhouse Gas Impacts of Food Retailing, DEFRA Project Code FO414 | S129: Brunel University | T129: PAS 2050 | U129: PAS 2050 | V129: N/A | W129: N/A | X129: No | Y129: PAS 2050 | Z129: PAS 2050 | AA129: N/A | AB129: N/A
A130: Distribution | B130: Average RDC Emissions - cheese - UK | D130: 0.008218452175 | E130: kg CO2(e)/kg | F130: Gate to Gate | G130: Emission Factor | H130: A | I130: GBR | J130: 2008 | K130: 2007 | L130: Footprint Expert calculated emission factor using the RDC Calculator and average activity data from DEFRA | M130: Calculated | N130: High | O130: High | P130: High | Q130: DEFRA, Carbon Trust | R130: Greenhouse Gas Impacts of Food Retailing, DEFRA Project Code FO408 | S130: Brunel University | T130: PAS 2050 | U130: PAS 2050 | V130: N/A | W130: N/A | X130: No | Y130: PAS 2050 | Z130: PAS 2050 | AA130: N/A | AB130: N/A
A131: Distribution | B131: Average RDC Emissions - fresh meat - UK | D131: 0.01374125204 | E131: kg CO2(e)/kg | F131: Gate to Gate | G131: Emission Factor | H131: A | I131: GBR | J131: 2008 | K131: 2007 | L131: Footprint Expert calculated emission factor using the RDC Calculator and average activity data from DEFRA | M131: Calculated | N131: High | O131: High | P131: High | Q131: DEFRA, Carbon Trust | R131: Greenhouse Gas Impacts of Food Retailing, DEFRA Project Code FO405 | S131: Brunel University | T131: PAS 2050 | U131: PAS 2050 | V131: N/A | W131: N/A | X131: No | Y131: PAS 2050 | Z131: PAS 2050 | AA131: N/A | AB131: N/A
A132: Distribution | B132: Average RDC Emissions - frozen chips - UK | D132: 0.08056768136 | E132: kg CO2(e)/kg | F132: Gate to Gate | G132: Emission Factor | H132: A | I132: GBR | J132: 2008 | K132: 2007 | L132: Footprint Expert calculated emission factor using the RDC Calculator and average activity data from DEFRA | M132: Calculated | N132: High | O132: High | P132: High | Q132: DEFRA, Carbon Trust | R132: Greenhouse Gas Impacts of Food Retailing, DEFRA Project Code FO410 | S132: Brunel University | T132: PAS 2050 | U132: PAS 2050 | V132: N/A | W132: N/A | X132: No | Y132: PAS 2050 | Z132: PAS 2050 | AA132: N/A | AB132: N/A
A133: Distribution | B133: Average RDC Emissions - frozen peas - UK | D133: 0.08951964595 | E133: kg CO2(e)/kg | F133: Gate to Gate | G133: Emission Factor | H133: A | I133: GBR | J133: 2008 | K133: 2007 | L133: Footprint Expert calculated emission factor using the RDC Calculator and average activity data from DEFRA | M133: Calculated | N133: High | O133: High | P133: High | Q133: DEFRA, Carbon Trust | R133: Greenhouse Gas Impacts of Food Retailing, DEFRA Project Code FO409 | S133: Brunel University | T133: PAS 2050 | U133: PAS 2050 | V133: N/A | W133: N/A | X133: No | Y133: PAS 2050 | Z133: PAS 2050 | AA133: N/A | AB133: N/A
A134: Distribution | B134: Average RDC Emissions - milk - UK | D134: 0.01145104336 | E134: kg CO2(e)/kg | F134: Gate to Gate | G134: Emission Factor | H134: A | I134: GBR | J134: 2008 | K134: 2007 | L134: Footprint Expert calculated emission factor using the RDC Calculator and average activity data from DEFRA | M134: Calculated | N134: High | O134: High | P134: High | Q134: DEFRA, Carbon Trust | R134: Greenhouse Gas Impacts of Food Retailing, DEFRA Project Code FO407 | S134: Brunel University | T134: PAS 2050 | U134: PAS 2050 | V134: N/A | W134: N/A | X134: No | Y134: PAS 2050 | Z134: PAS 2050 | AA134: N/A | AB134: N/A
A135: Distribution | B135: Average RDC Emissions - potatoes - UK | D135: 0.006309351333 | E135: kg CO2(e)/kg | F135: Gate to Gate | G135: Emission Factor | H135: A | I135: GBR | J135: 2008 | K135: 2007 | L135: Footprint Expert calculated emission factor using the RDC Calculator and average activity data from DEFRA | M135: Calculated | N135: High | O135: High | P135: High | Q135: DEFRA, Carbon Trust | R135: Greenhouse Gas Impacts of Food Retailing, DEFRA Project Code FO412 | S135: Brunel University | T135: PAS 2050 | U135: PAS 2050 | V135: N/A | W135: N/A | X135: No | Y135: PAS 2050 | Z135: PAS 2050 | AA135: N/A | AB135: N/A
A136: Distribution | B136: Average RDC Emissions - ready meals - UK | D136: 0.08250130571 | E136: kg CO2(e)/kg | F136: Gate to Gate | G136: Emission Factor | H136: A | I136: GBR | J136: 2008 | K136: 2007 | L136: Footprint Expert calculated emission factor using the RDC Calculator and average activity data from DEFRA | M136: Calculated | N136: High | O136: High | P136: High | Q136: DEFRA, Carbon Trust | R136: Greenhouse Gas Impacts of Food Retailing, DEFRA Project Code FO406 | S136: Brunel University | T136: PAS 2050 | U136: PAS 2050 | V136: N/A | W136: N/A | X136: No | Y136: PAS 2050 | Z136: PAS 2050 | AA136: N/A | AB136: N/A
A137: Distribution | B137: Average RDC Emissions - strawberries - UK | D137: 0.06606371171 | E137: kg CO2(e)/kg | F137: Gate to Gate | G137: Emission Factor | H137: A | I137: GBR | J137: 2008 | K137: 2007 | L137: Footprint Expert calculated emission factor using the RDC Calculator and average activity data from DEFRA | M137: Calculated | N137: High | O137: High | P137: High | Q137: DEFRA, Carbon Trust | R137: Greenhouse Gas Impacts of Food Retailing, DEFRA Project Code FO413 | S137: Brunel University | T137: PAS 2050 | U137: PAS 2050 | V137: N/A | W137: N/A | X137: No | Y137: PAS 2050 | Z137: PAS 2050 | AA137: N/A | AB137: N/A
A138: Electricity Factor | B138: Electricity: Africa | C138: Africa | D138: 0.8031668644 | E138: kg CO2(e)/kWh | F138: Cradle to Gate | G138: Emission Factor | H138: A | I138: AFR | J138: 2010 | K138: 2008 | L138: Calculated using IEA fuel mixes, average fuel emissions (combustion and upstream), and accounting for transmission losses and average power plant efficiencies | M138: Calculated | N138: Medium | O138: High | P138: High | Q138: Carbon Trust, International Energy Agency, Digest of United Kingdom energy statistics (DUKES), EcoInvent | R138: Imported from Carbon Trust Electricity Emission Factor Generator using IEA data 2007 | S138: CTFC | T138: PAS 2050 | U138: PAS 2050 | V138: No | W138: None | X138: No | Y138: PAS 2050 | Z138: N/A | AA138: N/A | AB138: PAS 2050
A139: Electricity Factor | B139: Electricity: Argentina | C139: Argentina | D139: 0.4552641162 | E139: kg CO2(e)/kWh | F139: Cradle to Gate | G139: Emission Factor | H139: A | I139: ARG | J139: 2010 | K139: 2008 | L139: Calculated using IEA fuel mixes, average fuel emissions (combustion and upstream), and accounting for transmission losses and average power plant efficiencies | M139: Calculated | N139: Medium | O139: High | P139: High | Q139: Carbon Trust, International Energy Agency, Digest of United Kingdom energy statistics (DUKES), EcoInvent | R139: Imported from Carbon Trust Electricity Emission Factor Generator using IEA data 2007 | S139: CTFC | T139: PAS 2050 | U139: PAS 2050 | V139: No | W139: None | X139: No | Y139: PAS 2050 | Z139: N/A | AA139: N/A | AB139: PAS 2050
A140: Electricity Factor | B140: Electricity: Asia subcontinent | C140: Asia subcontinent | D140: 1.029760798 | E140: kg CO2(e)/kWh | F140: Cradle to Gate | G140: Emission Factor | H140: A | I140: ASIA | J140: 2010 | K140: 2008 | L140: Calculated using IEA fuel mixes, average fuel emissions (combustion and upstream), and accounting for transmission losses and average power plant efficiencies | M140: Calculated | N140: Medium | O140: High | P140: High | Q140: Carbon Trust, International Energy Agency, Digest of United Kingdom energy statistics (DUKES), EcoInvent | R140: Imported from Carbon Trust Electricity Emission Factor Generator using IEA data 2007 | S140: CTFC | T140: PAS 2050 | U140: PAS 2050 | V140: No | W140: None | X140: No | Y140: PAS 2050 | Z140: N/A | AA140: N/A | AB140: PAS 2050
A141: Electricity Factor | B141: Electricity: Australia - Average | C141: Australia | D141: 0.9431146811 | E141: kg CO2(e)/kWh | F141: Cradle to Gate | G141: Emission Factor | H141: A | I141: AUS | J141: 2010 | K141: 2008 | L141: Calculated using IEA fuel mixes, average fuel emissions (combustion and upstream), and accounting for transmission losses and average power plant efficiencies | M141: Calculated | N141: Medium | O141: High | P141: High | Q141: Carbon Trust, International Energy Agency, Digest of United Kingdom energy statistics (DUKES), EcoInvent | R141: Imported from Carbon Trust Electricity Emission Factor Generator using IEA data 2007 | S141: CTFC | T141: PAS 2050 | U141: PAS 2050 | V141: No | W141: None | X141: No | Y141: PAS 2050 | Z141: N/A | AA141: N/A | AB141: PAS 2050
A142: Electricity Factor | B142: Electricity: Austria | C142: Austria | D142: 0.2154641795 | E142: kg CO2(e)/kWh | F142: Cradle to Gate | G142: Emission Factor | H142: A | I142: AUT | J142: 2010 | K142: 2008 | L142: Calculated using IEA fuel mixes, average fuel emissions (combustion and upstream), and accounting for transmission losses and average power plant efficiencies | M142: Calculated | N142: Medium | O142: High | P142: High | Q142: Carbon Trust, International Energy Agency, Digest of United Kingdom energy statistics (DUKES), EcoInvent | R142: Imported from Carbon Trust Electricity Emission Factor Generator using IEA data 2007 | S142: CTFC | T142: PAS 2050 | U142: PAS 2050 | V142: No | W142: None | X142: No | Y142: PAS 2050 | Z142: N/A | AA142: N/A | AB142: PAS 2050
A143: Electricity Factor | B143: Electricity: Bangladesh | C143: Bangladesh | D143: 0.5024551833 | E143: kg CO2(e)/kWh | F143: Cradle to Gate | G143: Emission Factor | H143: A | I143: BGD | J143: 2010 | K143: 2008 | L143: Calculated using IEA fuel mixes, average fuel emissions (combustion and upstream), and accounting for transmission losses and average power plant efficiencies | M143: Calculated | N143: Medium | O143: High | P143: High | Q143: Carbon Trust, International Energy Agency, Digest of United Kingdom energy statistics (DUKES), EcoInvent | R143: Imported from Carbon Trust Electricity Emission Factor Generator using IEA data 2007 | S143: CTFC | T143: PAS 2050 | U143: PAS 2050 | V143: No | W143: None | X143: No | Y143: PAS 2050 | Z143: N/A | AA143: N/A | AB143: PAS 2050
A144: Electricity Factor | B144: Electricity: Belgium | C144: Belgium | D144: 0.2491239296 | E144: kg CO2(e)/kWh | F144: Cradle to Gate | G144: Emission Factor | H144: A | I144: BEL | J144: 2010 | K144: 2008 | L144: Calculated using IEA fuel mixes, average fuel emissions (combustion and upstream), and accounting for transmission losses and average power plant efficiencies | M144: Calculated | N144: Medium | O144: High | P144: High | Q144: Carbon Trust, International Energy Agency, Digest of United Kingdom energy statistics (DUKES), EcoInvent | R144: Imported from Carbon Trust Electricity Emission Factor Generator using IEA data 2007 | S144: CTFC | T144: PAS 2050 | U144: PAS 2050 | V144: No | W144: None | X144: No | Y144: PAS 2050 | Z144: N/A | AA144: N/A | AB144: PAS 2050
A145: Electricity Factor | B145: Electricity: Brazil | C145: Brazil | D145: 0.1212237768 | E145: kg CO2(e)/kWh | F145: Cradle to Gate | G145: Emission Factor | H145: A | I145: BRA | J145: 2010 | K145: 2008 | L145: Calculated using IEA fuel mixes, average fuel emissions (combustion and upstream), and accounting for transmission losses and average power plant efficiencies | M145: Calculated | N145: Medium | O145: High | P145: High | Q145: Carbon Trust, International Energy Agency, Digest of United Kingdom energy statistics (DUKES), EcoInvent | R145: Imported from Carbon Trust Electricity Emission Factor Generator using IEA data 2007 | S145: CTFC | T145: PAS 2050 | U145: PAS 2050 | V145: No | W145: None | X145: No | Y145: PAS 2050 | Z145: N/A | AA145: N/A | AB145: PAS 2050
A146: Electricity Factor | B146: Electricity: Bulgaria | C146: Bulgaria | D146: 0.676 | E146: kg CO2(e)/kWh | F146: Cradle to Gate | G146: Emission Factor | H146: A | I146: BGR | J146: 2010 | K146: 2008 | L146: Calculated using IEA fuel mixes, average fuel emissions (combustion and upstream), and accounting for transmission losses and average power plant efficiencies | M146: Calculated | N146: Medium | O146: High | P146: High | Q146: Carbon Trust, International Energy Agency, Digest of United Kingdom energy statistics (DUKES), EcoInvent | R146: Imported from Carbon Trust Electricity Emission Factor Generator using IEA data 2007 | S146: CTFC | T146: PAS 2050 | U146: PAS 2050 | V146: No | W146: None | X146: No | Y146: PAS 2050 | Z146: N/A | AA146: N/A | AB146: PAS 2050
A147: Electricity Factor | B147: Electricity: Canada | C147: Canada | D147: 0.2529345126 | E147: kg CO2(e)/kWh | F147: Cradle to Gate | G147: Emission Factor | H147: A | I147: CAN | J147: 2010 | K147: 2008 | L147: Calculated using IEA fuel mixes, average fuel emissions (combustion and upstream), and accounting for transmission losses and average power plant efficiencies | M147: Calculated | N147: Medium | O147: High | P147: High | Q147: Carbon Trust, International Energy Agency, Digest of United Kingdom energy statistics (DUKES), EcoInvent | R147: Imported from Carbon Trust Electricity Emission Factor Generator using IEA data 2007 | S147: CTFC | T147: PAS 2050 | U147: PAS 2050 | V147: No | W147: None | X147: No | Y147: PAS 2050 | Z147: N/A | AA147: N/A | AB147: PAS 2050
A148: Electricity Factor | B148: Electricity: Central/Eastern Europe | C148: Central/Eastern Europe | D148: 0.6001718064 | E148: kg CO2(e)/kWh | F148: Cradle to Gate | G148: Emission Factor | H148: A | I148: EUR | J148: 2010 | K148: 2008 | L148: Calculated using IEA fuel mixes, average fuel emissions (combustion and upstream), and accounting for transmission losses and average power plant efficiencies | M148: Calculated | N148: Medium | O148: High | P148: High | Q148: Carbon Trust, International Energy Agency, Digest of United Kingdom energy statistics (DUKES), EcoInvent | R148: Imported from Carbon Trust Electricity Emission Factor Generator using IEA data 2007 | S148: CTFC | T148: PAS 2050 | U148: PAS 2050 | V148: No | W148: None | X148: No | Y148: PAS 2050 | Z148: N/A | AA148: N/A | AB148: PAS 2050
A149: Electricity Factor | B149: Electricity: Chile | C149: Chile | D149: 0.6156048961 | E149: kg CO2(e)/kWh | F149: Cradle to Gate | G149: Emission Factor | H149: A | I149: CHL | J149: 2010 | K149: 2008 | L149: Calculated using IEA fuel mixes, average fuel emissions (combustion and upstream), and accounting for transmission losses and average power plant efficiencies | M149: Calculated | N149: Medium | O149: High | P149: High | Q149: Carbon Trust, International Energy Agency, Digest of United Kingdom energy statistics (DUKES), EcoInvent | R149: Imported from Carbon Trust Electricity Emission Factor Generator using IEA data 2007 | S149: CTFC | T149: PAS 2050 | U149: PAS 2050 | V149: No | W149: None | X149: No | Y149: PAS 2050 | Z149: N/A | AA149: N/A | AB149: PAS 2050
A150: Electricity Factor | B150: Electricity: China | C150: China | D150: 0.9257225258 | E150: kg CO2(e)/kWh | F150: Cradle to Gate | G150: Emission Factor | H150: A | I150: CHN | J150: 2010 | K150: 2008 | L150: Calculated using IEA fuel mixes, average fuel emissions (combustion and upstream), and accounting for transmission losses and average power plant efficiencies | M150: Calculated | N150: Medium | O150: High | P150: High | Q150: Carbon Trust, International Energy Agency, Digest of United Kingdom energy statistics (DUKES), EcoInvent | R150: Imported from Carbon Trust Electricity Emission Factor Generator using IEA data 2007 | S150: CTFC | T150: PAS 2050 | U150: PAS 2050 | V150: No | W150: None | X150: No | Y150: PAS 2050 | Z150: N/A | AA150: N/A | AB150: PAS 2050
A151: Electricity Factor | B151: Electricity: Colombia | C151: Colombia | D151: 0.1380784161 | E151: kg CO2(e)/kWh | F151: Cradle to Gate | G151: Emission Factor | H151: A | I151: COL | J151: 2010 | K151: 2008 | L151: Calculated using IEA fuel mixes, average fuel emissions (combustion and upstream), and accounting for transmission losses and average power plant efficiencies | M151: Calculated | N151: Medium | O151: High | P151: High | Q151: Carbon Trust, International Energy Agency, Digest of United Kingdom energy statistics (DUKES), EcoInvent | R151: Imported from Carbon Trust Electricity Emission Factor Generator using IEA data 2007 | S151: CTFC | T151: PAS 2050 | U151: PAS 2050 | V151: No | W151: None | X151: No | Y151: PAS 2050 | Z151: N/A | AA151: N/A | AB151: PAS 2050
A152: Electricity Factor | B152: Electricity: Costa Rica | C152: Costa Rica | D152: 0.08435468933 | E152: kg CO2(e)/kWh | F152: Cradle to Gate | G152: Emission Factor | H152: A | I152: CRI | J152: 2010 | K152: 2008 | L152: Calculated using IEA fuel mixes, average fuel emissions (combustion and upstream), and accounting for transmission losses and average power plant efficiencies | M152: Calculated | N152: Medium | O152: High | P152: High | Q152: Carbon Trust, International Energy Agency, Digest of United Kingdom energy statistics (DUKES), EcoInvent | R152: Imported from Carbon Trust Electricity Emission Factor Generator using IEA data 2007 | S152: CTFC | T152: PAS 2050 | U152: PAS 2050 | V152: No | W152: None | X152: No | Y152: PAS 2050 | Z152: N/A | AA152: N/A | AB152: PAS 2050
A153: Electricity Factor | B153: Electricity: Cyprus | C153: Cyprus | D153: 1.138 | E153: kg CO2(e)/kWh | F153: Cradle to Gate | G153: Emission Factor | H153: A | I153: CYP | J153: 2010 | K153: 2008 | L153: Calculated using IEA fuel mixes, average fuel emissions (combustion and upstream), and accounting for transmission losses and average power plant efficiencies | M153: Calculated | N153: Medium | O153: High | P153: High | Q153: Carbon Trust, International Energy Agency, Digest of United Kingdom energy statistics (DUKES), EcoInvent | R153: Imported from Carbon Trust Electricity Emission Factor Generator using IEA data 2007 | S153: CTFC | T153: PAS 2050 | U153: PAS 2050 | V153: No | W153: None | X153: No | Y153: PAS 2050 | Z153: N/A | AA153: N/A | AB153: PAS 2050
A154: Electricity Factor | B154: Electricity: Czech Republic | C154: Czech Republic | D154: 0.7215843641 | E154: kg CO2(e)/kWh | F154: Cradle to Gate | G154: Emission Factor | H154: A | I154: CZE | J154: 2010 | K154: 2008 | L154: Calculated using IEA fuel mixes, average fuel emissions (combustion and upstream), and accounting for transmission losses and average power plant efficiencies | M154: Calculated | N154: Medium | O154: High | P154: High | Q154: Carbon Trust, International Energy Agency, Digest of United Kingdom energy statistics (DUKES), EcoInvent | R154: Imported from Carbon Trust Electricity Emission Factor Generator using IEA data 2007 | S154: CTFC | T154: PAS 2050 | U154: PAS 2050 | V154: No | W154: None | X154: No | Y154: PAS 2050 | Z154: N/A | AA154: N/A | AB154: PAS 2050
A155: Electricity Factor | B155: Electricity: Denmark | C155: Denmark | D155: 0.6857546667 | E155: kg CO2(e)/kWh | F155: Cradle to Gate | G155: Emission Factor | H155: A | I155: DNK | J155: 2010 | K155: 2008 | L155: Calculated using IEA fuel mixes, average fuel emissions (combustion and upstream), and accounting for transmission losses and average power plant efficiencies | M155: Calculated | N155: Medium | O155: High | P155: High | Q155: Carbon Trust, International Energy Agency, Digest of United Kingdom energy statistics (DUKES), EcoInvent | R155: Imported from Carbon Trust Electricity Emission Factor Generator using IEA data 2007 | S155: CTFC | T155: PAS 2050 | U155: PAS 2050 | V155: No | W155: None | X155: No | Y155: PAS 2050 | Z155: N/A | AA155: N/A | AB155: PAS 2050
A156: Electricity Factor | B156: Electricity: Ecuador | C156: Ecuador | D156: 0.4375304494 | E156: kg CO2(e)/kWh | F156: Cradle to Gate | G156: Emission Factor | H156: A | I156: ECU | J156: 2010 | K156: 2008 | L156: Calculated using IEA fuel mixes, average fuel emissions (combustion and upstream), and accounting for transmission losses and average power plant efficiencies | M156: Calculated | N156: Medium | O156: High | P156: High | Q156: Carbon Trust, International Energy Agency, Digest of United Kingdom energy statistics (DUKES), EcoInvent | R156: Imported from Carbon Trust Electricity Emission Factor Generator using IEA data 2007 | S156: CTFC | T156: PAS 2050 | U156: PAS 2050 | V156: No | W156: None | X156: No | Y156: PAS 2050 | Z156: N/A | AA156: N/A | AB156: PAS 2050
A157: Electricity Factor | B157: Electricity: Egypt | C157: Egypt | D157: 0.5858746328 | E157: kg CO2(e)/kWh | F157: Cradle to Gate | G157: Emission Factor | H157: A | I157: EGY | J157: 2010 | K157: 2008 | L157: Calculated using IEA fuel mixes, average fuel emissions (combustion and upstream), and accounting for transmission losses and average power plant efficiencies | M157: Calculated | N157: Medium | O157: High | P157: High | Q157: Carbon Trust, International Energy Agency, Digest of United Kingdom energy statistics (DUKES), EcoInvent | R157: Imported from Carbon Trust Electricity Emission Factor Generator using IEA data 2007 | S157: CTFC | T157: PAS 2050 | U157: PAS 2050 | V157: No | W157: None | X157: No | Y157: PAS 2050 | Z157: N/A | AA157: N/A | AB157: PAS 2050
A158: Electricity Factor | B158: Electricity: EU 27 | C158: EU 27 | D158: 0.4790234769 | E158: kg CO2(e)/kWh | F158: Cradle to Gate | G158: Emission Factor | H158: A | I158: EUR | J158: 2010 | K158: 2008 | L158: Calculated using IEA fuel mixes, average fuel emissions (combustion and upstream), and accounting for transmission losses and average power plant efficiencies | M158: Calculated | N158: Medium | O158: High | P158: High | Q158: Carbon Trust, International Energy Agency, Digest of United Kingdom energy statistics (DUKES), EcoInvent | R158: Imported from Carbon Trust Electricity Emission Factor Generator using IEA data 2007 | S158: CTFC | T158: PAS 2050 | U158: PAS 2050 | V158: No | W158: None | X158: No | Y158: PAS 2050 | Z158: N/A | AA158: N/A | AB158: PAS 2050
A159: Electricity Factor | B159: Electricity: Finland | C159: Finland | D159: 0.2917487526 | E159: kg CO2(e)/kWh | F159: Cradle to Gate | G159: Emission Factor | H159: A | I159: FIN | J159: 2010 | K159: 2008 | L159: Calculated using IEA fuel mixes, average fuel emissions (combustion and upstream), and accounting for transmission losses and average power plant efficiencies | M159: Calculated | N159: Medium | O159: High | P159: High | Q159: Carbon Trust, International Energy Agency, Digest of United Kingdom energy statistics (DUKES), EcoInvent | R159: Imported from Carbon Trust Electricity Emission Factor Generator using IEA data 2007 | S159: CTFC | T159: PAS 2050 | U159: PAS 2050 | V159: No | W159: None | X159: No | Y159: PAS 2050 | Z159: N/A | AA159: N/A | AB159: PAS 2050
A160: Electricity Factor | B160: Electricity: France | C160: France | D160: 0.09238987821 | E160: kg CO2(e)/kWh | F160: Cradle to Gate | G160: Emission Factor | H160: A | I160: FRA | J160: 2010 | K160: 2008 | L160: Calculated using IEA fuel mixes, average fuel emissions (combustion and upstream), and accounting for transmission losses and average power plant efficiencies | M160: Calculated | N160: Medium | O160: High | P160: High | Q160: Carbon Trust, International Energy Agency, Digest of United Kingdom energy statistics (DUKES), EcoInvent | R160: Imported from Carbon Trust Electricity Emission Factor Generator using IEA data 2007 | S160: CTFC | T160: PAS 2050 | U160: PAS 2050 | V160: No | W160: None | X160: No | Y160: PAS 2050 | Z160: N/A | AA160: N/A | AB160: PAS 2050
A161: Electricity Factor | B161: Electricity: Germany | C161: Germany | D161: 0.6108184233 | E161: kg CO2(e)/kWh | F161: Cradle to Gate | G161: Emission Factor | H161: A | I161: DEU | J161: 2010 | K161: 2008 | L161: Calculated using IEA fuel mixes, average fuel emissions (combustion and upstream), and accounting for transmission losses and average power plant efficiencies | M161: Calculated | N161: Medium | O161: High | P161: High | Q161: Carbon Trust, International Energy Agency, Digest of United Kingdom energy statistics (DUKES), EcoInvent | R161: Imported from Carbon Trust Electricity Emission Factor Generator using IEA data 2007 | S161: CTFC | T161: PAS 2050 | U161: PAS 2050 | V161: No | W161: None | X161: No | Y161: PAS 2050 | Z161: N/A | AA161: N/A | AB161: PAS 2050
A162: Electricity Factor | B162: Electricity: Greece | C162: Greece | D162: 0.9162561151 | E162: kg CO2(e)/kWh | F162: Cradle to Gate | G162: Emission Factor | H162: A | I162: GRC | J162: 2010 | K162: 2008 | L162: Calculated using IEA fuel mixes, average fuel emissions (combustion and upstream), and accounting for transmission losses and average power plant efficiencies | M162: Calculated | N162: Medium | O162: High | P162: High | Q162: Carbon Trust, International Energy Agency, Digest of United Kingdom energy statistics (DUKES), EcoInvent | R162: Imported from Carbon Trust Electricity Emission Factor Generator using IEA data 2007 | S162: CTFC | T162: PAS 2050 | U162: PAS 2050 | V162: No | W162: None | X162: No | Y162: PAS 2050 | Z162: N/A | AA162: N/A | AB162: PAS 2050
A163: Electricity Factor | B163: Electricity: Guatemala | C163: Guatemala | D163: 0.5352161165 | E163: kg CO2(e)/kWh | F163: Cradle to Gate | G163: Emission Factor | H163: A | I163: GTM | J163: 2010 | K163: 2008 | L163: Calculated using IEA fuel mixes, average fuel emissions (combustion and upstream), and accounting for transmission losses and average power plant efficiencies | M163: Calculated | N163: Medium | O163: High | P163: High | Q163: Carbon Trust, International Energy Agency, Digest of United Kingdom energy statistics (DUKES), EcoInvent | R163: Imported from Carbon Trust Electricity Emission Factor Generator using IEA data 2007 | S163: CTFC | T163: PAS 2050 | U163: PAS 2050 | V163: No | W163: None | X163: No | Y163: PAS 2050 | Z163: N/A | AA163: N/A | AB163: PAS 2050
A164: Electricity Factor | B164: Electricity: Hungary | C164: Hungary | D164: 0.4310860312 | E164: kg CO2(e)/kWh | F164: Cradle to Gate | G164: Emission Factor | H164: A | I164: HUN | J164: 2010 | K164: 2008 | L164: Calculated using IEA fuel mixes, average fuel emissions (combustion and upstream), and accounting for transmission losses and average power plant efficiencies | M164: Calculated | N164: Medium | O164: High | P164: High | Q164: Carbon Trust, International Energy Agency, Digest of United Kingdom energy statistics (DUKES), EcoInvent | R164: Imported from Carbon Trust Electricity Emission Factor Generator using IEA data 2007 | S164: CTFC | T164: PAS 2050 | U164: PAS 2050 | V164: No | W164: None | X164: No | Y164: PAS 2050 | Z164: N/A | AA164: N/A | AB164: PAS 2050
A165: Electricity Factor | B165: Electricity: India | C165: India | D165: 1.106271818 | E165: kg CO2(e)/kWh | F165: Cradle to Gate | G165: Emission Factor | H165: A | I165: IND | J165: 2010 | K165: 2008 | L165: Calculated using IEA fuel mixes, average fuel emissions (combustion and upstream), and accounting for transmission losses and average power plant efficiencies | M165: Calculated | N165: Medium | O165: High | P165: High | Q165: Carbon Trust, International Energy Agency, Digest of United Kingdom energy statistics (DUKES), EcoInvent | R165: Imported from Carbon Trust Electricity Emission Factor Generator using IEA data 2007 | S165: CTFC | T165: PAS 2050 | U165: PAS 2050 | V165: No | W165: None | X165: No | Y165: PAS 2050 | Z165: N/A | AA165: N/A | AB165: PAS 2050
A166: Electricity Factor | B166: Electricity: Indonesia | C166: Indonesia | D166: 0.9408593838 | E166: kg CO2(e)/kWh | F166: Cradle to Gate | G166: Emission Factor | H166: A | I166: IDN | J166: 2010 | K166: 2008 | L166: Calculated using IEA fuel mixes, average fuel emissions (combustion and upstream), and accounting for transmission losses and average power plant efficiencies | M166: Calculated | N166: Medium | O166: High | P166: High | Q166: Carbon Trust, International Energy Agency, Digest of United Kingdom energy statistics (DUKES), EcoInvent | R166: Imported from Carbon Trust Electricity Emission Factor Generator using IEA data 2007 | S166: CTFC | T166: PAS 2050 | U166: PAS 2050 | V166: No | W166: None | X166: No | Y166: PAS 2050 | Z166: N/A | AA166: N/A | AB166: PAS 2050
A167: Electricity Factor | B167: Electricity: Ireland (Republic of) | C167: Ireland (Republic of) | D167: 0.6508309069 | E167: kg CO2(e)/kWh | F167: Cradle to Gate | G167: Emission Factor | H167: A | I167: IRL | J167: 2010 | K167: 2008 | L167: Calculated using IEA fuel mixes, average fuel emissions (combustion and upstream), and accounting for transmission losses and average power plant efficiencies | M167: Calculated | N167: Medium | O167: High | P167: High | Q167: Carbon Trust, International Energy Agency, Digest of United Kingdom energy statistics (DUKES), EcoInvent | R167: Imported from Carbon Trust Electricity Emission Factor Generator using IEA data 2007 | S167: CTFC | T167: PAS 2050 | U167: PAS 2050 | V167: No | W167: None | X167: No | Y167: PAS 2050 | Z167: N/A | AA167: N/A | AB167: PAS 2050
A168: Electricity Factor | B168: Electricity: Israel | C168: Israel | D168: 0.891101936 | E168: kg CO2(e)/kWh | F168: Cradle to Gate | G168: Emission Factor | H168: A | I168: ISR | J168: 2010 | K168: 2008 | L168: Calculated using IEA fuel mixes, average fuel emissions (combustion and upstream), and accounting for transmission losses and average power plant efficiencies | M168: Calculated | N168: Medium | O168: High | P168: High | Q168: Carbon Trust, International Energy Agency, Digest of United Kingdom energy statistics (DUKES), EcoInvent | R168: Imported from Carbon Trust Electricity Emission Factor Generator using IEA data 2007 | S168: CTFC | T168: PAS 2050 | U168: PAS 2050 | V168: No | W168: None | X168: No | Y168: PAS 2050 | Z168: N/A | AA168: N/A | AB168: PAS 2050
A169: Electricity Factor | B169: Electricity: Italy | C169: Italy | D169: 0.5519402311 | E169: kg CO2(e)/kWh | F169: Cradle to Gate | G169: Emission Factor | H169: A | I169: ITA | J169: 2010 | K169: 2008 | L169: Calculated using IEA fuel mixes, average fuel emissions (combustion and upstream), and accounting for transmission losses and average power plant efficiencies | M169: Calculated | N169: Medium | O169: High | P169: High | Q169: Carbon Trust, International Energy Agency, Digest of United Kingdom energy statistics (DUKES), EcoInvent | R169: Imported from Carbon Trust Electricity Emission Factor Generator using IEA data 2007 | S169: CTFC | T169: PAS 2050 | U169: PAS 2050 | V169: No | W169: None | X169: No | Y169: PAS 2050 | Z169: N/A | AA169: N/A | AB169: PAS 2050
A170: Electricity Factor | B170: Electricity: Japan | C170: Japan | D170: 0.5829152246 | E170: kg CO2(e)/kWh | F170: Cradle to Gate | G170: Emission Factor | H170: A | I170: JPN | J170: 2010 | K170: 2008 | L170: Calculated using IEA fuel mixes, average fuel emissions (combustion and upstream), and accounting for transmission losses and average power plant efficiencies | M170: Calculated | N170: Medium | O170: High | P170: High | Q170: Carbon Trust, International Energy Agency, Digest of United Kingdom energy statistics (DUKES), EcoInvent | R170: Imported from Carbon Trust Electricity Emission Factor Generator using IEA data 2007 | S170: CTFC | T170: PAS 2050 | U170: PAS 2050 | V170: No | W170: None | X170: No | Y170: PAS 2050 | Z170: N/A | AA170: N/A | AB170: PAS 2050
A171: Electricity Factor | B171: Electricity: Kenya | C171: Kenya | D171: 0.3609880133 | E171: kg CO2(e)/kWh | F171: Cradle to Gate | G171: Emission Factor | H171: A | I171: KEN | J171: 2009 | K171: 2007 | L171: Calculated using IEA fuel mixes, average fuel emissions (combustion and upstream), and accounting for transmission losses and average power plant efficiencies | M171: Calculated | N171: Medium | O171: High | P171: High | Q171: Carbon Trust, International Energy Agency, Digest of United Kingdom energy statistics (DUKES), EcoInvent | R171: Imported from Carbon Trust Electricity Emission Factor Generator using IEA data 2007 | S171: CTFC | T171: PAS 2050 | U171: PAS 2050 | V171: No | W171: None | X171: No | Y171: PAS 2050 | Z171: N/A | AA171: N/A | AB171: PAS 2050
A172: Electricity Factor | B172: Electricity: Latin America | C172: Latin America | D172: 0.3018627885 | E172: kg CO2(e)/kWh | F172: Cradle to Gate | G172: Emission Factor | H172: A | I172: LA | J172: 2010 | K172: 2008 | L172: Calculated using IEA fuel mixes, average fuel emissions (combustion and upstream), and accounting for transmission losses and average power plant efficiencies | M172: Calculated | N172: Medium | O172: High | P172: High | Q172: Carbon Trust, International Energy Agency, Digest of United Kingdom energy statistics (DUKES), EcoInvent | R172: Imported from Carbon Trust Electricity Emission Factor Generator using IEA data 2007 | S172: CTFC | T172: PAS 2050 | U172: PAS 2050 | V172: No | W172: None | X172: No | Y172: PAS 2050 | Z172: N/A | AA172: N/A | AB172: PAS 2050
A173: Electricity Factor | B173: Electricity: Latvia | C173: Latvia | D173: 0.396676967 | E173: kg CO2(e)/kWh | F173: Cradle to Gate | G173: Emission Factor | H173: A | I173: LVA | J173: 2010 | K173: 2008 | L173: Calculated using IEA fuel mixes, average fuel emissions (combustion and upstream), and accounting for transmission losses and average power plant efficiencies. Also remodelled to take into account the carbon intensity of electricity imported from neighbouring countries. | M173: Calculated | N173: Medium | O173: High | P173: High | Q173: Carbon Trust, International Energy Agency, Digest of United Kingdom energy statistics (DUKES), EcoInvent | R173: Imported from Carbon Trust Electricity Emission Factor Generator using IEA data 2007 | S173: CTFC | T173: PAS 2050 | U173: PAS 2050 | V173: No | W173: None | X173: No | Y173: PAS 2050 | Z173: N/A | AA173: N/A | AB173: PAS 2050
A174: Electricity Factor | B174: Electricity: Malaysia | C174: Malaysia | D174: 0.617248732 | E174: kg CO2(e)/kWh | F174: Cradle to Gate | G174: Emission Factor | H174: A | I174: MYS | J174: 2010 | K174: 2008 | L174: Calculated using IEA fuel mixes, average fuel emissions (combustion and upstream), and accounting for transmission losses and average power plant efficiencies | M174: Calculated | N174: Medium | O174: High | P174: High | Q174: Carbon Trust, International Energy Agency, Digest of United Kingdom energy statistics (DUKES), EcoInvent | R174: Imported from Carbon Trust Electricity Emission Factor Generator using IEA data 2007 | S174: CTFC | T174: PAS 2050 | U174: PAS 2050 | V174: No | W174: None | X174: No | Y174: PAS 2050 | Z174: N/A | AA174: N/A | AB174: PAS 2050
A175: Electricity Factor | B175: Electricity: Malta | C175: Malta | D175: 1.372 | E175: kg CO2(e)/kWh | F175: Cradle to Gate | G175: Emission Factor | H175: A | I175: MLT | J175: 2010 | K175: 2008 | L175: Calculated using IEA fuel mixes, average fuel emissions (combustion and upstream), and accounting for transmission losses and average power plant efficiencies | M175: Calculated | N175: Medium | O175: High | P175: High | Q175: Carbon Trust, International Energy Agency, Digest of United Kingdom energy statistics (DUKES), EcoInvent | R175: Imported from Carbon Trust Electricity Emission Factor Generator using IEA data 2007 | S175: CTFC | T175: PAS 2050 | U175: PAS 2050 | V175: No | W175: None | X175: No | Y175: PAS 2050 | Z175: N/A | AA175: N/A | AB175: PAS 2050
A176: Electricity Factor | B176: Electricity: Mexico | C176: Mexico | D176: 0.6336114377 | E176: kg CO2(e)/kWh | F176: Cradle to Gate | G176: Emission Factor | H176: A | I176: MEX | J176: 2010 | K176: 2008 | L176: Calculated using IEA fuel mixes, average fuel emissions (combustion and upstream), and accounting for transmission losses and average power plant efficiencies | M176: Calculated | N176: Medium | O176: High | P176: High | Q176: Carbon Trust, International Energy Agency, Digest of United Kingdom energy statistics (DUKES), EcoInvent | R176: Imported from Carbon Trust Electricity Emission Factor Generator using IEA data 2007 | S176: CTFC | T176: PAS 2050 | U176: PAS 2050 | V176: No | W176: None | X176: No | Y176: PAS 2050 | Z176: N/A | AA176: N/A | AB176: PAS 2050
A177: Electricity Factor | B177: Electricity: Middle East | C177: Middle East | D177: 0.8158629797 | E177: kg CO2(e)/kWh | F177: Cradle to Gate | G177: Emission Factor | H177: A | I177: MIDDLE EAST | J177: 2010 | K177: 2008 | L177: Calculated using IEA fuel mixes, average fuel emissions (combustion and upstream), and accounting for transmission losses and average power plant efficiencies | M177: Calculated | N177: Medium | O177: High | P177: High | Q177: Carbon Trust, International Energy Agency, Digest of United Kingdom energy statistics (DUKES), EcoInvent | R177: Imported from Carbon Trust Electricity Emission Factor Generator using IEA data 2007 | S177: CTFC | T177: PAS 2050 | U177: PAS 2050 | V177: No | W177: None | X177: No | Y177: PAS 2050 | Z177: N/A | AA177: N/A | AB177: PAS 2050
A178: Electricity Factor | B178: Electricity: Netherlands | C178: Netherlands | D178: 0.5863892071 | E178: kg CO2(e)/kWh | F178: Cradle to Gate | G178: Emission Factor | H178: A | I178: NLD | J178: 2009 | K178: 2007 | L178: Calculated using IEA fuel mixes, average fuel emissions (combustion and upstream), and accounting for transmission losses and average power plant efficiencies | M178: Calculated | N178: Medium | O178: High | P178: High | Q178: Carbon Trust, International Energy Agency, Digest of United Kingdom energy statistics (DUKES), EcoInvent | R178: Imported from Carbon Trust Electricity Emission Factor Generator using IEA data 2007 | S178: CTFC | T178: PAS 2050 | U178: PAS 2050 | V178: No | W178: None | X178: No | Y178: PAS 2050 | Z178: N/A | AA178: N/A | AB178: PAS 2050
A179: Electricity Factor | B179: Electricity: New Zealand | C179: New Zealand | D179: 0.2519496063 | E179: kg CO2(e)/kWh | F179: Cradle to Gate | G179: Emission Factor | H179: A | I179: NZL | J179: 2010 | K179: 2008 | L179: Calculated using IEA fuel mixes, average fuel emissions (combustion and upstream), and accounting for transmission losses and average power plant efficiencies | M179: Calculated | N179: Medium | O179: High | P179: High | Q179: Carbon Trust, International Energy Agency, Digest of United Kingdom energy statistics (DUKES), EcoInvent | R179: Imported from Carbon Trust Electricity Emission Factor Generator using IEA data 2007 | S179: CTFC | T179: PAS 2050 | U179: PAS 2050 | V179: No | W179: None | X179: No | Y179: PAS 2050 | Z179: N/A | AA179: N/A | AB179: PAS 2050
A180: Electricity Factor | B180: Electricity: Non-OECD total | C180: Non-OECD total | D180: 0.7406234935 | E180: kg CO2(e)/kWh | F180: Cradle to Gate | G180: Emission Factor | H180: A | I180: NON-OECD | J180: 2010 | K180: 2008 | L180: Calculated using IEA fuel mixes, average fuel emissions (combustion and upstream), and accounting for transmission losses and average power plant efficiencies | M180: Calculated | N180: Medium | O180: High | P180: High | Q180: Carbon Trust, International Energy Agency, Digest of United Kingdom energy statistics (DUKES), EcoInvent | R180: Imported from Carbon Trust Electricity Emission Factor Generator using IEA data 2007 | S180: CTFC | T180: PAS 2050 | U180: PAS 2050 | V180: No | W180: None | X180: No | Y180: PAS 2050 | Z180: N/A | AA180: N/A | AB180: PAS 2050
A181: Electricity Factor | B181: Electricity: North America | C181: North America | D181: 0.6304083052 | E181: kg CO2(e)/kWh | F181: Cradle to Gate | G181: Emission Factor | H181: A | I181: NORTH AMERICA | J181: 2010 | K181: 2008 | L181: Calculated using IEA fuel mixes, average fuel emissions (combustion and upstream), and accounting for transmission losses and average power plant efficiencies | M181: Calculated | N181: Medium | O181: High | P181: High | Q181: Carbon Trust, International Energy Agency, Digest of United Kingdom energy statistics (DUKES), EcoInvent | R181: Imported from Carbon Trust Electricity Emission Factor Generator using IEA data 2007 | S181: CTFC | T181: PAS 2050 | U181: PAS 2050 | V181: No | W181: None | X181: No | Y181: PAS 2050 | Z181: N/A | AA181: N/A | AB181: PAS 2050
A182: Electricity Factor | B182: Electricity: Norway | C182: Norway | D182: 0.01049451094 | E182: kg CO2(e)/kWh | F182: Cradle to Gate | G182: Emission Factor | H182: A | I182: NOR | J182: 2010 | K182: 2008 | L182: Calculated using IEA fuel mixes, average fuel emissions (combustion and upstream), and accounting for transmission losses and average power plant efficiencies | M182: Calculated | N182: Medium | O182: High | P182: High | Q182: Carbon Trust, International Energy Agency, Digest of United Kingdom energy statistics (DUKES), EcoInvent | R182: Imported from Carbon Trust Electricity Emission Factor Generator using IEA data 2007 | S182: CTFC | T182: PAS 2050 | U182: PAS 2050 | V182: No | W182: None | X182: No | Y182: PAS 2050 | Z182: N/A | AA182: N/A | AB182: PAS 2050
A183: Electricity Factor | B183: Electricity: OECD total | C183: OECD total | D183: 0.5993285359 | E183: kg CO2(e)/kWh | F183: Cradle to Gate | G183: Emission Factor | H183: A | I183: OECD | J183: 2010 | K183: 2008 | L183: Calculated using IEA fuel mixes, average fuel emissions (combustion and upstream), and accounting for transmission losses and average power plant efficiencies | M183: Calculated | N183: Medium | O183: High | P183: High | Q183: Carbon Trust, International Energy Agency, Digest of United Kingdom energy statistics (DUKES), EcoInvent | R183: Imported from Carbon Trust Electricity Emission Factor Generator using IEA data 2007 | S183: CTFC | T183: PAS 2050 | U183: PAS 2050 | V183: No | W183: None | X183: No | Y183: PAS 2050 | Z183: N/A | AA183: N/A | AB183: PAS 2050
A184: Electricity Factor | B184: Electricity: Pakistan | C184: Pakistan | D184: 0.6765232898 | E184: kg CO2(e)/kWh | F184: Cradle to Gate | G184: Emission Factor | H184: A | I184: PAK | J184: 2010 | K184: 2008 | L184: Calculated using IEA fuel mixes, average fuel emissions (combustion and upstream), and accounting for transmission losses and average power plant efficiencies | M184: Calculated | N184: Medium | O184: High | P184: High | Q184: Carbon Trust, International Energy Agency, Digest of United Kingdom energy statistics (DUKES), EcoInvent | R184: Imported from Carbon Trust Electricity Emission Factor Generator using IEA data 2007 | S184: CTFC | T184: PAS 2050 | U184: PAS 2050 | V184: No | W184: None | X184: No | Y184: PAS 2050 | Z184: N/A | AA184: N/A | AB184: PAS 2050
A185: Electricity Factor | B185: Electricity: Panama | C185: Panama | D185: 0.466 | E185: kg CO2(e)/kWh | F185: Cradle to Gate | G185: Emission Factor | H185: A | I185: PAN | J185: 2010 | K185: 2008 | L185: Calculated using IEA fuel mixes, average fuel emissions (combustion and upstream), and accounting for transmission losses and average power plant efficiencies | M185: Calculated | N185: Medium | O185: High | P185: High | Q185: Carbon Trust, International Energy Agency, Digest of United Kingdom energy statistics (DUKES), EcoInvent | R185: Imported from Carbon Trust Electricity Emission Factor Generator using IEA data 2007 | S185: CTFC | T185: PAS 2050 | U185: PAS 2050 | V185: No | W185: None | X185: No | Y185: PAS 2050 | Z185: N/A | AA185: N/A | AB185: PAS 2050
A186: Electricity Factor | B186: Electricity: Peru | C186: Peru | D186: 0.273 | E186: kg CO2(e)/kWh | F186: Cradle to Gate | G186: Emission Factor | H186: A | I186: PER | J186: 2010 | K186: 2008 | L186: Calculated using IEA fuel mixes, average fuel emissions (combustion and upstream), and accounting for transmission losses and average power plant efficiencies | M186: Calculated | N186: Medium | O186: High | P186: High | Q186: Carbon Trust, International Energy Agency, Digest of United Kingdom energy statistics (DUKES), EcoInvent | R186: Imported from Carbon Trust Electricity Emission Factor Generator using IEA data 2007 | S186: CTFC | T186: PAS 2050 | U186: PAS 2050 | V186: No | W186: None | X186: No | Y186: PAS 2050 | Z186: N/A | AA186: N/A | AB186: PAS 2050
A187: Electricity Factor | B187: Electricity: Philippines | C187: Philippines | D187: 0.5847320505 | E187: kg CO2(e)/kWh | F187: Cradle to Gate | G187: Emission Factor | H187: A | I187: PHI | J187: 2010 | K187: 2008 | L187: Calculated using IEA fuel mixes, average fuel emissions (combustion and upstream), and accounting for transmission losses and average power plant efficiencies | M187: Calculated | N187: Medium | O187: High | P187: High | Q187: Carbon Trust, International Energy Agency, Digest of United Kingdom energy statistics (DUKES), EcoInvent | R187: Imported from Carbon Trust Electricity Emission Factor Generator using IEA data 2007 | S187: CTFC | T187: PAS 2050 | U187: PAS 2050 | V187: No | W187: None | X187: No | Y187: PAS 2050 | Z187: N/A | AA187: N/A | AB187: PAS 2050
A188: Electricity Factor | B188: Electricity: Poland | C188: Poland | D188: 1.126514988 | E188: kg CO2(e)/kWh | F188: Cradle to Gate | G188: Emission Factor | H188: A | I188: POL | J188: 2010 | K188: 2008 | L188: Calculated using IEA fuel mixes, average fuel emissions (combustion and upstream), and accounting for transmission losses and average power plant efficiencies | M188: Calculated | N188: Medium | O188: High | P188: High | Q188: Carbon Trust, International Energy Agency, Digest of United Kingdom energy statistics (DUKES), EcoInvent | R188: Imported from Carbon Trust Electricity Emission Factor Generator using IEA data 2007 | S188: CTFC | T188: PAS 2050 | U188: PAS 2050 | V188: No | W188: None | X188: No | Y188: PAS 2050 | Z188: N/A | AA188: N/A | AB188: PAS 2050
A189: Electricity Factor | B189: Electricity: Portugal | C189: Portugal | D189: 0.5612709178 | E189: kg CO2(e)/kWh | F189: Cradle to Gate | G189: Emission Factor | H189: A | I189: PRT | J189: 2010 | K189: 2008 | L189: Calculated using IEA fuel mixes, average fuel emissions (combustion and upstream), and accounting for transmission losses and average power plant efficiencies | M189: Calculated | N189: Medium | O189: High | P189: High | Q189: Carbon Trust, International Energy Agency, Digest of United Kingdom energy statistics (DUKES), EcoInvent | R189: Imported from Carbon Trust Electricity Emission Factor Generator using IEA data 2007 | S189: CTFC | T189: PAS 2050 | U189: PAS 2050 | V189: No | W189: None | X189: No | Y189: PAS 2050 | Z189: N/A | AA189: N/A | AB189: PAS 2050
A190: Electricity Factor | B190: Electricity: Romania | C190: Romania | D190: 0.496 | E190: kg CO2(e)/kWh | F190: Cradle to Gate | G190: Emission Factor | H190: A | I190: ROM | J190: 2010 | K190: 2008 | L190: Calculated using IEA fuel mixes, average fuel emissions (combustion and upstream), and accounting for transmission losses and average power plant efficiencies | M190: Calculated | N190: Medium | O190: High | P190: High | Q190: Carbon Trust, International Energy Agency, Digest of United Kingdom energy statistics (DUKES), EcoInvent | R190: Imported from Carbon Trust Electricity Emission Factor Generator using IEA data 2007 | S190: CTFC | T190: PAS 2050 | U190: PAS 2050 | V190: No | W190: None | X190: No | Y190: PAS 2050 | Z190: N/A | AA190: N/A | AB190: PAS 2050
A191: Electricity Factor | B191: Electricity: Russia | C191: Russia | D191: 0.4953740877 | E191: kg CO2(e)/kWh | F191: Cradle to Gate | G191: Emission Factor | H191: A | I191: RUS | J191: 2010 | K191: 2008 | L191: Calculated using IEA fuel mixes, average fuel emissions (combustion and upstream), and accounting for transmission losses and average power plant efficiencies | M191: Calculated | N191: Medium | O191: High | P191: High | Q191: Carbon Trust, International Energy Agency, Digest of United Kingdom energy statistics (DUKES), EcoInvent | R191: Imported from Carbon Trust Electricity Emission Factor Generator using IEA data 2007 | S191: CTFC | T191: PAS 2050 | U191: PAS 2050 | V191: No | W191: None | X191: No | Y191: PAS 2050 | Z191: N/A | AA191: N/A | AB191: PAS 2050
A192: Electricity Factor | B192: Electricity: Saudi Arabia | C192: Saudi Arabia | D192: 0.9086318311 | E192: kg CO2(e)/kWh | F192: Cradle to Gate | G192: Emission Factor | H192: A | I192: KSA | J192: 2010 | K192: 2008 | L192: Calculated using IEA fuel mixes, average fuel emissions (combustion and upstream), and accounting for transmission losses and average power plant efficiencies | M192: Calculated | N192: Medium | O192: High | P192: High | Q192: Carbon Trust, International Energy Agency, Digest of United Kingdom energy statistics (DUKES), EcoInvent | R192: Imported from Carbon Trust Electricity Emission Factor Generator using IEA data 2007 | S192: CTFC | T192: PAS 2050 | U192: PAS 2050 | V192: No | W192: None | X192: No | Y192: PAS 2050 | Z192: N/A | AA192: N/A | AB192: PAS 2050
A193: Electricity Factor | B193: Electricity: Serbia | C193: Serbia | D193: 0.9373146365 | E193: kg CO2(e)/kWh | F193: Cradle to Gate | G193: Emission Factor | H193: A | I193: YUG | J193: 2010 | K193: 2008 | L193: Calculated using IEA fuel mixes, average fuel emissions (combustion and upstream), and accounting for transmission losses and average power plant efficiencies | M193: Calculated | N193: Medium | O193: High | P193: High | Q193: Carbon Trust, International Energy Agency, Digest of United Kingdom energy statistics (DUKES), EcoInvent | R193: Imported from Carbon Trust Electricity Emission Factor Generator using IEA data 2005, EcoInvent 2.0 and Dukes Digest 2008 | S193: CTFC | T193: PAS 2050 | U193: PAS 2050 | V193: No | W193: None | X193: No | Y193: PAS 2050 | Z193: N/A | AA193: N/A | AB193: PAS 2050
A194: Electricity Factor | B194: Electricity: Singapore | C194: Singapore | D194: 0.608704327 | E194: kg CO2(e)/kWh | F194: Cradle to Gate | G194: Emission Factor | H194: A | I194: SGP | J194: 2010 | K194: 2008 | L194: Calculated using IEA fuel mixes, average fuel emissions (combustion and upstream), and accounting for transmission losses and average power plant efficiencies | M194: Calculated | N194: Medium | O194: High | P194: High | Q194: Carbon Trust, International Energy Agency, Digest of United Kingdom energy statistics (DUKES), EcoInvent | R194: Imported from Carbon Trust Electricity Emission Factor Generator using IEA data 2007 | S194: CTFC | T194: PAS 2050 | U194: PAS 2050 | V194: No | W194: None | X194: No | Y194: PAS 2050 | Z194: N/A | AA194: N/A | AB194: PAS 2050
A195: Electricity Factor | B195: Electricity: South Africa | C195: South Africa | D195: 1.125941763 | E195: kg CO2(e)/kWh | F195: Cradle to Gate | G195: Emission Factor | H195: A | I195: ZAF | J195: 2010 | K195: 2008 | L195: Calculated using IEA fuel mixes, average fuel emissions (combustion and upstream), and accounting for transmission losses and average power plant efficiencies | M195: Calculated | N195: Medium | O195: High | P195: High | Q195: Carbon Trust, International Energy Agency, Digest of United Kingdom energy statistics (DUKES), EcoInvent | R195: Imported from Carbon Trust Electricity Emission Factor Generator using IEA data 2007 | S195: CTFC | T195: PAS 2050 | U195: PAS 2050 | V195: No | W195: None | X195: No | Y195: PAS 2050 | Z195: N/A | AA195: N/A | AB195: PAS 2050
A196: Electricity Factor | B196: Electricity: South East Asia | C196: South East Asia | D196: 0.6676313868 | E196: kg CO2(e)/kWh | F196: Cradle to Gate | G196: Emission Factor | H196: A | I196: SOUTH EAST ASIA | J196: 2010 | K196: 2008 | L196: Calculated using IEA fuel mixes, average fuel emissions (combustion and upstream), and accounting for transmission losses and average power plant efficiencies | M196: Calculated | N196: Medium | O196: High | P196: High | Q196: Carbon Trust, International Energy Agency, Digest of United Kingdom energy statistics (DUKES), EcoInvent | R196: Imported from Carbon Trust Electricity Emission Factor Generator using IEA data 2007 | S196: CTFC | T196: PAS 2050 | U196: PAS 2050 | V196: No | W196: None | X196: No | Y196: PAS 2050 | Z196: N/A | AA196: N/A | AB196: PAS 2050
A197: Electricity Factor | B197: Electricity: South Korea | C197: South Korea | D197: 0.6219254044 | E197: kg CO2(e)/kWh | F197: Cradle to Gate | G197: Emission Factor | H197: A | I197: SKR | J197: 2010 | K197: 2008 | L197: Calculated using IEA fuel mixes, average fuel emissions (combustion and upstream), and accounting for transmission losses and average power plant efficiencies | M197: Calculated | N197: Medium | O197: High | P197: High | Q197: Carbon Trust, International Energy Agency, Digest of United Kingdom energy statistics (DUKES), EcoInvent | R197: Imported from Carbon Trust Electricity Emission Factor Generator using IEA data 2007 | S197: CTFC | T197: PAS 2050 | U197: PAS 2050 | V197: No | W197: None | X197: No | Y197: PAS 2050 | Z197: N/A | AA197: N/A | AB197: PAS 2050
A198: Electricity Factor | B198: Electricity: Spain | C198: Spain | D198: 0.4345488255 | E198: kg CO2(e)/kWh | F198: Cradle to Gate | G198: Emission Factor | H198: A | I198: ESP | J198: 2010 | K198: 2008 | L198: Calculated using IEA fuel mixes, average fuel emissions (combustion and upstream), and accounting for transmission losses and average power plant efficiencies | M198: Calculated | N198: Medium | O198: High | P198: High | Q198: Carbon Trust, International Energy Agency, Digest of United Kingdom energy statistics (DUKES), EcoInvent | R198: Imported from Carbon Trust Electricity Emission Factor Generator using IEA data 2007 | S198: CTFC | T198: PAS 2050 | U198: PAS 2050 | V198: No | W198: None | X198: No | Y198: PAS 2050 | Z198: N/A | AA198: N/A | AB198: PAS 2050
A199: Electricity Factor | B199: Electricity: Sweden | C199: Sweden | D199: 0.0321468541 | E199: kg CO2(e)/kWh | F199: Cradle to Gate | G199: Emission Factor | H199: A | I199: SWE | J199: 2010 | K199: 2008 | L199: Calculated using IEA fuel mixes, average fuel emissions (combustion and upstream), and accounting for transmission losses and average power plant efficiencies | M199: Calculated | N199: Medium | O199: High | P199: High | Q199: Carbon Trust, International Energy Agency, Digest of United Kingdom energy statistics (DUKES), EcoInvent | R199: Imported from Carbon Trust Electricity Emission Factor Generator using IEA data 2007 | S199: CTFC | T199: PAS 2050 | U199: PAS 2050 | V199: No | W199: None | X199: No | Y199: PAS 2050 | Z199: N/A | AA199: N/A | AB199: PAS 2050
A200: Electricity Factor | B200: Electricity: Taiwan | C200: Taiwan | D200: 0.7604809839 | E200: kg CO2(e)/kWh | F200: Cradle to Gate | G200: Emission Factor | H200: A | I200: TWN | J200: 2010 | K200: 2008 | L200: Calculated using IEA fuel mixes, average fuel emissions (combustion and upstream), and accounting for transmission losses and average power plant efficiencies | M200: Calculated | N200: Medium | O200: High | P200: High | Q200: Carbon Trust, International Energy Agency, Digest of United Kingdom energy statistics (DUKES), EcoInvent | R200: Imported from Carbon Trust Electricity Emission Factor Generator using IEA data 2007 | S200: CTFC | T200: PAS 2050 | U200: PAS 2050 | V200: No | W200: None | X200: No | Y200: PAS 2050 | Z200: N/A | AA200: N/A | AB200: PAS 2050
... 1184 more rows

Sheet Typical heat sources (hidden)
A1: Country/Region | B1: Predominant heat source | C1: Source | D1: Proxy
A2: Africa | D2: Fuel: Natural Gas (Low Pressure, medium upstream emission countries) (net kWh)
A3: Argentina | D3: Fuel: Natural Gas (Low Pressure, medium upstream emission countries) (net kWh)
A4: Asia subcontinent | B4: Coal | C4: http://www.iea.org/stats/prodresult.asp?PRODUCT=Electricity/Heat | D4: Fuel: Coal (Emissions per net kWh)
A5: Australia | D5: Fuel: Natural gas - VIC- AUS
A6: Austria | B6: Gas | C6: http://www.iea.org/stats/prodresult.asp?PRODUCT=Electricity/Heat | D6: Fuel: Natural Gas (Low Pressure, medium upstream emission countries) (net kWh)
A7: Bangladesh | D7: Fuel: Natural Gas (Low Pressure, medium upstream emission countries) (net kWh)
A8: Belgium | B8: Gas | C8: http://www.iea.org/stats/prodresult.asp?PRODUCT=Electricity/Heat | D8: Fuel: Natural Gas (Low Pressure, medium upstream emission countries) (net kWh)
A9: Brazil | D9: Fuel: Natural Gas (Low Pressure, medium upstream emission countries) (net kWh)
A10: Bulgaria | B10: Gas | C10: http://www.iea.org/stats/prodresult.asp?PRODUCT=Electricity/Heat | D10: Fuel: Natural Gas (Low Pressure, medium upstream emission countries) (net kWh)
A11: Canada | B11: Gas | C11: http://www.iea.org/stats/prodresult.asp?PRODUCT=Electricity/Heat | D11: Fuel: Natural Gas (Low Pressure, medium upstream emission countries) (net kWh)
A12: Central/Eastern Europe | B12: Gas | C12: http://www.iea.org/stats/prodresult.asp?PRODUCT=Electricity/Heat | D12: Fuel: Natural Gas (Low Pressure, medium upstream emission countries) (net kWh)
A13: Chile | D13: Fuel: Natural Gas (Low Pressure, medium upstream emission countries) (net kWh)
A14: China | B14: Coal | C14: http://www.iea.org/stats/prodresult.asp?PRODUCT=Electricity/Heat | D14: Fuel: Coal (Emissions per net kWh)
A15: Colombia | D15: Fuel: Natural Gas (Low Pressure, medium upstream emission countries) (net kWh)
A16: Costa Rica | D16: Fuel: Natural Gas (Low Pressure, medium upstream emission countries) (net kWh)
A17: Cyprus | D17: Fuel: Natural Gas (Low Pressure, medium upstream emission countries) (net kWh)
A18: Czech Republic | B18: Coal | C18: http://www.iea.org/stats/prodresult.asp?PRODUCT=Electricity/Heat | D18: Fuel: Coal (Emissions per net kWh)
A19: Denmark | B19: Gas | C19: http://www.iea.org/stats/prodresult.asp?PRODUCT=Electricity/Heat | D19: Fuel: Natural Gas (Low Pressure, medium upstream emission countries) (net kWh)
A20: Ecuador | D20: Fuel: Natural Gas (Low Pressure, medium upstream emission countries) (net kWh)
A21: Egypt | D21: Fuel: Natural Gas (Low Pressure, medium upstream emission countries) (net kWh)
A22: EU 27 | B22: Gas | C22: http://www.iea.org/stats/prodresult.asp?PRODUCT=Electricity/Heat | D22: Fuel: Natural Gas (Low Pressure, medium upstream emission countries) (net kWh)
A23: Finland | B23: Coal | C23: http://www.iea.org/stats/prodresult.asp?PRODUCT=Electricity/Heat | D23: Fuel: Coal (Emissions per net kWh)
A24: France | B24: Gas | C24: http://www.iea.org/stats/prodresult.asp?PRODUCT=Electricity/Heat | D24: Fuel: Natural Gas (Low Pressure, medium upstream emission countries) (net kWh)
A25: Germany | B25: Gas | C25: http://www.iea.org/stats/prodresult.asp?PRODUCT=Electricity/Heat | D25: Fuel: Natural Gas (Low Pressure, medium upstream emission countries) (net kWh)
A26: Greece | B26: Coal | C26: http://www.iea.org/stats/prodresult.asp?PRODUCT=Electricity/Heat | D26: Fuel: Coal (Emissions per net kWh)
A27: Guatemala | D27: Fuel: Natural Gas (Low Pressure, medium upstream emission countries) (net kWh)
A28: Hungary | B28: Gas | C28: http://www.iea.org/stats/prodresult.asp?PRODUCT=Electricity/Heat | D28: Fuel: Natural Gas (Low Pressure, medium upstream emission countries) (net kWh)
A29: India | B29: Coal | C29: ? | D29: Fuel: Coal (Emissions per net kWh)
A30: Indonesia | D30: Fuel: Natural Gas (Low Pressure, medium upstream emission countries) (net kWh)
A31: Ireland (Republic of) | D31: Fuel: Natural Gas (Low Pressure, medium upstream emission countries) (net kWh)
A32: Israel | D32: Fuel: Natural Gas (Low Pressure, medium upstream emission countries) (net kWh)
A33: Italy | B33: Gas | C33: http://www.iea.org/stats/prodresult.asp?PRODUCT=Electricity/Heat | D33: Fuel: Natural Gas (Low Pressure, medium upstream emission countries) (net kWh)
A34: Japan | B34: Gas | C34: http://www.iea.org/stats/prodresult.asp?PRODUCT=Electricity/Heat | D34: Fuel: Natural Gas (Low Pressure, medium upstream emission countries) (net kWh)
A35: Kenya | D35: Fuel: Natural Gas (Low Pressure, medium upstream emission countries) (net kWh)
A36: Latin America | D36: Fuel: Natural Gas (Low Pressure, medium upstream emission countries) (net kWh)
A37: Latvia | B37: Gas | C37: http://www.iea.org/stats/prodresult.asp?PRODUCT=Electricity/Heat | D37: Fuel: Natural Gas (Low Pressure, medium upstream emission countries) (net kWh)
A38: Malaysia | D38: Fuel: Natural Gas (Low Pressure, medium upstream emission countries) (net kWh)
A39: Malta | D39: Fuel: Natural Gas (Low Pressure, medium upstream emission countries) (net kWh)
A40: Mexico | D40: Fuel: Natural Gas (Low Pressure, medium upstream emission countries) (net kWh)
A41: Middle East | D41: Fuel: Natural Gas (Low Pressure, medium upstream emission countries) (net kWh)
A42: Netherlands | B42: Gas | C42: http://www.iea.org/stats/prodresult.asp?PRODUCT=Electricity/Heat | D42: Fuel: Natural Gas (Low Pressure, medium upstream emission countries) (net kWh)
A43: New Zealand | D43: Fuel: Natural Gas (Low Pressure, medium upstream emission countries) (net kWh)
A44: Non-OECD total | B44: Gas | C44: http://www.iea.org/stats/prodresult.asp?PRODUCT=Electricity/Heat | D44: Fuel: Natural Gas (Low Pressure, medium upstream emission countries) (net kWh)
A45: North America | D45: Fuel: Natural Gas (Low Pressure, medium upstream emission countries) (net kWh)
A46: Norway | B46: Waste | C46: http://www.iea.org/stats/prodresult.asp?PRODUCT=Electricity/Heat | D46: Fuel: Natural Gas (Low Pressure, medium upstream emission countries) (net kWh)
A47: OECD total | B47: Gas | C47: http://www.iea.org/stats/prodresult.asp?PRODUCT=Electricity/Heat | D47: Fuel: Natural Gas (Low Pressure, medium upstream emission countries) (net kWh)
A48: Pakistan | D48: Fuel: Natural Gas (Low Pressure, medium upstream emission countries) (net kWh)
A49: Panama | D49: Fuel: Natural Gas (Low Pressure, medium upstream emission countries) (net kWh)
A50: Peru | D50: Fuel: Natural Gas (Low Pressure, medium upstream emission countries) (net kWh)
A51: Philippines | D51: Fuel: Natural Gas (Low Pressure, medium upstream emission countries) (net kWh)
A52: Poland | B52: Coal | C52: http://www.iea.org/stats/prodresult.asp?PRODUCT=Electricity/Heat | D52: Fuel: Coal (Emissions per net kWh)
A53: Portugal | B53: Gas | C53: http://www.iea.org/stats/prodresult.asp?PRODUCT=Electricity/Heat | D53: Fuel: Natural Gas (Low Pressure, medium upstream emission countries) (net kWh)
A54: Romania | B54: Gas | C54: http://www.iea.org/stats/prodresult.asp?PRODUCT=Electricity/Heat | D54: Fuel: Natural Gas (Low Pressure, medium upstream emission countries) (net kWh)
A55: Russia | B55: Gas | C55: http://www.iea.org/stats/prodresult.asp?PRODUCT=Electricity/Heat | D55: Fuel: Natural Gas (Low Pressure, medium upstream emission countries) (net kWh)
A56: Saudi Arabia | D56: Fuel: Natural Gas (Low Pressure, medium upstream emission countries) (net kWh)
A57: Serbia | B57: Gas | C57: http://www.iea.org/stats/prodresult.asp?PRODUCT=Electricity/Heat | D57: Fuel: Natural Gas (Low Pressure, medium upstream emission countries) (net kWh)
A58: Singapore | D58: Fuel: Natural Gas (Low Pressure, medium upstream emission countries) (net kWh)
A59: South Africa | D59: Fuel: Natural Gas (Low Pressure, medium upstream emission countries) (net kWh)
A60: South East Asia | B60: Coal | C60: http://www.iea.org/stats/prodresult.asp?PRODUCT=Electricity/Heat | D60: Fuel: Coal (Emissions per net kWh)
A61: South Korea | D61: Fuel: Natural Gas (Low Pressure, medium upstream emission countries) (net kWh)
A62: Spain | D62: Fuel: Natural Gas (Low Pressure, medium upstream emission countries) (net kWh)
A63: Sweden | B63: Biofuels | C63: http://www.iea.org/stats/prodresult.asp?PRODUCT=Electricity/Heat | D63: Fuel: Natural Gas (Low Pressure, medium upstream emission countries) (net kWh)
A64: Taiwan | D64: Fuel: Natural Gas (Low Pressure, medium upstream emission countries) (net kWh)
A65: Thailand | D65: Fuel: Natural Gas (Low Pressure, medium upstream emission countries) (net kWh)
A66: Turkey | B66: Gas | C66: http://www.iea.org/stats/prodresult.asp?PRODUCT=Electricity/Heat | D66: Fuel: Natural Gas (Low Pressure, medium upstream emission countries) (net kWh)
A67: Ukraine | B67: Gas | C67: http://www.iea.org/stats/prodresult.asp?PRODUCT=Electricity/Heat | D67: Fuel: Natural Gas (Low Pressure, medium upstream emission countries) (net kWh)
A68: United Arab Emirates (UAE) | D68: Fuel: Natural Gas (Low Pressure, medium upstream emission countries) (net kWh)
A69: United Kingdom | B69: Gas | C69: http://www.iea.org/stats/prodresult.asp?PRODUCT=Electricity/Heat | D69: Fuel: Natural Gas (Low Pressure, UK) (Emissions per net kWh)
A70: US Average | B70: Gas | C70: http://www.iea.org/stats/prodresult.asp?PRODUCT=Electricity/Heat | D70: Fuel: Natural Gas (Emissions per net kWh) - USA
A71: Vietnam | D71: Fuel: Natural Gas (Low Pressure, medium upstream emission countries) (net kWh)
A72: World average | B72: Gas | C72: http://www.iea.org/stats/prodresult.asp?PRODUCT=Electricity/Heat | D72: Fuel: Natural Gas (Low Pressure, medium upstream emission countries) (net kWh)

Sheet Packaging EFs (hidden)
A1: Material | B1: Emission Factor Proxy | C1: Material EF (kgCO2e/kg) | D1: Commercial EF (kg CO2e/kg waste) | E1: Domestic EF (kg CO2e/kg waste) | F1: End of Life EFs ----> | G1: Material | H1: EF (kg CO2e/kg waste) | I1: Source | J1: Notes
A2: Paper | B2: GLO - Average Papers | C2: =VLOOKUP(B2,'FPX Reference Data'!B:D,3,FALSE) -> 0.69 | D2: =H4 -> 0.1436541217 | E2: =H5 -> 0.6798388751 | G2: Card - Commercial | H2: 0.04219790864 | I2: FPX calculator | J2: Figures here account for recycling rates
A3: Cardboard | B3: GLO - Average Cardboards | C3: =VLOOKUP(B3,'FPX Reference Data'!B:D,3,FALSE) -> 0.58225 | D3: =H2 -> 0.04219790864 | E3: =H3 -> 0.1997003526 | G3: Card - Domestic | H3: 0.1997003526 | I3: FPX calculator | J3: Figures here account for recycling rates
A4: Aluminium | B4: EU - Virgin Aluminium (General Use) | C4: =VLOOKUP(B4,'FPX Reference Data'!B:D,3,FALSE) -> 12.79 | D4: 0 | E4: 0 | G4: Paper - Commercial | H4: 0.1436541217 | I4: FPX calculator | J4: Figures here account for recycling rates
A5: HDPE - blister | B5: EU - Virgin HDPE Resin | C5: =VLOOKUP(B5,'FPX Reference Data'!B:D,3,FALSE) -> 1.9 | D5: =$H$6 -> 0.02193 | E5: =$H$7 -> 0.02193 | G5: Paper - Domestic | H5: 0.6798388751 | I5: FPX calculator | J5: Figures here account for recycling rates
A6: HDPE - film | B6: EU - Virgin HDPE Resin | C6: =VLOOKUP(B6,'FPX Reference Data'!B:D,3,FALSE) -> 1.9 | D6: =$H$6 -> 0.02193 | E6: =$H$7 -> 0.02193 | G6: Plastic - Commerical | H6: 0.02193 | I6: FPX 3.3 Database
A7: PET - blister | B7: EU - Virgin PET Bottle Grade | C7: =VLOOKUP(B7,'FPX Reference Data'!B:D,3,FALSE) -> 3.4 | D7: 0.02193 | E7: 0.02193 | G7: Plastic - Domestic | H7: 0.02193 | I7: FPX 3.3 Database
A8: PET - film | B8: EU - Virgin PET Film | C8: =VLOOKUP(B8,'FPX Reference Data'!B:D,3,FALSE) -> 5.4 | D8: 0.02193 | E8: 0.02193
A9: PVC - blister | B9: EU - Virgin Polyvinylchloride (PVC) (suspension polymerisation) | C9: =VLOOKUP(B9,'FPX Reference Data'!B:D,3,FALSE) -> 1.9 | D9: 2.68244
A10: PVdC - blister | B10: EU - Virgin Polyvinylidene chloride (PVdC) | C10: =VLOOKUP(B10,'FPX Reference Data'!B:D,3,FALSE) -> 4.4 | D10: 5.18244
A11: PP - bottle | B11: ='FPX Reference Data'!B760 -> EU - Virgin Polypropylene (injection moulded) | C11: =VLOOKUP(B11,'FPX Reference Data'!B:D,3,FALSE) -> 4.405911486 | D11: 0.02193 | E11: 0.02193
A12: PP - film | B12: EU - Virgin PP Resin | C12: =VLOOKUP(B12,'FPX Reference Data'!B:D,3,FALSE) -> 2 | D12: 0.02193 | E12: 0.02193

Sheet TRANSPORT -----> (hidden)

Sheet Transport EFs (hidden)
A1: ASSUMPTIONS
A3: Mode | B3: Type | C3: Value | D3: Units | E3: Source
A4: Air distance | B4: Long Haul | C4: 9000 | D4: km | E4: Rounded Shanghai - Pu Dong to London Stanstead (taken from http://www.world-airport-codes.com/)
A5: Air distance | B5: Short Haul | C5: 1500 | D5: km | E5: Rounded Warsaw - Frédéric Chopin to London Stanstead (taken from http://www.world-airport-codes.com/)
A6: Air distance | B6: Domestic | C6: 400 | D6: km | E6: Rounded Newcastle to London Stanstead (taken from http://www.world-airport-codes.com/)
A7: Road distance | B7: Long haul | C7: 2500 | D7: km
A8: Road distance | B8: Short haul | C8: 500 | D8: km
A9: Road distance | B9: Domestic | C9: 100 | D9: km
A10: Sea Distance | B10: Shanghai to Hull | C10: 19500 | D10: km | E10: www.searates.com
A11: Sea Distance | B11: Nigeria to Hull | C11: 8000 | D11: km | E11: www.searates.com
A12: Sea Distance | B12: Hamburg to Hull | C12: 700 | D12: km | E12: www.searates.com
A14: EMISSION FACTORS
A16: Mode | B16: Type | C16: Value | D16: Units | E16: Source
A17: Air EF | B17: None | C17: 0 | D17: kg CO2e/kg
A18: Air EF | B18: Long Haul | C18: =('FPX Reference Data'!D1163*C4)/1000 -> 0.74448 | D18: kg CO2e/kg
A19: Air EF | B19: Short Haul | C19: =('FPX Reference Data'!D1164*C5)/1000 -> 3.518173641 | D19: kg CO2e/kg
A20: Air EF | B20: Domestic | C20: =('FPX Reference Data'!D1162*C6)/1000 -> 0.0728 | D20: kg CO2e/kg
A21: Road EF | B21: None | C21: 0 | D21: kg CO2e/kg
A22: Road EF | B22: Long haul | C22: =(C7*'FPX Reference Data'!$D$1299)/(1000*'FPX Reference Data'!$D$1287) -> 0.6020942408 | D22: kg CO2e/kg
A23: Road EF | B23: Short haul | C23: =(C8*'FPX Reference Data'!$D$1299)/(1000*'FPX Reference Data'!$D$1287) -> 0.1204188482 | D23: kg CO2e/kg
A24: Road EF | B24: Domestic | C24: =(C9*'FPX Reference Data'!$D$1299)/(1000*'FPX Reference Data'!$D$1287) -> 0.02408376963 | D24: kg CO2e/kg
A25: Sea EF | B25: None | C25: 0 | D25: kg CO2e/kg
A26: Sea EF | B26: Long haul | C26: =('FPX Reference Data'!$D$1191*C10)/1000 -> 0.09416235484 | D26: kg CO2e/kg
A27: Sea EF | B27: Medium haul | C27: =('FPX Reference Data'!$D$1191*C11)/1000 -> 0.03863070968 | D27: kg CO2e/kg
A28: Sea EF | B28: Short haul | C28: =('FPX Reference Data'!$D$1191*C12)/1000 -> 0.003380187097 | D28: kg CO2e/kg
B30: FOR ROAD, USE ARTICULATED LORRY AVERAGE
B31: MAKE ASSUMPTIONS ON RETURN JOURNEY?
B32: CHECK WITH TOM CALDICOTT ABOUT HOW THE UTILISATION IS USED IN ROAD CALCULATOR
A37: Road EF (kg CO2(e)/tonne/km) | B37: Lorry (articulated, >3.5-33t) - UK | C37: 0.184 | D37: kg CO2(e)/tonne/km | E37: FPX
A38: Road EF (kg CO2(e)/tonne/km) | B38: Lorry (rigid, >3.5-7.5t) - UK | C38: 0.79456 | D38: kg CO2(e)/tonne/km | E38: FPX
A39: Road EF (kg CO2(e)/tonne/km) | B39: Lorry (rigid, >17t) - UK | C39: 0.2413 | D39: kg CO2(e)/tonne/km | E39: FPX
A40: Road average distance | B40: Average length of haul by commodity - Chemicals | C40: 136 | D40: km | E40: FPX
A41: Air EF (kg CO2(e)/tonne/km) | B41: Long Haul | C41: 0.7175080999 | D41: kg CO2(e)/tonne/km | E41: FPX
A42: Air EF (kg CO2(e)/tonne/km) | B42: Short Haul | C42: 2.247244841 | D42: kg CO2(e)/tonne/km | E42: FPX
A43: Air EF (kg CO2(e)/tonne/km) | B43: Domestic (UK) | C43: 2.345449094 | D43: kg CO2(e)/tonne/km | E43: FPX
A46: Sea EF (kg CO2(e)/tonne/km) | B46: Cargo, general - average - GLO | C46: 0.01537612903 | D46: kg CO2(e)/tonne/km | E46: FPX

Sheet TransportDefaults - ctry to UK (hidden)
A1: Country/Region | B1: Air | C1: Sea | D1: Road | E1: Region (for default buttons)
A2: Africa | B2: None | C2: Medium haul | D2: Short haul | E2: Africa | H2: United Kingdom
A3: Argentina | B3: None | C3: Medium haul | D3: Short haul | E3: South America | H3: Western Europe
A4: Asia subcontinent | B4: None | C4: Long haul | D4: Short haul | E4: Asia | H4: Eastern Europe
A5: Australia | B5: None | C5: Long haul | D5: Short haul | E5: Australasia | H5: North America
A6: Austria | B6: None | C6: Short haul | D6: Short haul | E6: Western Europe | H6: South America
A7: Bangladesh | B7: None | C7: Long haul | D7: Short haul | E7: Asia | H7: Asia
A8: Belgium | B8: None | C8: Short haul | D8: Short haul | E8: Western Europe | H8: Middle East
A9: Brazil | B9: None | C9: Medium haul | D9: Short haul | E9: South America | H9: Australasia
A10: Bulgaria | B10: None | C10: Short haul | D10: Long haul | E10: Eastern Europe | H10: Africa
A11: Canada | B11: None | C11: Medium haul | D11: Short haul | E11: North America
A12: Central/Eastern Europe | B12: None | C12: Short haul | D12: Long haul | E12: Eastern Europe
A13: Chile | B13: None | C13: Medium haul | D13: Domestic (UK) | E13: South America
A14: China | B14: None | C14: Long haul | D14: Short haul | E14: Asia
A15: Colombia | B15: None | C15: Medium haul | D15: Domestic (UK) | E15: South America
A16: Costa Rica | B16: None | C16: Medium haul | D16: Domestic (UK) | E16: South America
A17: Cyprus | B17: None | C17: Medium haul | D17: Domestic (UK) | E17: Eastern Europe
A18: Czech Republic | B18: None | C18: Short haul | D18: Long haul | E18: Eastern Europe
A19: Denmark | B19: None | C19: Short haul | D19: Short haul | E19: Western Europe
A20: Ecuador | B20: None | C20: Medium haul | D20: Short haul | E20: South America
A21: Egypt | B21: None | C21: Medium haul | D21: Short haul | E21: Africa
A22: EU 27 | B22: None | C22: Short haul | D22: Short haul | E22: Western Europe
A23: Finland | B23: None | C23: Short haul | D23: Short haul | E23: Western Europe
A24: France | B24: None | C24: Short haul | D24: Short haul | E24: Western Europe
A25: Germany | B25: None | C25: Short haul | D25: Short haul | E25: Western Europe
A26: Greece | B26: None | C26: Short haul | D26: Long haul | E26: Eastern Europe
A27: Guatemala | B27: None | C27: Medium haul | D27: Short haul | E27: South America
A28: Hungary | B28: None | C28: Short haul | D28: Long haul | E28: Eastern Europe
A29: India | B29: None | C29: Long haul | D29: Short haul | E29: Asia
A30: Indonesia | B30: None | C30: Long haul | D30: Short haul | E30: Asia
A31: Ireland (Republic of) | B31: None | C31: Short haul | D31: Short haul | E31: Western Europe
A32: Israel | B32: None | C32: Medium haul | D32: Short haul | E32: Middle East
A33: Italy | B33: None | C33: Short haul | D33: Long haul | E33: Western Europe
A34: Japan | B34: None | C34: Long haul | D34: Domestic (UK) | E34: Asia
A35: Kenya | B35: None | C35: Medium haul | D35: Long haul | E35: Africa
A36: Latin America | B36: None | C36: Medium haul | D36: Short haul | E36: South America
A37: Latvia | B37: None | C37: Short haul | D37: Long haul | E37: Eastern Europe
A38: Malaysia | B38: None | C38: Long haul | D38: Domestic (UK) | E38: Asia
A39: Malta | B39: None | C39: Medium haul | D39: Domestic (UK) | E39: Eastern Europe
A40: Mexico | B40: None | C40: Medium haul | D40: Short haul | E40: South America
A41: Middle East | B41: None | C41: Medium haul | D41: Short haul | E41: Middle East
A42: Netherlands | B42: None | C42: Short haul | D42: Short haul | E42: Western Europe
A43: New Zealand | B43: None | C43: Long haul | D43: Short haul | E43: Australasia
A44: North America | B44: None | C44: Medium haul | D44: Long haul | E44: North America
A45: Norway | B45: None | C45: None | D45: Short haul | E45: Western Europe
A46: Pakistan | B46: None | C46: Long haul | D46: Short haul | E46: Asia
A47: Panama | B47: None | C47: Medium haul | D47: None | E47: South America
A48: Peru | B48: None | C48: Medium haul | D48: Long haul | E48: South America
A49: Philippines | B49: None | C49: Long haul | D49: Domestic (UK) | E49: Asia
A50: Poland | B50: None | C50: Short haul | D50: Long haul | E50: Eastern Europe
A51: Portugal | B51: None | C51: Short haul | D51: Short haul | E51: Western Europe
A52: Romania | B52: None | C52: Short haul | D52: Long haul | E52: Eastern Europe
A53: Russia | B53: None | C53: Medium haul | D53: Long haul | E53: Eastern Europe
A54: Saudi Arabia | B54: None | C54: Medium haul | D54: Long haul | E54: Middle East
A55: Serbia | B55: None | C55: Short haul | D55: Long haul | E55: Eastern Europe
A56: Singapore | B56: None | C56: Long haul | D56: Short haul | E56: Asia
A57: South Africa | B57: None | C57: Medium haul | D57: Long haul | E57: Africa
A58: South East Asia | B58: None | C58: Long haul | D58: Short haul | E58: Asia
A59: South Korea | B59: None | C59: Long haul | D59: Short haul | E59: Asia
A60: Spain | B60: None | C60: Short haul | D60: Short haul | E60: Western Europe
A61: Sweden | B61: None | C61: Short haul | D61: Short haul | E61: Western Europe
A62: Taiwan | B62: None | C62: Long haul | D62: Domestic (UK) | E62: Asia
A63: Thailand | B63: None | C63: Long haul | D63: Short haul | E63: Asia
A64: Turkey | B64: None | C64: Short haul | D64: Long haul | E64: Eastern Europe
A65: Ukraine | B65: None | C65: Short haul | D65: Long haul | E65: Eastern Europe
A66: United Arab Emirates (UAE) | B66: None | C66: Medium haul | D66: Short haul | E66: Middle East
A67: United Kingdom | B67: None | C67: None | D67: Domestic (UK) | E67: United Kingdom
A68: US Average | B68: None | C68: Medium haul | D68: Long haul | E68: United Kingdom
A69: Vietnam | B69: None | C69: Long haul | D69: Short haul | E69: Asia
A70: World average | B70: None | C70: Medium haul | D70: Short haul | E70: Asia

Sheet TransportDefault - between ctrs (hidden)
B2: AIR | D2: DESTINATION
D3: United Kingdom | E3: Western Europe | F3: Eastern Europe | G3: North America | H3: South America | I3: Asia | J3: Middle East | K3: Australasia | L3: Africa
B4: SOURCE | C4: United Kingdom | D4: None | E4: None | F4: None | G4: None | H4: None | I4: None | J4: None | K4: None | L4: None
C5: Western Europe | D5: None | E5: None | F5: None | G5: None | H5: None | I5: None | J5: None | K5: None | L5: None
C6: Eastern Europe | D6: None | E6: None | F6: None | G6: None | H6: None | I6: None | J6: None | K6: None | L6: None
C7: North America | D7: None | E7: None | F7: None | G7: None | H7: None | I7: None | J7: None | K7: None | L7: None
C8: South America | D8: None | E8: None | F8: None | G8: None | H8: None | I8: None | J8: None | K8: None | L8: None
C9: Asia | D9: None | E9: None | F9: None | G9: None | H9: None | I9: None | J9: None | K9: None | L9: None
C10: Middle East | D10: None | E10: None | F10: None | G10: None | H10: None | I10: None | J10: None | K10: None | L10: None
C11: Australasia | D11: None | E11: None | F11: None | G11: None | H11: None | I11: None | J11: None | K11: None | L11: None
C12: Africa | D12: None | E12: None | F12: None | G12: None | H12: None | I12: None | J12: None | K12: None | L12: None
B15: SEA | D15: DESTINATION
D16: United Kingdom | E16: Western Europe | F16: Eastern Europe | G16: North America | H16: South America | I16: Asia | J16: Middle East | K16: Australasia | L16: Africa
B17: SOURCE | C17: United Kingdom | D17: None | E17: Short haul | F17: Short haul | G17: Medium haul | H17: Medium haul | I17: Long haul | J17: Medium haul | K17: Long haul | L17: Medium haul
C18: Western Europe | D18: Short haul | E18: None | F18: None | G18: Medium haul | H18: Medium haul | I18: Long haul | J18: Medium haul | K18: Long haul | L18: Medium haul
C19: Eastern Europe | D19: Short haul | E19: None | F19: None | G19: Medium haul | H19: Medium haul | I19: Long haul | J19: None | K19: Long haul | L19: Medium haul
C20: North America | D20: Medium haul | E20: Medium haul | F20: Medium haul | G20: None | H20: Medium haul | I20: Long haul | J20: Long haul | K20: Long haul | L20: Medium haul
C21: South America | D21: Medium haul | E21: Medium haul | F21: Medium haul | G21: Medium haul | H21: None | I21: Long haul | J21: Long haul | K21: Long haul | L21: Medium haul
C22: Asia | D22: Long haul | E22: Long haul | F22: Long haul | G22: Long haul | H22: Long haul | I22: None | J22: Medium haul | K22: Medium haul | L22: Medium haul
C23: Middle East | D23: Medium haul | E23: Medium haul | F23: None | G23: Long haul | H23: Long haul | I23: Medium haul | J23: None | K23: Medium haul | L23: Medium haul
C24: Australasia | D24: Long haul | E24: Long haul | F24: Long haul | G24: Long haul | H24: Long haul | I24: Medium haul | J24: Medium haul | K24: None | L24: Medium haul
C25: Africa | D25: Medium haul | E25: Medium haul | F25: Medium haul | G25: Medium haul | H25: Medium haul | I25: Medium haul | J25: Medium haul | K25: Medium haul | L25: None
B28: ROAD | D28: DESTINATION
D29: United Kingdom | E29: Western Europe | F29: Eastern Europe | G29: North America | H29: South America | I29: Asia | J29: Middle East | K29: Australasia | L29: Africa
B30: SOURCE | C30: United Kingdom | D30: Domestic | E30: Short haul | F30: Long haul | G30: Short haul | H30: Short haul | I30: Short haul | J30: Short haul | K30: Short haul | L30: Short haul
C31: Western Europe | D31: Short haul | E31: Domestic | F31: Long haul | G31: Short haul | H31: Short haul | I31: Short haul | J31: Long haul | K31: Short haul | L31: Short haul
C32: Eastern Europe | D32: Long haul | E32: Long haul | F32: Domestic | G32: Long haul | H32: Long haul | I32: Long haul | J32: Long haul | K32: Long haul | L32: Short haul
C33: North America | D33: Short haul | E33: Short haul | F33: Long haul | G33: Short haul | H33: Short haul | I33: Short haul | J33: Short haul | K33: Short haul | L33: Short haul
C34: South America | D34: Short haul | E34: Short haul | F34: Long haul | G34: Short haul | H34: Short haul | I34: Short haul | J34: Short haul | K34: Short haul | L34: Short haul
C35: Asia | D35: Short haul | E35: Short haul | F35: Long haul | G35: Short haul | H35: Short haul | I35: Long haul | J35: Short haul | K35: Short haul | L35: Short haul
C36: Middle East | D36: Short haul | E36: Long haul | F36: Long haul | G36: Short haul | H36: Short haul | I36: Short haul | J36: Domestic | K36: Short haul | L36: Short haul
C37: Australasia | D37: Short haul | E37: Short haul | F37: Long haul | G37: Short haul | H37: Short haul | I37: Short haul | J37: Short haul | K37: Domestic | L37: Short haul
C38: Africa | D38: Short haul | E38: Short haul | F38: Short haul | G38: Short haul | H38: Short haul | I38: Short haul | J38: Short haul | K38: Short haul | L38: Short haul

Sheet TransDefaults - Input to form (hidden)
B1: Air | C1: Sea | D1: Road
A2: API | B2: None | C2: Long haul | D2: Domestic
A3: Excipient | B3: None | C3: None | D3: Domestic
A4: Packaging | B4: None | C4: None | D4: Domestic
